{"text_format":"1","workbook":"xlsx","n_sheets":10,"sheets":["Instructions","Statement of Compliance","Wage & Hour Record 11x17- white","Wage & Hour Record 11x17- red","Wage & Hour Record","Deduction Record","Fringe Record","Employee Info","Labor Classification Codes","Apprenticeship Detail"],"not_rendered":{"charts":0,"images":0,"macros":1,"external_links":1,"defined_names":12,"comments":0,"pivot_tables":0},"unopened":[],"bounds":{"document_bytes":16777216,"sheet_cells":100000,"rows_first":2000,"rows_last":500,"rows_between":2000,"halvings":0,"cell_chars":16384,"cell_head_chars":4096},"cells_cut":0,"cells_raw":0,"read":"whole","date_system":"1900"}

{"sheet":"Instructions","index":0,"n_rows":89,"n_cols":1,"rows_kept":89,"cut":false,"hidden":false,"merged":[[88,0,90,15],[85,0,87,15],[78,0,83,15],[84,0,84,15],[53,0,53,15],[73,0,73,15],[56,0,57,15],[54,0,55,15],[0,0,0,15],[43,0,43,15],[47,0,47,15],[74,0,74,15],[75,0,77,15],[44,0,46,15],[48,0,52,15],[11,0,11,15],[1,0,10,15],[12,0,42,15],[58,0,61,15],[62,0,72,15]]}
["GENERAL INSTRUCTIONS"]
["The following information entered on the Statement of Compliance will automatically populate on the Wage & Hour Record, Deduction Record and on the Fringe Record. You only have to enter this data once. \n\nContract No: Enter the prime contract number assigned.\nFPID No: Enter the lead financial project ID number assigned to the referenced contract.\nProject Description: Enter a description of the project, including at minimum, the county or counties and state in which the project is located.\nCompany Name: Enter the company's legal name.\nCompany Address: Enter the company's full address.\nPayroll Period: Enter the  payroll period commencing date. The end date automatically populates to one week following the commencing date."]
[]
[]
[]
[]
[]
[]
[]
[]
[]
["STATEMENT OF COMPLIANCE"]
["While the “Statement of Compliance” need not be notarized, the statement (on page 1 of this certified payroll form) is subject to the penalties provided by 18 U.S.C. § 1001, namely, a fine, possible imprisonment of not more than 5 years, or both if falsified. Accordingly, the party signing this statement should have knowledge of the facts represented as true.\n\n\"Check Box\" for Prime Contractor or Subcontractor: Mark the appropriate box to indicate whether it is the prime contractor or a subcontractor on the project for which certified payroll is being reported.\n\nName and Title of Certifying Official: Print the name and official title of the contractor or subcontractor, or their agent who paid or supervised the payment of the workers under the contract during the weekly time period covered by the form.\n\nIf applicable, please “check” boxes 2 through 5 certifying the accompanying statement as accurate. Boxes 2, 3 and 5 always must be checked to certify that the contractor or subcontractor completing the form is in compliance with the Davis-Bacon Related Acts (DBRA).\n\nIf any worker is being paid as an apprentice during the period, box 4 must be checked and program information for each in which the contractor has registered apprentices working on the project during this payroll period must be listed on the attached Apprentice Detail sheet, with the appropriate box checked to indicate whether the apprenticeship program is registered with DOL’s Office of Apprenticeship (OA) or a State Apprenticeship Agency (SAA), and the name of the labor classification entered. If box 4 is not applicable, do not check the box and enter “Not Applicable” or “N/A” in the entry subsection, under Apprenticeship Program Name.\n\nIf the contractor or subcontractor is claiming an hourly credit for their contributions to or reasonably anticipated costs of bona fide fringe benefit plans, funds, or programs, box 5 must be checked and the subsections titled “Hourly Credit for Fringe Benefits” must be completed. Use the attached Fringe Benefit Record to list each worker  for whom the contractor or subcontractor claimed an hourly fringe benefit credit (this should mirror the worker names and order found on the Wage and Hour Record of the certified payroll form). In the provided columns, list each fringe benefit plan name in the top row, fringe benefit plan type in the second row, fringe benefit plan number in the third row, mark whether the fringe benefit plan is funded or unfunded in the fourth row, and state the hourly amount of credit claimed for each worker under each applicable plan in the rows below. In the last column, list the total hourly cost of fringe benefit provided for each worker. Where the contractor or subcontractor is claiming a credit for the reasonably anticipated costs of fringe benefits provided directly by the contractor (commonly referred to as an “unfunded plan”), the contractor or subcontractor must have prior approval from the Department of Labor prior to claiming such credit as required in 29 CFR 5.28. If more than three bona fide fringe benefits are provided to the workers for which the contractor is claiming a credit, submit an addendum for each providing the information requested in this section.\n\nNote: If the contractor or subcontractor is meeting its fringe benefit obligations partially through contributions to or reasonably anticipated costs of a bona fide fringe benefit plan and partially through the payment of cash in lieu of fringe benefits, the contractor or subcontractor should enter the respective amounts in this section and include remaining cash contribution as part of the hourly rate of pay. If the contractor or subcontractor is meeting its fringe benefits obligations by simply paying the cash equivalent to each worker, check the box but do not complete the subsection, because those payments will be reported as included in the hourly rate contribution to the worker. "]
[]
[]
[]
[]
[]
[]
[]
[]
[]
[]
[]
[]
[]
[]
[]
[]
[]
[]
[]
[]
[]
[]
[]
[]
[]
[]
[]
[]
[]
[]
["ADDITIONAL REMARKS"]
["Optional space for additional information on deductions, hourly cost of fringe benefits, or explanations. If more space is needed, please continue remarks on a separate page. If the optional space or separate pages are used, please include all contractor and project information required by the form."]
[]
[]
["SIGNATURE OF CERTIFYING OFFICAL, DATE, TELEPHONE NUMBER, AND EMAIL ADDRESS"]
["The Statement of Compliance must be signed by the contractor or subcontractor, or their agent who paid or supervised the payment of the workers under the contract during the weekly time period covered by the form. Enter the phone number and email address of the individual who is signing the statement and the date signed. Legally valid electronic signatures are acceptable. A legally valid electronic signature includes any electronic process that indicates acceptance of the certified payroll record and includes an electronic method of verifying the signer’s identity. Note: Photocopies or scanned copies of signatures do not satisfy this requirement."]
[]
[]
[]
[]
["Detailed instructions for completing the first page of Form 700-010-69 follow:"]
["Certified Payroll No.: Beginning with the number “1”, each weekly certified payroll that a contractor or subcontractor submits for a project should be given a payroll number. Enter the appropriate payroll number."]
[]
["“Check Box” for Submission of Final DBRA Certified Payroll Form: Mark the box to indicate that this submission is for the final week of work on the project for the contractor or subcontractor."]
[]
["Column (1) Employee Information: Enter each worker’s first name, middle initial if applicable, and last name; employee identifier (minimum of four digits) on each weekly certified payroll submitted, and employee type. Note: workers' full Social Security numbers must not be included as identifier. Under Work Classification, select the FDOT CRM Alias. The Labor Code and Class Code automatically populate once the alias is selected. NOTE: The Labor Classification Codes is a general list of all classifications and not specific to your contract/project."]
[]
[]
[]
["Column (2) Day of Work Week, Date, and Hours: For worker-specific entries, please enter hours worked on this project as straight time (“ST”) and overtime (“OT”) in the applicable boxes. On all contracts subject to the Contract Work Hours and Safety Standards Act (CWHSSA), enter hours worked on this project in excess of 40 hours total in the week as overtime (“OT”) (including hours worked on and off the site of the work of the covered contract). Note: For more information about compliance with overtime requirements on Federal and federally assisted contracts, please visit Overtime Pay on Government Contracts (https://www.dol.gov/agencies/whd/government-contracts/prevailing-wage-resource-book/overtime-pay-on-gov-contracts).\n\nIf a worker performed work in more than one labor classification during the week, the worker must be paid at least the rate specified for the appropriate labor classification for the time actually worked in that labor classification. In such circumstances, an accurate breakdown of hours worked in each labor classification must be shown on the submitted payroll by using a separate row for each labor classification in which the worker performed work. If the contractor did not maintain an accurate breakdown of hours worked by a worker in each labor classification, the worker must be paid for all hours worked using the highest applicable prevailing wage rate (basic hourly rate and fringe benefits)."]
[]
[]
[]
[]
[]
[]
[]
[]
[]
[]
["Column (3) Total Hours ST/OT: The total hours for this column automatically populates from hours entered in Column 2. "]
["Column (4) Pay Rate ST/OT: Enter ST rate of pay. The OT rate of pay automatically populates based on ST entry."]
["Column (5) Gross Pay Project/Weekly: The top cell automatically calculates the amount based on ST/OT rate. Enter the worker's gross amount earned for the workweek for hours on this Federal or federally-assisted project in the bottom cell provided (amount must be equal to or greater than the top cell). If part of the workers weekly wages were earned on projects or work other than the project described on this payroll, including non-DBRA covered projects, enter in bottom cell provided the total gross amount earned for all work performed during the week."]
[]
[]
["Column (6) Total from Deductions Record: The total for this column is automatically calculated based on entries from the Deductions Record. On the attached Deductions Record, enter all deductions made from worker’s total gross amount earned for all work (Column 5). Columns are provided for entering deductions made for tax withholdings, FICA, and other deductions. Please specify other deductions by revising the cell title to identify the type of deduction. The Total Deductions column automatically calculates the total for all deductions entered for each worker.  All deductions must be in accordance with the provisions of the Copeland Act Regulations, 29 CFR part 3. If a worker worked on other jobs in addition to this project, do not pro-rate the deductions; instead, show actual deductions from the worker’s weekly gross wage for all projects. Note: Except for deductions listed in 29 CFR 3.5, all deductions must have prior approval from the Department of Labor."]
[]
[]
[]
[]
[]
["Column (7) Employee Net Pay: The amount for this column automatically populates based on amount from Column 5 (bottom cell)."]
["Column (8) Fringe Benefits: The Total Hourly Credit from the FB Record and the Total Fringe Benefit is automatically calculated based on entries from the Fringe Record. On the attached Fringe Record, enter the fringe benefit costs for each affected worker reported on the certified payroll for the work week. Enter the fringe benefit name, type, plan number, and whether the fringe benefit is funded or unfunded."]
[]
[]
["NOTE: To generate your payroll and include all sheets necessary for reporting, select all applicable tabs (Statement of Compliance, Wage & Hour Record, Deductions record, Fringe record) for printing/saving to PDF. Select File, Print Active Sheets (or Print Entire Workbook). Verify all sheets required are visible in print preview. Print and save to your preferred destination for final review and certification."]

{"sheet":"Statement of Compliance","index":1,"n_rows":48,"n_cols":29,"rows_kept":48,"cut":false,"hidden":false,"merged":[[8,19,9,24],[8,25,9,30],[8,6,8,17],[0,1,3,27],[0,28,0,30],[1,28,1,30],[2,28,2,30],[6,9,6,10],[6,6,6,8],[4,1,4,11],[6,19,6,31],[7,25,7,30],[6,3,6,4],[6,14,6,17],[7,19,7,24],[43,19,49,30],[10,25,11,30],[12,25,13,30],[14,25,15,30],[16,25,17,30],[35,2,36,17],[24,19,32,30],[23,19,23,30],[18,25,19,30],[20,25,21,30],[17,3,18,17],[10,1,10,13],[14,3,14,17],[15,3,15,17],[20,8,20,14],[21,8,21,14],[13,1,13,13],[11,1,11,13],[12,1,12,13],[41,2,45,17],[38,2,39,17],[47,2,49,17],[30,1,33,17],[10,19,11,24],[12,19,13,24],[14,19,15,24],[16,19,17,24],[18,19,19,24],[20,19,21,24],[34,24,34,30],[35,24,42,30],[36,19,38,23],[40,19,42,23],[22,1,23,17],[24,1,29,17]]}
[null,"STATE OF FLORIDA DEPARTMENT OF TRANSPORTATION\nWAGE AND HOUR RECORD",null,null,null,null,null,null,null,null,null,null,null,null,null,null,null,null,null,null,null,null,null,null,null,null,null,null,"700-010-69"]
[null,null,null,null,null,null,null,null,null,null,null,null,null,null,null,null,null,null,null,null,null,null,null,null,null,null,null,null,"Construction"]
[null,null,null,null,null,null,null,null,null,null,null,null,null,null,null,null,null,null,null,null,null,null,null,null,null,null,null,null,"January 2026"]
[]
[null,"Statement of Compliance:",null,null,null,null,null,null,null,null,null,null,null,null,null,{"$f":"'Wage & Hour Record 11x17- red'!O5","v":""}]
[]
[null,"DATE",null,null,null,null,"CONTRACT NO.",null,null,null,null,null,"FPID NO.",null,null,null,null,null,null,"(c) EXCEPTIONS: as benefits listed in the contract except as noted in this section"]
[null,null,null,null,null,null,null,null,null,null,null,null,null,null,null,null,null,null,null,"EXCEPTION (LABOR/CRAFT)",null,null,null,null,null,"EXPLANATION"]
[null,"PROJECT DESCRIPTION"]
[]
[null,null,null,null,null,null,null,null,null,null,null,null,null,null,null,null,"Prime Contractor",true]
[null,"(Company Name)",null,null,null,null,null,null,null,null,null,null,null,null,null,null,"(or)"]
[null,null,null,null,null,null,null,null,null,null,null,null,null,null,null,null,"Subcontractor",false]
[null,"(Company Address)"]
[null,"I, "]
[null,null,null,"(Name and Title of Certifying Official)"]
[null,"do hereby state:"]
[null,null,null,"(1) That I paid or supervised the payment of the laborers or mechanics working on the referenced project during the stated time period below. I certify the following:"]
[]
[]
[null,"that during the payroll period commencing on "]
[null,"and ending on",null,null,null,null,null,null,{"$f":"IF(I21=\"\",\"\",I21+6)","v":""}]
[null,"all persons employed on said project have been paid the full weekly wages earned, that no rebates or deductions have been or will be made either directly or indirectly, other than permissible deductions as defined in 29 CFR Part 3."]
[null,null,null,null,null,null,null,null,null,null,null,null,null,null,null,null,null,null,null,"REMARKS:"]
[null,"The payroll information submitted with this statement is correct and complete for the above project during the above period, and the wage and fringe benefit rates paid to the workers, including credit taken for the reasonably anticipated costs of a bona fide fringe benefit plan, fund or program, are not less than the applicable wage and fringe benefits rates for the classification(s) of work actually performed, as specified in the wage determination(s) incorporated into this contract."]
[]
[]
[]
[]
[]
[]
[]
[]
[]
[null,null,null,null,null,null,null,null,null,null,null,null,null,null,null,null,null,null,null,null,null,null,null,null,"SIGNATURE OF CERTIFYING OFFICAL"]
[null,false,"(2) All regular payrolls and all other basic records that the contractor is required to maintain for this payroll period are complete and accurate and will be made available upon request from the agency or the Department of Labor.",null,null,null,null,null,null,null,null,null,null,null,null,null,null,null,null,"Phone number:"]
[]
[]
[null,false,"(3) The classifications reported for each laborer or mechanic are the classification(s) of work that each worker actually performed."]
[null,null,null,null,null,null,null,null,null,null,null,null,null,null,null,null,null,null,null,"Email Address:"]
[]
[null,false,"(4) Any workers paid as apprentices during the above period are duly registered in a bona fide apprenticeship program registered with the Office of Apprenticeship, Employment and Training Administration, United States Department of Labor (\"OA\"), or a State Apprenticeship Agency (\"SAA\") recognized by Department of Labor. I have verified the registered apprenticeship program, providing additional information as accurate and applicable to any apprentices identified on the attached apprenticeship detail form."]
[]
[null,null,null,null,null,null,null,null,null,null,null,null,null,null,null,null,null,null,null,"THE WILLFUL FALSIFICATION OF ANY OF THE ABOVE STATEMENTS MAY SUBJECT THE CONTRACTOR OR SUBCONTRACTOR TO CIVIL OR CRIMINAL PROSECUTION (SEE SECTION 1001 OF TITLE 18 AND SECTION 3729 OF TITLE 31 OF THE UNITED STATES CODE), AS WELL AS DEBARMENT FROM FUTURE FEDERAL AND FEDERALLY-ASSISTED CONTRACTS, INFORMATION REPORTED ON CERTIFIED PAYROLLS MAY BE SUBJECT TO DISCLOSURE IN RESPONSE TO A FREEDOM OF INFORMATION ACT REQUEST."]
[]
[]
[]
[null,false,"(5)  Fringe benefits have been paid in cash and/or to bona fide fringe benefit plans, funds, or programs. Where the contractor is claiming an hourly credit for their contributions to or reasonably anticipated costs of a bona fide fringe benefit plan, fund, or program, provide plan information and hourly credit claimed for each worker listed on the attached Fringe Benefit Detail Report."]

{"sheet":"Wage & Hour Record 11x17- white","index":2,"n_rows":60,"n_cols":30,"rows_kept":60,"cut":false,"hidden":true,"merged":[[58,29,60,29],[31,29,33,29],[34,29,36,29],[37,29,39,29],[40,29,42,29],[43,29,45,29],[46,29,48,29],[49,29,51,29],[52,29,54,29],[55,29,57,29],[55,24,57,24],[55,25,57,25],[55,26,57,26],[55,27,57,27],[55,28,57,28],[58,24,60,24],[58,25,60,25],[58,26,60,26],[58,27,60,27],[58,28,60,28],[43,24,45,24],[43,25,45,25],[43,26,45,26],[43,27,45,27],[43,28,45,28],[46,24,48,24],[46,25,48,25],[46,26,48,26],[46,27,48,27],[46,28,48,28],[31,24,33,24],[31,25,33,25],[31,26,33,26],[31,27,33,27],[31,28,33,28],[34,24,36,24],[34,25,36,25],[34,26,36,26],[34,27,36,27],[34,28,36,28],[19,24,21,24],[19,25,21,25],[19,26,21,26],[19,27,21,27],[19,28,21,28],[19,29,21,29],[22,24,24,24],[22,25,24,25],[22,26,24,26],[22,27,24,27],[22,28,24,28],[22,29,24,29],[4,16,4,17],[4,18,5,20],[5,16,6,17],[6,1,6,5],[6,12,6,13],[6,14,6,15],[0,3,0,20],[0,23,0,29],[1,23,6,29],[2,2,2,10],[2,12,2,13],[2,14,2,20],[4,3,4,5],[4,6,4,10],[4,12,4,13],[4,14,4,15],[8,1,8,2],[8,3,12,3],[8,4,8,10],[8,14,8,22],[8,24,8,29],[9,1,12,1],[9,2,12,2],[9,4,10,4],[9,5,10,5],[9,6,10,6],[9,22,12,22],[9,23,12,23],[9,29,12,29],[10,14,12,14],[10,15,12,15],[10,16,12,16],[10,17,12,17],[10,18,12,18],[10,19,12,19],[10,20,12,20],[10,21,12,21],[11,4,12,4],[11,5,12,5],[11,6,12,6],[11,7,12,7],[11,8,12,8],[11,9,12,9],[11,10,12,10],[9,13,12,13],[9,7,10,7],[9,8,10,8],[9,9,10,9],[9,10,10,10],[9,11,12,11],[9,12,12,12],[13,12,15,12],[13,13,15,13],[13,14,18,14],[13,15,18,15],[13,16,18,16],[13,17,18,17],[13,6,15,6],[13,7,15,7],[13,8,15,8],[13,9,15,9],[13,10,15,10],[13,11,15,11],[16,11,18,11],[16,12,18,12],[16,13,18,13],[16,7,18,7],[16,8,18,8],[16,9,18,9],[16,10,18,10],[13,18,18,18],[13,19,18,19],[13,20,18,20],[13,21,18,21],[13,22,18,22],[13,23,18,23],[13,24,15,24],[13,25,15,25],[13,26,15,26],[13,27,15,27],[16,24,18,24],[16,25,18,25],[16,26,18,26],[16,27,18,27],[13,28,15,28],[16,28,18,28],[13,29,15,29],[16,29,18,29],[19,0,24,0],[19,1,20,1],[19,2,20,2],[19,3,21,3],[19,4,21,4],[16,5,18,5],[16,6,18,6],[13,0,18,0],[13,1,14,1],[13,2,14,2],[13,3,15,3],[13,4,15,4],[13,5,15,5],[15,1,16,1],[15,2,16,2],[16,3,18,3],[16,4,18,4],[19,5,21,5],[19,6,21,6],[17,1,18,1],[17,2,18,2],[23,1,24,1],[23,2,24,2],[21,1,22,1],[22,9,24,9],[19,19,24,19],[19,20,24,20],[19,21,24,21],[19,22,24,22],[19,11,21,11],[19,12,21,12],[19,13,21,13],[19,14,24,14],[19,15,24,15],[19,16,24,16],[19,9,21,9],[19,10,21,10],[21,2,22,2],[22,3,24,3],[22,4,24,4],[22,5,24,5],[22,6,24,6],[22,7,24,7],[19,7,21,7],[25,7,27,7],[25,8,27,8],[22,8,24,8],[19,8,21,8],[25,9,27,9],[25,10,27,10],[25,11,27,11],[25,18,30,18],[25,19,30,19],[25,20,30,20],[19,23,24,23],[19,17,24,17],[19,18,24,18],[25,12,27,12],[25,13,27,13],[25,14,30,14],[25,15,30,15],[25,16,30,16],[25,17,30,17],[25,21,30,21],[25,22,30,22],[25,23,30,23],[22,10,24,10],[22,11,24,11],[22,12,24,12],[22,13,24,13],[28,11,30,11],[28,12,30,12],[25,24,27,24],[25,25,27,25],[25,26,27,26],[25,27,27,27],[25,28,27,28],[25,29,27,29],[28,24,30,24],[28,25,30,25],[28,26,30,26],[28,27,30,27],[28,28,30,28],[28,29,30,29],[31,0,36,0],[31,1,32,1],[31,2,32,2],[31,3,33,3],[31,4,33,4],[28,5,30,5],[28,6,30,6],[25,0,30,0],[25,1,26,1],[25,2,26,2],[25,3,27,3],[25,4,27,4],[25,5,27,5],[27,1,28,1],[27,2,28,2],[28,3,30,3],[28,4,30,4],[31,5,33,5],[31,6,33,6],[25,6,27,6],[28,13,30,13],[28,7,30,7],[28,8,30,8],[28,9,30,9],[28,10,30,10],[29,1,30,1],[29,2,30,2],[34,8,36,8],[34,9,36,9],[31,8,33,8],[31,9,33,9],[31,10,33,10],[35,1,36,1],[35,2,36,2],[33,1,34,1],[33,2,34,2],[34,3,36,3],[34,4,36,4],[34,5,36,5],[34,6,36,6],[34,7,36,7],[31,7,33,7],[31,19,36,19],[31,20,36,20],[31,21,36,21],[31,22,36,22],[31,11,33,11],[31,12,33,12],[31,13,33,13],[31,14,36,14],[31,15,36,15],[31,16,36,16],[37,7,39,7],[37,8,39,8],[37,9,39,9],[37,10,39,10],[37,11,39,11],[37,18,42,18],[37,19,42,19],[37,20,42,20],[31,23,36,23],[31,17,36,17],[31,18,36,18],[37,12,39,12],[37,13,39,13],[37,14,42,14],[37,15,42,15],[37,16,42,16],[37,17,42,17],[37,21,42,21],[37,22,42,22],[37,23,42,23],[34,10,36,10],[34,11,36,11],[34,12,36,12],[34,13,36,13],[37,24,39,24],[37,25,39,25],[37,26,39,26],[37,27,39,27],[37,28,39,28],[40,24,42,24],[40,25,42,25],[40,26,42,26],[40,27,42,27],[40,28,42,28],[43,0,48,0],[43,1,44,1],[43,2,44,2],[43,3,45,3],[43,4,45,4],[40,5,42,5],[40,6,42,6],[37,0,42,0],[37,1,38,1],[37,2,38,2],[37,3,39,3],[37,4,39,4],[37,5,39,5],[39,1,40,1],[39,2,40,2],[40,3,42,3],[40,4,42,4],[43,5,45,5],[43,6,45,6],[37,6,39,6],[47,1,48,1],[47,2,48,2],[45,1,46,1],[45,2,46,2],[40,11,42,11],[40,12,42,12],[40,13,42,13],[40,7,42,7],[40,8,42,8],[40,9,42,9],[40,10,42,10],[41,1,42,1],[41,2,42,2],[43,22,48,22],[43,11,45,11],[43,12,45,12],[43,13,45,13],[43,14,48,14],[43,15,48,15],[43,16,48,16],[43,8,45,8],[43,9,45,9],[43,10,45,10],[46,3,48,3],[46,4,48,4],[46,5,48,5],[46,6,48,6],[46,7,48,7],[43,7,45,7],[49,7,51,7],[49,8,51,8],[49,9,51,9],[46,8,48,8],[46,9,48,9],[49,10,51,10],[49,11,51,11],[49,18,54,18],[49,19,54,19],[49,20,54,20],[43,23,48,23],[43,17,48,17],[43,18,48,18],[49,12,51,12],[49,13,51,13],[49,14,54,14],[49,15,54,15],[49,16,54,16],[49,17,54,17],[49,21,54,21],[49,22,54,22],[49,23,54,23],[46,10,48,10],[46,11,48,11],[46,12,48,12],[46,13,48,13],[43,19,48,19],[43,20,48,20],[43,21,48,21],[49,24,51,24],[49,25,51,25],[49,26,51,26],[49,27,51,27],[49,28,51,28],[52,24,54,24],[52,25,54,25],[52,26,54,26],[52,27,54,27],[52,28,54,28],[53,1,54,1],[53,2,54,2],[55,0,60,0],[55,1,56,1],[55,2,56,2],[55,3,57,3],[55,4,57,4],[52,5,54,5],[52,6,54,6],[49,0,54,0],[49,1,50,1],[49,2,50,2],[49,3,51,3],[49,4,51,4],[49,5,51,5],[51,1,52,1],[51,2,52,2],[52,3,54,3],[52,4,54,4],[55,5,57,5],[55,6,57,6],[49,6,51,6],[55,13,57,13],[55,14,60,14],[55,15,60,15],[55,16,60,16],[55,7,57,7],[55,8,57,8],[55,9,57,9],[55,10,57,10],[52,11,54,11],[52,12,54,12],[52,13,54,13],[52,7,54,7],[52,8,54,8],[52,9,54,9],[52,10,54,10],[55,23,60,23],[55,17,60,17],[55,18,60,18],[58,10,60,10],[58,11,60,11],[58,12,60,12],[58,13,60,13],[59,1,60,1],[59,2,60,2],[57,1,58,1],[57,2,58,2],[58,3,60,3],[58,4,60,4],[58,5,60,5],[58,6,60,6],[58,7,60,7],[58,8,60,8],[58,9,60,9],[55,19,60,19],[55,20,60,20],[55,21,60,21],[55,22,60,22],[55,11,57,11],[55,12,57,12]]}
[null,"Wage and Hour Record:",null,"(Contractor Name & Address, Week Ending Date, Contract No. & FPID No., and Project Description retrieved  from Statement of Compliance tab)",null,null,null,null,null,null,null,null,null,null,null,null,null,null,null,null,null,null,null,"Deductions and Fringe Benefits Remarks"]
[]
[null,"Contractor's Name:",{"$f":"IF('Statement of Compliance'!B11=\"\",\"\",'Statement of Compliance'!B11)","v":""},null,null,null,null,null,null,null,null,null,"Address:",null,{"$f":"IF('Statement of Compliance'!B13=\"\",\"\",'Statement of Compliance'!B13)","v":""}]
[]
[null,"Payroll Number:",1,"For Week Ending:",null,null,{"$f":"IF('Statement of Compliance'!I22=\"\",\"\",'Statement of Compliance'!I22)","v":""},null,null,null,null,null,"Contract No.:",null,{"$f":"IF('Statement of Compliance'!J7=\"\",\"\",'Statement of Compliance'!J7)","v":""},null,"Project",null,{"$f":"IF('Statement of Compliance'!G9=\"\",\"\",'Statement of Compliance'!G9)","v":""}]
[null,null,null,null,null,null,null,null,null,null,null,null,null,null,null,null,"Description:"]
[null,"Submission of Final DBRA Certified Payroll Form:",null,null,null,null,false,null,null,null,null,null,"FPID No.:",null,{"$f":"IF('Statement of Compliance'!O7=\"\",\"\",'Statement of Compliance'!O7)","v":""}]
[null,null,null,null,null,null,null,null,null,null,null,null,"                                                                                                                                                                                                                                                                                                                                                 "]
[null,"(1) Employee Information",null,"Straight / Over Time","(2) Day of Work Week, Date, and Hours",null,null,null,null,null,null,null,null,null,"(6) Deductions",null,null,null,null,null,null,null,null,null,"(8) Fringe Benefit Hourly Credit ($/hr) - Fringe Benefit Cost ($/Hr times total hours on project)"]
[null,"\nName - First, MI, Last\nIdentification No.\n(min 4-digits)/\nEmployee Type","\nWork Classification:\nFDOT CRM 'Alias'/\nLabor Code/\nClass Code",null,{"$f":"TEXT(E12,\"ddd\")","v":""},"","","","","","","(3)\nTotal Hours\nST/\nOT","(4)\nPay\nRate\nST/\nOT","(5)\nGross Pay\nProject/  Weekly ",null,null,"OTHER","OTHER","OTHER","OTHER","OTHER","OTHER","Total Deductions","(7)\nEmployee Net Pay ","Metlife","United Health Care","Eddies","N/A","N/A","Total Fringe\nBenefit\nHrly Credit /\nTotal Cost"]
[null,null,null,null,null,null,null,null,null,null,null,null,null,null,"FICA ","Federal Income Tax","Aflac","Child Support","401K","Specify Deduction","Specify Deduction","Specify Deduction",null,null,"Insurance-Health","Insurance-Life","Insurance-Dental","Cash","Vacation/Holiday"]
[null,null,null,null,{"$f":"IF(F12=\"\",\"\",F12-1)","v":""},"","","","","",{"$f":"IF('Statement of Compliance'!I22=\"\",\"\",'Statement of Compliance'!I22)","v":""},null,null,null,null,null,null,null,null,null,null,null,null,null,"87-16224","569953-c","DEN882-1","N/A","N/A"]
[null,null,null,null,null,null,null,null,null,null,null,null,null,null,null,null,null,null,null,null,null,null,null,null,"Funded","Funded","Funded","Unfunded","Funded"]
[1,"Johnny A. Seed","CEMENT MASON","ST",8,8,8,null,null,8,8,{"$f":"SUM(E14:K14)","v":40},15,{"$f":"ROUND(SUM(L14*M14+(L17*M17)),2)","v":780},53.13,58.38,36,96.42,120,0,0,0,{"$f":"SUM(O14:V14)","v":363.93},{"$f":"IF(N17=0,N14-W14,N17-W14)","v":416.07},1.73,0.46,0.26,1,0.6,{"$f":"SUM(Y14:AC14)","v":4.05}]
[]
[null,"0269",{"$f":"IF(C14=\"Select Labor Code\",\"\",VLOOKUP(C14,'Labor Classification Codes'!$A$3:$C$554,2,FALSE))","v":"CRAFTMAN"}]
[null,null,null,"OT",null,null,null,8,null,null,null,{"$f":"SUM(E17:K17)","v":8},{"$f":"ROUND(M14*1.5,2)","v":22.5},0,null,null,null,null,null,null,null,null,null,null,{"$f":"IF($L14=0,0,Y14*($L14+$L17))","v":83.039999999999992},{"$f":"IF($L14=0,0,Z14*($L14+$L17))","v":22.080000000000002},12.48,48,{"$f":"IF($L14=0,0,AC14*($L14+$L17))","v":28.799999999999997},{"$f":"SUM(Y17:AC17)","v":194.39999999999998}]
[null,"Journeyworker ",{"$f":"IF(C14=\"Select Labor Code\",\"\",VLOOKUP(C14,'Labor Classification Codes'!$A$3:$C$554,3,FALSE))","v":"CEMENT MASON"}]
[]
[{"$f":"A14+1","v":2},"Jackson T. Brown","BLOCK MASON","ST",null,null,null,null,null,null,null,{"$f":"SUM(E20:K20)","v":0},16.5,{"$f":"ROUND(SUM(L20*M20+(L23*M23)),2)","v":0},0,0,0,0,0,0,0,0,{"$f":"SUM(O20:V20)","v":0},{"$f":"IF(N23=0,N20-W20,N23-W20)","v":0},0,0,0,0,0,{"$f":"SUM(Y20:AC20)","v":0}]
[]
[null,"8976",{"$f":"IF(C20=\"Select Labor Code\",\"\",VLOOKUP(C20,'Labor Classification Codes'!$A$3:$C$554,2,FALSE))","v":"CRAFTMAN"}]
[null,null,null,"OT",null,null,null,null,null,null,null,{"$f":"SUM(E23:K23)","v":0},{"$f":"ROUND(M20*1.5,2)","v":24.75},0,null,null,null,null,null,null,null,null,null,null,{"$f":"IF($L20=0,0,Y20*($L20+$L23))","v":0},{"$f":"IF($L20=0,0,Z20*($L20+$L23))","v":0},0,0,0,{"$f":"SUM(Y23:AC23)","v":0}]
[null,"Journeyworker ",{"$f":"IF(C20=\"Select Labor Code\",\"\",VLOOKUP(C20,'Labor Classification Codes'!$A$3:$C$554,3,FALSE))","v":"CEMENT MASON"}]
[]
[{"$f":"A20+1","v":3},"Helen O. Troy","BRICKLAYER","ST",null,null,null,null,null,null,null,{"$f":"SUM(E26:K26)","v":0},22.8,{"$f":"ROUND(SUM(L26*M26+(L29*M29)),2)","v":0},0,0,0,0,0,0,0,0,{"$f":"SUM(O26:V26)","v":0},{"$f":"IF(N29=0,N26-W26,N29-W26)","v":0},0,0,0,0,0,{"$f":"SUM(Y26:AC26)","v":0}]
[]
[null,"1137",{"$f":"IF(C26=\"Select Labor Code\",\"\",VLOOKUP(C26,'Labor Classification Codes'!$A$3:$C$554,2,FALSE))","v":"CRAFTMAN"}]
[null,null,null,"OT",null,null,null,null,null,null,null,{"$f":"SUM(E29:K29)","v":0},{"$f":"ROUND(M26*1.5,2)","v":34.200000000000003},0,null,null,null,null,null,null,null,null,null,null,{"$f":"IF($L26=0,0,Y26*($L26+$L29))","v":0},{"$f":"IF($L26=0,0,Z26*($L26+$L29))","v":0},0,0,0,{"$f":"SUM(Y29:AC29)","v":0}]
[null,"Registered Apprentice",{"$f":"IF(C26=\"Select Labor Code\",\"\",VLOOKUP(C26,'Labor Classification Codes'!$A$3:$C$554,3,FALSE))","v":"CEMENT MASON"}]
[]
[{"$f":"A26+1","v":4},"Skyler D. White","MASON","ST",null,null,null,null,null,null,null,{"$f":"SUM(E32:K32)","v":0},17.23,{"$f":"ROUND(SUM(L32*M32+(L35*M35)),2)","v":0},0,0,0,0,0,0,0,0,{"$f":"SUM(O32:V32)","v":0},{"$f":"IF(N35=0,N32-W32,N35-W32)","v":0},0,0,0,0,0,{"$f":"SUM(Y32:AC32)","v":0}]
[]
[null,"568722",{"$f":"IF(C32=\"Select Labor Code\",\"\",VLOOKUP(C32,'Labor Classification Codes'!$A$3:$C$554,2,FALSE))","v":"CRAFTMAN"}]
[null,null,null,"OT",null,null,null,null,null,null,null,{"$f":"SUM(E35:K35)","v":0},{"$f":"ROUND(M32*1.5,2)","v":25.85},0,null,null,null,null,null,null,null,null,null,null,{"$f":"IF($L32=0,0,Y32*($L32+$L35))","v":0},{"$f":"IF($L32=0,0,Z32*($L32+$L35))","v":0},0,0,0,{"$f":"SUM(Y35:AC35)","v":0}]
[null,"Journeyworker ",{"$f":"IF(C32=\"Select Labor Code\",\"\",VLOOKUP(C32,'Labor Classification Codes'!$A$3:$C$554,3,FALSE))","v":"CEMENT MASON"}]
[]
[{"$f":"A32+1","v":5},"Troy B. Atkins","CEMENT MASON","ST",null,null,null,null,null,null,null,{"$f":"SUM(E38:K38)","v":0},32.14,{"$f":"ROUND(SUM(L38*M38+(L41*M41)),2)","v":0},0,0,0,0,0,0,0,0,{"$f":"SUM(O38:V38)","v":0},{"$f":"IF(N41=0,N38-W38,N41-W38)","v":0},0,0,0,0,0,{"$f":"SUM(Y38:AC38)","v":0}]
[]
[null,"000689",{"$f":"IF(C38=\"Select Labor Code\",\"\",VLOOKUP(C38,'Labor Classification Codes'!$A$3:$C$554,2,FALSE))","v":"CRAFTMAN"}]
[null,null,null,"OT",null,null,null,null,null,null,null,{"$f":"SUM(E41:K41)","v":0},{"$f":"ROUND(M38*1.5,2)","v":48.21},0,null,null,null,null,null,null,null,null,null,null,{"$f":"IF($L38=0,0,Y38*($L38+$L41))","v":0},{"$f":"IF($L38=0,0,Z38*($L38+$L41))","v":0},0,0,0,{"$f":"SUM(Y41:AC41)","v":0}]
[null,"Journeyworker ",{"$f":"IF(C38=\"Select Labor Code\",\"\",VLOOKUP(C38,'Labor Classification Codes'!$A$3:$C$554,3,FALSE))","v":"CEMENT MASON"}]
[]
[{"$f":"A38+1","v":6},"Jane M. Marble","MASONBRICKLAYER","ST",null,null,null,null,null,null,null,{"$f":"SUM(E44:K44)","v":0},27.77,{"$f":"ROUND(SUM(L44*M44+(L47*M47)),2)","v":0},0,0,0,0,0,0,0,0,{"$f":"SUM(O44:V44)","v":0},{"$f":"IF(N47=0,N44-W44,N47-W44)","v":0},0,0,0,0,0,{"$f":"SUM(Y44:AC44)","v":0}]
[]
[null,"1976",{"$f":"IF(C44=\"Select Labor Code\",\"\",VLOOKUP(C44,'Labor Classification Codes'!$A$3:$C$554,2,FALSE))","v":"CRAFTMAN"}]
[null,null,null,"OT",null,null,null,null,null,null,null,{"$f":"SUM(E47:K47)","v":0},{"$f":"ROUND(M44*1.5,2)","v":41.66},0,null,null,null,null,null,null,null,null,null,null,{"$f":"IF($L44=0,0,Y44*($L44+$L47))","v":0},{"$f":"IF($L44=0,0,Z44*($L44+$L47))","v":0},0,0,0,{"$f":"SUM(Y47:AC47)","v":0}]
[null,"On-the-Job Training",{"$f":"IF(C44=\"Select Labor Code\",\"\",VLOOKUP(C44,'Labor Classification Codes'!$A$3:$C$554,3,FALSE))","v":"CEMENT MASON"}]
[]
[{"$f":"A44+1","v":7},null,"Select FDOT 'Alias'","ST",null,null,null,null,null,null,null,{"$f":"SUM(E50:K50)","v":0},0,{"$f":"ROUND(SUM(L50*M50+(L53*M53)),2)","v":0},0,0,0,0,0,0,0,0,{"$f":"SUM(O50:V50)","v":0},{"$f":"IF(N53=0,N50-W50,N53-W50)","v":0},0,0,0,0,0,{"$f":"SUM(Y50:AC50)","v":0}]
[]
[null,null,{"$f":"IF(C50=\"Select Labor Code\",\"\",VLOOKUP(C50,'Labor Classification Codes'!$A$3:$C$554,2,FALSE))","v":{"$error":"#N/A"}}]
[null,null,null,"OT",null,null,null,null,null,null,null,{"$f":"SUM(E53:K53)","v":0},{"$f":"ROUND(M50*1.5,2)","v":0},0,null,null,null,null,null,null,null,null,null,null,{"$f":"IF($L50=0,0,Y50*($L50+$L53))","v":0},{"$f":"IF($L50=0,0,Z50*($L50+$L53))","v":0},0,0,0,{"$f":"SUM(Y53:AC53)","v":0}]
[null,"Select Employee Type",{"$f":"IF(C50=\"Select Labor Code\",\"\",VLOOKUP(C50,'Labor Classification Codes'!$A$3:$C$554,3,FALSE))","v":{"$error":"#N/A"}}]
[]
[{"$f":"A50+1","v":8},null,"Select FDOT 'Alias'","ST",null,null,null,null,null,null,null,{"$f":"SUM(E56:K56)","v":0},0,{"$f":"ROUND(SUM(L56*M56+(L59*M59)),2)","v":0},0,0,0,0,0,0,0,0,{"$f":"SUM(O56:V56)","v":0},{"$f":"IF(N59=0,N56-W56,N59-W56)","v":0},0,0,0,0,0,{"$f":"SUM(Y56:AC56)","v":0}]
[]
[null,null,{"$f":"IF(C56=\"Select Labor Code\",\"\",VLOOKUP(C56,'Labor Classification Codes'!$A$3:$C$554,2,FALSE))","v":{"$error":"#N/A"}}]
[null,null,null,"OT",null,null,null,null,null,null,null,{"$f":"SUM(E59:K59)","v":0},{"$f":"ROUND(M56*1.5,2)","v":0},0,null,null,null,null,null,null,null,null,null,null,{"$f":"IF($L56=0,0,Y56*($L56+$L59))","v":0},{"$f":"IF($L56=0,0,Z56*($L56+$L59))","v":0},0,0,0,{"$f":"SUM(Y59:AC59)","v":0}]
[null,"Select Employee Type",{"$f":"IF(C56=\"Select Labor Code\",\"\",VLOOKUP(C56,'Labor Classification Codes'!$A$3:$C$554,3,FALSE))","v":{"$error":"#N/A"}}]

{"sheet":"Wage & Hour Record 11x17- red","index":3,"n_rows":60,"n_cols":30,"rows_kept":60,"cut":false,"hidden":true,"merged":[[4,18,5,20],[0,3,0,20],[19,12,21,12],[19,14,24,14],[22,10,24,10],[22,11,24,11],[22,12,24,12],[19,8,21,8],[19,9,21,9],[4,12,4,13],[4,14,4,15],[4,16,4,17],[9,6,10,6],[9,7,10,7],[9,8,10,8],[9,9,10,9],[9,10,10,10],[4,3,4,5],[6,1,6,5],[11,6,12,6],[5,16,6,17],[17,1,18,1],[13,2,14,2],[15,2,16,2],[9,4,10,4],[9,5,10,5],[11,4,12,4],[9,2,12,2],[19,29,24,29],[19,20,24,20],[19,21,24,21],[19,22,24,22],[19,23,24,23],[19,24,24,24],[19,15,24,15],[19,16,24,16],[19,17,24,17],[19,18,24,18],[19,19,24,19],[19,25,24,25],[19,26,24,26],[19,27,24,27],[19,28,24,28],[11,5,12,5],[19,4,21,4],[13,21,18,21],[13,12,15,12],[16,12,18,12],[21,1,22,1],[22,3,24,3],[22,4,24,4],[23,1,24,1],[22,5,24,5],[19,5,21,5],[19,2,20,2],[21,2,22,2],[23,2,24,2],[13,19,18,19],[13,20,18,20],[13,14,18,14],[8,24,8,29],[9,29,12,29],[13,24,18,24],[13,29,18,29],[9,28,12,28],[13,28,18,28],[13,25,18,25],[13,23,18,23],[13,22,18,22],[13,27,18,27],[13,17,18,17],[10,16,12,16],[10,15,12,15],[10,14,12,14],[8,14,8,22],[0,23,0,29],[1,23,6,29],[13,26,18,26],[13,18,18,18],[9,23,12,23],[11,7,12,7],[11,8,12,8],[10,17,12,17],[10,18,12,18],[10,19,12,19],[10,20,12,20],[10,21,12,21],[11,9,12,9],[11,10,12,10],[16,8,18,8],[2,12,2,13],[13,9,15,9],[16,9,18,9],[13,10,15,10],[16,10,18,10],[9,12,12,12],[9,13,12,13],[9,22,12,22],[2,14,2,20],[25,0,30,0],[25,1,26,1],[25,3,27,3],[25,4,27,4],[25,5,27,5],[25,6,27,6],[25,7,27,7],[25,8,27,8],[16,11,18,11],[13,0,18,0],[15,1,16,1],[19,0,24,0],[19,1,20,1],[19,3,21,3],[25,2,26,2],[27,2,28,2],[29,2,30,2],[13,7,15,7],[16,7,18,7],[13,8,15,8],[13,11,15,11],[16,3,18,3],[13,3,15,3],[13,4,15,4],[25,22,30,22],[25,23,30,23],[25,24,30,24],[9,1,12,1],[9,11,12,11],[6,12,6,13],[6,14,6,15],[13,13,15,13],[16,13,18,13],[19,13,21,13],[22,13,24,13],[25,9,27,9],[25,10,27,10],[25,11,27,11],[25,12,27,12],[25,13,27,13],[25,14,30,14],[25,15,30,15],[8,3,12,3],[8,4,8,10],[13,1,14,1],[13,15,18,15],[13,16,18,16],[19,11,21,11],[25,25,30,25],[25,26,30,26],[25,27,30,27],[25,28,30,28],[25,29,30,29],[27,1,28,1],[28,3,30,3],[28,4,30,4],[28,5,30,5],[28,6,30,6],[28,7,30,7],[28,8,30,8],[28,9,30,9],[28,10,30,10],[28,11,30,11],[28,12,30,12],[28,13,30,13],[29,1,30,1],[25,16,30,16],[25,17,30,17],[25,18,30,18],[25,19,30,19],[25,20,30,20],[25,21,30,21],[31,28,36,28],[31,29,36,29],[33,1,34,1],[34,3,36,3],[34,4,36,4],[34,5,36,5],[34,6,36,6],[34,7,36,7],[34,8,36,8],[34,9,36,9],[34,10,36,10],[34,11,36,11],[34,12,36,12],[34,13,36,13],[35,1,36,1],[31,18,36,18],[31,19,36,19],[31,20,36,20],[31,21,36,21],[31,22,36,22],[31,23,36,23],[31,24,36,24],[31,25,36,25],[31,26,36,26],[37,0,42,0],[37,1,38,1],[37,3,39,3],[37,4,39,4],[37,5,39,5],[37,6,39,6],[37,7,39,7],[37,8,39,8],[31,27,36,27],[31,9,33,9],[31,10,33,10],[31,11,33,11],[31,12,33,12],[31,13,33,13],[31,14,36,14],[31,15,36,15],[31,16,36,16],[31,17,36,17],[31,0,36,0],[31,1,32,1],[31,3,33,3],[31,4,33,4],[31,5,33,5],[31,6,33,6],[37,26,42,26],[37,9,39,9],[37,10,39,10],[37,11,39,11],[37,12,39,12],[37,13,39,13],[37,14,42,14],[37,15,42,15],[37,16,42,16],[37,17,42,17],[37,27,42,27],[37,28,42,28],[37,29,42,29],[39,1,40,1],[40,3,42,3],[40,4,42,4],[40,5,42,5],[40,6,42,6],[40,7,42,7],[40,8,42,8],[40,9,42,9],[40,10,42,10],[40,11,42,11],[40,12,42,12],[40,13,42,13],[41,1,42,1],[37,18,42,18],[37,19,42,19],[37,20,42,20],[37,21,42,21],[37,22,42,22],[37,23,42,23],[37,24,42,24],[37,25,42,25],[43,0,48,0],[43,1,44,1],[43,3,45,3],[43,4,45,4],[43,5,45,5],[43,6,45,6],[43,7,45,7],[43,8,45,8],[43,2,44,2],[45,2,46,2],[47,2,48,2],[43,26,48,26],[43,9,45,9],[43,10,45,10],[43,11,45,11],[43,12,45,12],[43,13,45,13],[43,14,48,14],[43,15,48,15],[43,16,48,16],[43,17,48,17],[43,27,48,27],[43,28,48,28],[43,29,48,29],[45,1,46,1],[46,3,48,3],[46,4,48,4],[46,5,48,5],[46,6,48,6],[46,7,48,7],[46,8,48,8],[46,9,48,9],[46,10,48,10],[46,11,48,11],[46,12,48,12],[46,13,48,13],[47,1,48,1],[43,18,48,18],[43,19,48,19],[43,20,48,20],[43,21,48,21],[43,22,48,22],[43,23,48,23],[43,24,48,24],[43,25,48,25],[49,0,54,0],[49,1,50,1],[49,3,51,3],[49,4,51,4],[49,5,51,5],[49,6,51,6],[49,7,51,7],[49,8,51,8],[49,2,50,2],[51,2,52,2],[53,2,54,2],[49,26,54,26],[49,9,51,9],[49,10,51,10],[49,11,51,11],[49,12,51,12],[49,13,51,13],[49,14,54,14],[49,15,54,15],[49,16,54,16],[49,17,54,17],[49,27,54,27],[49,28,54,28],[49,29,54,29],[51,1,52,1],[52,3,54,3],[52,4,54,4],[52,5,54,5],[52,6,54,6],[52,7,54,7],[52,8,54,8],[52,9,54,9],[52,10,54,10],[52,11,54,11],[52,12,54,12],[52,13,54,13],[53,1,54,1],[49,18,54,18],[49,19,54,19],[49,20,54,20],[49,21,54,21],[49,22,54,22],[49,23,54,23],[49,24,54,24],[49,25,54,25],[55,0,60,0],[55,1,56,1],[55,3,57,3],[55,4,57,4],[55,5,57,5],[55,6,57,6],[55,7,57,7],[55,8,57,8],[55,2,56,2],[57,2,58,2],[59,2,60,2],[55,26,60,26],[55,9,57,9],[55,10,57,10],[55,11,57,11],[55,12,57,12],[55,13,57,13],[55,14,60,14],[55,15,60,15],[55,16,60,16],[55,17,60,17],[55,27,60,27],[55,28,60,28],[55,29,60,29],[57,1,58,1],[58,3,60,3],[58,4,60,4],[58,5,60,5],[58,6,60,6],[58,7,60,7],[58,8,60,8],[58,9,60,9],[58,10,60,10],[58,11,60,11],[58,12,60,12],[58,13,60,13],[59,1,60,1],[55,18,60,18],[55,19,60,19],[55,20,60,20],[55,21,60,21],[55,22,60,22],[55,23,60,23],[55,24,60,24],[55,25,60,25],[31,2,32,2],[33,2,34,2],[35,2,36,2],[37,2,38,2],[39,2,40,2],[41,2,42,2],[4,6,4,10],[2,2,2,10],[31,7,33,7],[31,8,33,8],[16,4,18,4],[13,5,15,5],[16,5,18,5],[13,6,15,6],[16,6,18,6],[22,6,24,6],[22,7,24,7],[19,6,21,6],[19,7,21,7],[22,8,24,8],[22,9,24,9],[19,10,21,10],[17,2,18,2],[8,1,8,2]]}
[null,"Wage and Hour Record:",null,"(Contractor Name & Address, Week Ending Date, Contract No. & FPID No., and Project Description retrieved  from Statement of Compliance tab)",null,null,null,null,null,null,null,null,null,null,null,null,null,null,null,null,null,null,null,"Deductions and Fringe Benefits Remarks"]
[]
[null,"Contractor's Name:",{"$f":"IF('Statement of Compliance'!B11=\"\",\"\",'Statement of Compliance'!B11)","v":""},null,null,null,null,null,null,null,null,null,"Address:",null,{"$f":"IF('Statement of Compliance'!B13=\"\",\"\",'Statement of Compliance'!B13)","v":""}]
[]
[null,"Payroll Number:",1,"For Week Ending:",null,null,{"$f":"IF('Statement of Compliance'!I22=\"\",\"\",'Statement of Compliance'!I22)","v":""},null,null,null,null,null,"Contract No.:",null,{"$f":"IF('Statement of Compliance'!J7=\"\",\"\",'Statement of Compliance'!J7)","v":""},null,"Project",null,{"$f":"IF('Statement of Compliance'!G9=\"\",\"\",'Statement of Compliance'!G9)","v":""}]
[null,null,null,null,null,null,null,null,null,null,null,null,null,null,null,null,"Description:"]
[null,"Submission of Final DBRA Certified Payroll Form:",null,null,null,null,false,null,null,null,null,null,"FPID No.:",null,{"$f":"IF('Statement of Compliance'!O7=\"\",\"\",'Statement of Compliance'!O7)","v":""}]
[null,null,null,null,null,null,null,null,null,null,null,null,"                                                                                                                                                                                                                                                                                                                                                 "]
[null,"(1) Employee Information",null,"Straight / Over Time","(2) Day of Work Week, Date, and Hours",null,null,null,null,null,null,null,null,null,"(6) Deductions",null,null,null,null,null,null,null,null,null,"(8) Fringe Benefits"]
[null,"\nName - First, MI, Last\nIdentification No.\n(min 4-digits)/\nEmployee Type","\nWork Classification:\nFDOT CRM 'Alias'/\nLabor Code/\nClass Code",null,{"$f":"TEXT(E12,\"ddd\")","v":""},"","","","","","","(3)\nTotal Hours\nST/\nOT","(4)\nPay\nRate\nST/\nOT","(5)\nGross Pay\nProject/  Weekly ",null,null,"OTHER","OTHER","OTHER","OTHER","OTHER","OTHER","Total Deductions","(7)\nEmployee Net Pay ","Metlife","United Health Care","Specify FB Name","Specify FB Name"," Total\nFringe\nBenefit","Fringe\nBenefit\nHourly\nCredit"]
[null,null,null,null,null,null,null,null,null,null,null,null,null,null,"FICA ","Federal Income Tax","Aflac","Child Support","401K Deduction","Specify Deduction","Specify Deduction","Specify Deduction",null,null,"Insurance-Dental","Insurance-Health","Select FB Type","Select FB Type"]
[null,null,null,null,{"$f":"IF(F12=\"\",\"\",F12-1)","v":""},"","","","","",{"$f":"IF('Statement of Compliance'!I22=\"\",\"\",'Statement of Compliance'!I22)","v":""},null,null,null,null,null,null,null,null,null,null,null,null,null,"87-16224","569953-c","Specify FB Plan #","Specify FB Plan #"]
[null,null,null,null,null,null,null,null,null,null,null,null,null,null,null,null,null,null,null,null,null,null,null,null,"Unfunded","Funded","Funded","Unfunded"]
[1,"Johnny A. Seed","CEMENT MASON","ST",8,8,8,null,null,8,8,{"$f":"SUM(E14:K14)","v":40},15,{"$f":"ROUND(SUM(L14*M14+(L17*M17)),2)","v":600},53.13,58.38,36,96.42,0,0,0,0,{"$f":"SUM(O14:V14)","v":243.93},{"$f":"IF(N17=0,N14-W14,N17-W14)","v":756.06999999999994},10.46,124.8,0,0,{"$f":"SUM(Y14:AB19)","v":135.26},{"$f":"ROUND(IF(AC14=0,0,IF(L14=0,0,AC14/(L14+L17))),2)","v":3.38}]
[]
[null,"0269",{"$f":"IF(C14=\"Select Labor Code\",\"\",VLOOKUP(C14,'Labor Classification Codes'!$A$3:$C$554,2,FALSE))","v":"CRAFTMAN"}]
[null,null,null,"OT",null,null,null,null,null,null,null,{"$f":"SUM(E17:K17)","v":0},{"$f":"ROUND(M14*1.5,2)","v":22.5},1000]
[null,"Journeyworker ",{"$f":"IF(C14=\"Select Labor Code\",\"\",VLOOKUP(C14,'Labor Classification Codes'!$A$3:$C$554,3,FALSE))","v":"CEMENT MASON"}]
[]
[{"$f":"A14+1","v":2},"Jackson T. Brown","BLOCK MASON","ST",null,null,null,null,null,null,null,{"$f":"SUM(E20:K20)","v":0},16.5,{"$f":"ROUND(SUM(L20*M20+(L23*M23)),2)","v":0},0,0,0,0,0,0,0,0,{"$f":"SUM(O20:V20)","v":0},{"$f":"IF(N23=0,N20-W20,N23-W20)","v":0},0,0,0,0,{"$f":"SUM(Y20:AB25)","v":0},{"$f":"ROUND(IF(AC20=0,0,IF(L20=0,0,AC20/(L20+L23))),2)","v":0}]
[]
[null,"8976",{"$f":"IF(C20=\"Select Labor Code\",\"\",VLOOKUP(C20,'Labor Classification Codes'!$A$3:$C$554,2,FALSE))","v":"CRAFTMAN"}]
[null,null,null,"OT",null,null,null,null,null,null,null,{"$f":"SUM(E23:K23)","v":0},{"$f":"ROUND(M20*1.5,2)","v":24.75},0]
[null,"Journeyworker ",{"$f":"IF(C20=\"Select Labor Code\",\"\",VLOOKUP(C20,'Labor Classification Codes'!$A$3:$C$554,3,FALSE))","v":"CEMENT MASON"}]
[]
[{"$f":"A20+1","v":3},"Helen O. Troy","BRICKLAYER","ST",null,null,null,null,null,null,null,{"$f":"SUM(E26:K26)","v":0},22.8,{"$f":"ROUND(SUM(L26*M26+(L29*M29)),2)","v":0},0,0,0,0,0,0,0,0,{"$f":"SUM(O26:V26)","v":0},{"$f":"IF(N29=0,N26-W26,N29-W26)","v":0},0,0,0,0,{"$f":"SUM(Y26:AB31)","v":0},{"$f":"ROUND(IF(AC26=0,0,IF(L26=0,0,AC26/(L26+L29))),2)","v":0}]
[]
[null,"1137",{"$f":"IF(C26=\"Select Labor Code\",\"\",VLOOKUP(C26,'Labor Classification Codes'!$A$3:$C$554,2,FALSE))","v":"CRAFTMAN"}]
[null,null,null,"OT",null,null,null,null,null,null,null,{"$f":"SUM(E29:K29)","v":0},{"$f":"ROUND(M26*1.5,2)","v":34.200000000000003},0]
[null,"Registered Apprentice",{"$f":"IF(C26=\"Select Labor Code\",\"\",VLOOKUP(C26,'Labor Classification Codes'!$A$3:$C$554,3,FALSE))","v":"CEMENT MASON"}]
[]
[{"$f":"A26+1","v":4},"Skyler D. White","MASON","ST",null,null,null,null,null,null,null,{"$f":"SUM(E32:K32)","v":0},17.23,{"$f":"ROUND(SUM(L32*M32+(L35*M35)),2)","v":0},0,0,0,0,0,0,0,0,{"$f":"SUM(O32:V32)","v":0},{"$f":"IF(N35=0,N32-W32,N35-W32)","v":0},0,0,0,0,{"$f":"SUM(Y32:AB37)","v":0},{"$f":"ROUND(IF(AC32=0,0,IF(L32=0,0,AC32/(L32+L35))),2)","v":0}]
[]
[null,"568722",{"$f":"IF(C32=\"Select Labor Code\",\"\",VLOOKUP(C32,'Labor Classification Codes'!$A$3:$C$554,2,FALSE))","v":"CRAFTMAN"}]
[null,null,null,"OT",null,null,null,null,null,null,null,{"$f":"SUM(E35:K35)","v":0},{"$f":"ROUND(M32*1.5,2)","v":25.85},0]
[null,"Journeyworker ",{"$f":"IF(C32=\"Select Labor Code\",\"\",VLOOKUP(C32,'Labor Classification Codes'!$A$3:$C$554,3,FALSE))","v":"CEMENT MASON"}]
[]
[{"$f":"A32+1","v":5},"Troy B. Atkins","CEMENT MASON","ST",null,null,null,null,null,null,null,{"$f":"SUM(E38:K38)","v":0},32.14,{"$f":"ROUND(SUM(L38*M38+(L41*M41)),2)","v":0},0,0,0,0,0,0,0,0,{"$f":"SUM(O38:V38)","v":0},{"$f":"IF(N41=0,N38-W38,N41-W38)","v":0},0,0,0,0,{"$f":"SUM(Y38:AB43)","v":0},{"$f":"ROUND(IF(AC38=0,0,IF(L38=0,0,AC38/(L38+L41))),2)","v":0}]
[]
[null,"000689",{"$f":"IF(C38=\"Select Labor Code\",\"\",VLOOKUP(C38,'Labor Classification Codes'!$A$3:$C$554,2,FALSE))","v":"CRAFTMAN"}]
[null,null,null,"OT",null,null,null,null,null,null,null,{"$f":"SUM(E41:K41)","v":0},{"$f":"ROUND(M38*1.5,2)","v":48.21},0]
[null,"Journeyworker ",{"$f":"IF(C38=\"Select Labor Code\",\"\",VLOOKUP(C38,'Labor Classification Codes'!$A$3:$C$554,3,FALSE))","v":"CEMENT MASON"}]
[]
[{"$f":"A38+1","v":6},"Jane M. Marble","MASONBRICKLAYER","ST",null,null,null,null,null,null,null,{"$f":"SUM(E44:K44)","v":0},27.77,{"$f":"ROUND(SUM(L44*M44+(L47*M47)),2)","v":0},0,0,0,0,0,0,0,0,{"$f":"SUM(O44:V44)","v":0},{"$f":"IF(N47=0,N44-W44,N47-W44)","v":0},0,0,0,0,{"$f":"SUM(Y44:AB49)","v":0},{"$f":"ROUND(IF(AC44=0,0,IF(L44=0,0,AC44/(L44+L47))),2)","v":0}]
[]
[null,"1976",{"$f":"IF(C44=\"Select Labor Code\",\"\",VLOOKUP(C44,'Labor Classification Codes'!$A$3:$C$554,2,FALSE))","v":"CRAFTMAN"}]
[null,null,null,"OT",null,null,null,null,null,null,null,{"$f":"SUM(E47:K47)","v":0},{"$f":"ROUND(M44*1.5,2)","v":41.66},0]
[null,"On-the-Job Training",{"$f":"IF(C44=\"Select Labor Code\",\"\",VLOOKUP(C44,'Labor Classification Codes'!$A$3:$C$554,3,FALSE))","v":"CEMENT MASON"}]
[]
[{"$f":"A44+1","v":7},null,"Select FDOT 'Alias'","ST",null,null,null,null,null,null,null,{"$f":"SUM(E50:K50)","v":0},0,{"$f":"ROUND(SUM(L50*M50+(L53*M53)),2)","v":0},0,0,0,0,0,0,0,0,{"$f":"SUM(O50:V50)","v":0},{"$f":"IF(N53=0,N50-W50,N53-W50)","v":0},0,0,0,0,{"$f":"SUM(Y50:AB55)","v":0},{"$f":"ROUND(IF(AC50=0,0,IF(L50=0,0,AC50/(L50+L53))),2)","v":0}]
[]
[null,null,{"$f":"IF(C50=\"Select Labor Code\",\"\",VLOOKUP(C50,'Labor Classification Codes'!$A$3:$C$554,2,FALSE))","v":{"$error":"#N/A"}}]
[null,null,null,"OT",null,null,null,null,null,null,null,{"$f":"SUM(E53:K53)","v":0},{"$f":"ROUND(M50*1.5,2)","v":0},0]
[null,"Select Employee Type",{"$f":"IF(C50=\"Select Labor Code\",\"\",VLOOKUP(C50,'Labor Classification Codes'!$A$3:$C$554,3,FALSE))","v":{"$error":"#N/A"}}]
[]
[{"$f":"A50+1","v":8},null,"Select FDOT 'Alias'","ST",null,null,null,null,null,null,null,{"$f":"SUM(E56:K56)","v":0},0,{"$f":"ROUND(SUM(L56*M56+(L59*M59)),2)","v":0},0,0,0,0,0,0,0,0,{"$f":"SUM(O56:V56)","v":0},{"$f":"IF(N59=0,N56-W56,N59-W56)","v":0},0,0,0,0,{"$f":"SUM(Y56:AB61)","v":0},{"$f":"ROUND(IF(AC56=0,0,IF(L56=0,0,AC56/(L56+L59))),2)","v":0}]
[]
[null,null,{"$f":"IF(C56=\"Select Labor Code\",\"\",VLOOKUP(C56,'Labor Classification Codes'!$A$3:$C$554,2,FALSE))","v":{"$error":"#N/A"}}]
[null,null,null,"OT",null,null,null,null,null,null,null,{"$f":"SUM(E59:K59)","v":0},{"$f":"ROUND(M56*1.5,2)","v":0},0]
[null,"Select Employee Type",{"$f":"IF(C56=\"Select Labor Code\",\"\",VLOOKUP(C56,'Labor Classification Codes'!$A$3:$C$554,3,FALSE))","v":{"$error":"#N/A"}}]

{"sheet":"Wage & Hour Record","index":4,"n_rows":192,"n_cols":18,"rows_kept":192,"cut":false,"hidden":false,"merged":[[0,5,0,16],[58,8,60,8],[59,1,60,1],[55,9,57,9],[55,10,57,10],[55,11,57,11],[55,12,57,12],[55,13,57,13],[55,14,60,14],[55,15,60,15],[55,16,60,16],[8,16,8,17],[9,16,12,16],[9,17,12,17],[13,17,18,17],[13,14,18,14],[13,15,18,15],[13,16,18,16],[13,13,15,13],[13,8,15,8],[13,9,15,9],[13,10,15,10],[13,11,15,11],[13,12,15,12],[19,16,24,16],[22,13,24,13],[59,2,60,2],[49,9,51,9],[49,10,51,10],[49,11,51,11],[49,12,51,12],[49,13,51,13],[49,14,54,14],[49,15,54,15],[49,16,54,16],[53,2,54,2],[55,17,60,17],[58,9,60,9],[58,10,60,10],[58,11,60,11],[58,12,60,12],[58,13,60,13],[55,0,60,0],[55,1,56,1],[55,2,56,2],[55,3,57,3],[55,4,57,4],[55,5,57,5],[55,6,57,6],[55,7,57,7],[55,8,57,8],[57,1,58,1],[57,2,58,2],[58,3,60,3],[58,4,60,4],[58,5,60,5],[58,6,60,6],[58,7,60,7],[49,17,54,17],[52,9,54,9],[52,10,54,10],[52,11,54,11],[52,12,54,12],[52,13,54,13],[49,0,54,0],[49,1,50,1],[49,2,50,2],[49,3,51,3],[49,4,51,4],[49,5,51,5],[49,6,51,6],[49,7,51,7],[49,8,51,8],[51,1,52,1],[51,2,52,2],[52,3,54,3],[52,4,54,4],[52,5,54,5],[52,6,54,6],[52,7,54,7],[52,8,54,8],[53,1,54,1],[22,11,24,11],[16,11,18,11],[16,12,18,12],[16,8,18,8],[16,9,18,9],[16,10,18,10],[19,7,21,7],[19,8,21,8],[19,9,21,9],[19,10,21,10],[19,11,21,11],[19,12,21,12],[22,12,24,12],[9,2,12,2],[4,3,4,5],[9,14,12,14],[9,15,12,15],[11,4,12,4],[11,5,12,5],[11,6,12,6],[11,7,12,7],[11,8,12,8],[4,15,5,17],[5,13,6,14],[6,1,6,5],[8,3,12,3],[8,4,8,10],[9,11,12,11],[9,12,12,12],[11,9,12,9],[11,10,12,10],[9,13,12,13],[19,0,24,0],[19,1,20,1],[19,3,21,3],[19,4,21,4],[19,5,21,5],[19,6,21,6],[16,5,18,5],[16,6,18,6],[16,7,18,7],[13,0,18,0],[13,1,14,1],[13,3,15,3],[13,4,15,4],[13,5,15,5],[15,1,16,1],[16,3,18,3],[16,4,18,4],[17,1,18,1],[13,6,15,6],[13,7,15,7],[21,1,22,1],[22,3,24,3],[22,4,24,4],[22,5,24,5],[23,1,24,1],[22,6,24,6],[22,7,24,7],[25,0,30,0],[25,1,26,1],[25,3,27,3],[25,4,27,4],[25,5,27,5],[25,6,27,6],[25,7,27,7],[25,8,27,8],[27,1,28,1],[28,3,30,3],[28,4,30,4],[28,5,30,5],[28,6,30,6],[28,7,30,7],[28,8,30,8],[29,1,30,1],[25,9,27,9],[25,11,27,11],[31,12,33,12],[31,13,33,13],[25,12,27,12],[25,13,27,13],[31,17,36,17],[34,9,36,9],[34,10,36,10],[34,11,36,11],[34,12,36,12],[25,14,30,14],[25,15,30,15],[25,16,30,16],[25,17,30,17],[28,9,30,9],[28,10,30,10],[28,11,30,11],[28,12,30,12],[28,13,30,13],[31,14,36,14],[31,15,36,15],[31,16,36,16],[31,9,33,9],[31,10,33,10],[25,10,27,10],[31,0,36,0],[31,1,32,1],[31,3,33,3],[31,4,33,4],[31,5,33,5],[31,6,33,6],[31,7,33,7],[31,8,33,8],[33,1,34,1],[34,3,36,3],[34,4,36,4],[34,5,36,5],[34,6,36,6],[34,7,36,7],[34,8,36,8],[37,9,39,9],[37,10,39,10],[40,11,42,11],[40,12,42,12],[34,13,36,13],[37,7,39,7],[37,8,39,8],[39,1,40,1],[40,3,42,3],[40,4,42,4],[40,5,42,5],[40,6,42,6],[40,7,42,7],[40,8,42,8],[41,1,42,1],[39,2,40,2],[41,2,42,2],[35,1,36,1],[31,11,33,11],[37,12,39,12],[37,13,39,13],[37,11,39,11],[43,0,48,0],[43,1,44,1],[43,3,45,3],[43,4,45,4],[43,5,45,5],[43,6,45,6],[37,0,42,0],[37,1,38,1],[37,3,39,3],[37,4,39,4],[37,5,39,5],[37,6,39,6],[43,7,45,7],[43,8,45,8],[45,1,46,1],[46,3,48,3],[46,4,48,4],[46,5,48,5],[46,6,48,6],[46,7,48,7],[46,8,48,8],[47,1,48,1],[43,2,44,2],[2,9,2,10],[4,9,4,10],[6,9,6,10],[43,9,45,9],[43,10,45,10],[13,2,14,2],[15,2,16,2],[17,2,18,2],[19,2,20,2],[21,2,22,2],[23,2,24,2],[25,2,26,2],[27,2,28,2],[29,2,30,2],[31,2,32,2],[33,2,34,2],[35,2,36,2],[37,2,38,2],[40,9,42,9],[40,10,42,10],[9,8,10,8],[9,9,10,9],[9,10,10,10],[8,1,8,2],[22,8,24,8],[22,9,24,9],[22,10,24,10],[9,1,12,1],[9,4,10,4],[9,5,10,5],[9,6,10,6],[9,7,10,7],[65,1,66,1],[65,2,66,2],[2,11,2,17],[4,11,4,12],[6,11,6,12],[4,13,4,14],[46,12,48,12],[46,13,48,13],[43,14,48,14],[43,15,48,15],[43,16,48,16],[43,17,48,17],[46,11,48,11],[37,15,42,15],[37,16,42,16],[37,17,42,17],[43,11,45,11],[43,12,45,12],[43,13,45,13],[37,14,42,14],[40,13,42,13],[16,13,18,13],[19,17,24,17],[19,13,21,13],[19,14,24,14],[19,15,24,15],[46,9,48,9],[46,10,48,10],[45,2,46,2],[47,2,48,2],[2,2,2,8],[4,6,4,8],[71,2,72,2],[61,9,63,9],[61,10,63,10],[61,11,63,11],[61,12,63,12],[61,13,63,13],[61,14,66,14],[61,15,66,15],[61,16,66,16],[61,17,66,17],[64,9,66,9],[64,10,66,10],[64,11,66,11],[64,12,66,12],[64,13,66,13],[61,0,66,0],[61,1,62,1],[61,2,62,2],[61,3,63,3],[61,4,63,4],[61,5,63,5],[61,6,63,6],[61,7,63,7],[61,8,63,8],[63,1,64,1],[63,2,64,2],[64,3,66,3],[64,4,66,4],[64,5,66,5],[64,6,66,6],[64,7,66,7],[64,8,66,8],[67,9,69,9],[67,10,69,10],[67,11,69,11],[67,12,69,12],[67,13,69,13],[67,14,72,14],[67,15,72,15],[67,16,72,16],[67,17,72,17],[70,9,72,9],[70,10,72,10],[70,11,72,11],[70,12,72,12],[70,13,72,13],[67,0,72,0],[67,1,68,1],[67,2,68,2],[67,3,69,3],[67,4,69,4],[67,5,69,5],[67,6,69,6],[67,7,69,7],[67,8,69,8],[69,1,70,1],[69,2,70,2],[70,3,72,3],[70,4,72,4],[70,5,72,5],[70,6,72,6],[70,7,72,7],[70,8,72,8],[71,1,72,1],[73,0,78,0],[73,1,74,1],[73,2,74,2],[73,3,75,3],[73,4,75,4],[73,5,75,5],[73,6,75,6],[73,7,75,7],[73,8,75,8],[75,1,76,1],[75,2,76,2],[76,3,78,3],[76,4,78,4],[76,5,78,5],[76,6,78,6],[76,7,78,7],[76,8,78,8],[77,1,78,1],[77,2,78,2],[82,8,84,8],[83,1,84,1],[83,2,84,2],[73,9,75,9],[73,10,75,10],[73,11,75,11],[73,12,75,12],[73,13,75,13],[73,14,78,14],[73,15,78,15],[73,16,78,16],[73,17,78,17],[76,9,78,9],[76,10,78,10],[76,11,78,11],[76,12,78,12],[76,13,78,13],[89,1,90,1],[89,2,90,2],[79,9,81,9],[79,10,81,10],[79,11,81,11],[79,12,81,12],[79,13,81,13],[79,14,84,14],[79,15,84,15],[79,16,84,16],[79,17,84,17],[82,9,84,9],[82,10,84,10],[82,11,84,11],[82,12,84,12],[82,13,84,13],[79,0,84,0],[79,1,80,1],[79,2,80,2],[79,3,81,3],[79,4,81,4],[79,5,81,5],[79,6,81,6],[79,7,81,7],[79,8,81,8],[81,1,82,1],[81,2,82,2],[82,3,84,3],[82,4,84,4],[82,5,84,5],[82,6,84,6],[82,7,84,7],[95,2,96,2],[85,9,87,9],[85,10,87,10],[85,11,87,11],[85,12,87,12],[85,13,87,13],[85,14,90,14],[85,15,90,15],[85,16,90,16],[85,17,90,17],[88,9,90,9],[88,10,90,10],[88,11,90,11],[88,12,90,12],[88,13,90,13],[85,0,90,0],[85,1,86,1],[85,2,86,2],[85,3,87,3],[85,4,87,4],[85,5,87,5],[85,6,87,6],[85,7,87,7],[85,8,87,8],[87,1,88,1],[87,2,88,2],[88,3,90,3],[88,4,90,4],[88,5,90,5],[88,6,90,6],[88,7,90,7],[88,8,90,8],[91,9,93,9],[91,10,93,10],[91,11,93,11],[91,12,93,12],[91,13,93,13],[91,14,96,14],[91,15,96,15],[91,16,96,16],[91,17,96,17],[94,9,96,9],[94,10,96,10],[94,11,96,11],[94,12,96,12],[94,13,96,13],[91,0,96,0],[91,1,92,1],[91,2,92,2],[91,3,93,3],[91,4,93,4],[91,5,93,5],[91,6,93,6],[91,7,93,7],[91,8,93,8],[93,1,94,1],[93,2,94,2],[94,3,96,3],[94,4,96,4],[94,5,96,5],[94,6,96,6],[94,7,96,7],[94,8,96,8],[95,1,96,1],[97,0,102,0],[97,1,98,1],[97,2,98,2],[97,3,99,3],[97,4,99,4],[97,5,99,5],[97,6,99,6],[97,7,99,7],[97,8,99,8],[99,1,100,1],[99,2,100,2],[100,3,102,3],[100,4,102,4],[100,5,102,5],[100,6,102,6],[100,7,102,7],[100,8,102,8],[101,1,102,1],[101,2,102,2],[106,8,108,8],[107,1,108,1],[107,2,108,2],[97,9,99,9],[97,10,99,10],[97,11,99,11],[97,12,99,12],[97,13,99,13],[97,14,102,14],[97,15,102,15],[97,16,102,16],[97,17,102,17],[100,9,102,9],[100,10,102,10],[100,11,102,11],[100,12,102,12],[100,13,102,13],[113,1,114,1],[113,2,114,2],[103,9,105,9],[103,10,105,10],[103,11,105,11],[103,12,105,12],[103,13,105,13],[103,14,108,14],[103,15,108,15],[103,16,108,16],[103,17,108,17],[106,9,108,9],[106,10,108,10],[106,11,108,11],[106,12,108,12],[106,13,108,13],[103,0,108,0],[103,1,104,1],[103,2,104,2],[103,3,105,3],[103,4,105,4],[103,5,105,5],[103,6,105,6],[103,7,105,7],[103,8,105,8],[105,1,106,1],[105,2,106,2],[106,3,108,3],[106,4,108,4],[106,5,108,5],[106,6,108,6],[106,7,108,7],[119,2,120,2],[109,9,111,9],[109,10,111,10],[109,11,111,11],[109,12,111,12],[109,13,111,13],[109,14,114,14],[109,15,114,15],[109,16,114,16],[109,17,114,17],[112,9,114,9],[112,10,114,10],[112,11,114,11],[112,12,114,12],[112,13,114,13],[109,0,114,0],[109,1,110,1],[109,2,110,2],[109,3,111,3],[109,4,111,4],[109,5,111,5],[109,6,111,6],[109,7,111,7],[109,8,111,8],[111,1,112,1],[111,2,112,2],[112,3,114,3],[112,4,114,4],[112,5,114,5],[112,6,114,6],[112,7,114,7],[112,8,114,8],[115,9,117,9],[115,10,117,10],[115,11,117,11],[115,12,117,12],[115,13,117,13],[115,14,120,14],[115,15,120,15],[115,16,120,16],[115,17,120,17],[118,9,120,9],[118,10,120,10],[118,11,120,11],[118,12,120,12],[118,13,120,13],[115,0,120,0],[115,1,116,1],[115,2,116,2],[115,3,117,3],[115,4,117,4],[115,5,117,5],[115,6,117,6],[115,7,117,7],[115,8,117,8],[117,1,118,1],[117,2,118,2],[118,3,120,3],[118,4,120,4],[118,5,120,5],[118,6,120,6],[118,7,120,7],[118,8,120,8],[119,1,120,1],[121,0,126,0],[121,1,122,1],[121,2,122,2],[121,3,123,3],[121,4,123,4],[121,5,123,5],[121,6,123,6],[121,7,123,7],[121,8,123,8],[123,1,124,1],[123,2,124,2],[124,3,126,3],[124,4,126,4],[124,5,126,5],[124,6,126,6],[124,7,126,7],[124,8,126,8],[125,1,126,1],[125,2,126,2],[130,8,132,8],[131,1,132,1],[131,2,132,2],[121,9,123,9],[121,10,123,10],[121,11,123,11],[121,12,123,12],[121,13,123,13],[121,14,126,14],[121,15,126,15],[121,16,126,16],[121,17,126,17],[124,9,126,9],[124,10,126,10],[124,11,126,11],[124,12,126,12],[124,13,126,13],[137,1,138,1],[137,2,138,2],[127,9,129,9],[127,10,129,10],[127,11,129,11],[127,12,129,12],[127,13,129,13],[127,14,132,14],[127,15,132,15],[127,16,132,16],[127,17,132,17],[130,9,132,9],[130,10,132,10],[130,11,132,11],[130,12,132,12],[130,13,132,13],[127,0,132,0],[127,1,128,1],[127,2,128,2],[127,3,129,3],[127,4,129,4],[127,5,129,5],[127,6,129,6],[127,7,129,7],[127,8,129,8],[129,1,130,1],[129,2,130,2],[130,3,132,3],[130,4,132,4],[130,5,132,5],[130,6,132,6],[130,7,132,7],[143,2,144,2],[133,9,135,9],[133,10,135,10],[133,11,135,11],[133,12,135,12],[133,13,135,13],[133,14,138,14],[133,15,138,15],[133,16,138,16],[133,17,138,17],[136,9,138,9],[136,10,138,10],[136,11,138,11],[136,12,138,12],[136,13,138,13],[133,0,138,0],[133,1,134,1],[133,2,134,2],[133,3,135,3],[133,4,135,4],[133,5,135,5],[133,6,135,6],[133,7,135,7],[133,8,135,8],[135,1,136,1],[135,2,136,2],[136,3,138,3],[136,4,138,4],[136,5,138,5],[136,6,138,6],[136,7,138,7],[136,8,138,8],[139,9,141,9],[139,10,141,10],[139,11,141,11],[139,12,141,12],[139,13,141,13],[139,14,144,14],[139,15,144,15],[139,16,144,16],[139,17,144,17],[142,9,144,9],[142,10,144,10],[142,11,144,11],[142,12,144,12],[142,13,144,13],[139,0,144,0],[139,1,140,1],[139,2,140,2],[139,3,141,3],[139,4,141,4],[139,5,141,5],[139,6,141,6],[139,7,141,7],[139,8,141,8],[141,1,142,1],[141,2,142,2],[142,3,144,3],[142,4,144,4],[142,5,144,5],[142,6,144,6],[142,7,144,7],[142,8,144,8],[143,1,144,1],[145,0,150,0],[145,1,146,1],[145,2,146,2],[145,3,147,3],[145,4,147,4],[145,5,147,5],[145,6,147,6],[145,7,147,7],[145,8,147,8],[147,1,148,1],[147,2,148,2],[148,3,150,3],[148,4,150,4],[148,5,150,5],[148,6,150,6],[148,7,150,7],[148,8,150,8],[149,1,150,1],[149,2,150,2],[154,8,156,8],[155,1,156,1],[155,2,156,2],[145,9,147,9],[145,10,147,10],[145,11,147,11],[145,12,147,12],[145,13,147,13],[145,14,150,14],[145,15,150,15],[145,16,150,16],[145,17,150,17],[148,9,150,9],[148,10,150,10],[148,11,150,11],[148,12,150,12],[148,13,150,13],[161,1,162,1],[161,2,162,2],[151,9,153,9],[151,10,153,10],[151,11,153,11],[151,12,153,12],[151,13,153,13],[151,14,156,14],[151,15,156,15],[151,16,156,16],[151,17,156,17],[154,9,156,9],[154,10,156,10],[154,11,156,11],[154,12,156,12],[154,13,156,13],[151,0,156,0],[151,1,152,1],[151,2,152,2],[151,3,153,3],[151,4,153,4],[151,5,153,5],[151,6,153,6],[151,7,153,7],[151,8,153,8],[153,1,154,1],[153,2,154,2],[154,3,156,3],[154,4,156,4],[154,5,156,5],[154,6,156,6],[154,7,156,7],[167,2,168,2],[157,9,159,9],[157,10,159,10],[157,11,159,11],[157,12,159,12],[157,13,159,13],[157,14,162,14],[157,15,162,15],[157,16,162,16],[157,17,162,17],[160,9,162,9],[160,10,162,10],[160,11,162,11],[160,12,162,12],[160,13,162,13],[157,0,162,0],[157,1,158,1],[157,2,158,2],[157,3,159,3],[157,4,159,4],[157,5,159,5],[157,6,159,6],[157,7,159,7],[157,8,159,8],[159,1,160,1],[159,2,160,2],[160,3,162,3],[160,4,162,4],[160,5,162,5],[160,6,162,6],[160,7,162,7],[160,8,162,8],[163,9,165,9],[163,10,165,10],[163,11,165,11],[163,12,165,12],[163,13,165,13],[163,14,168,14],[163,15,168,15],[163,16,168,16],[163,17,168,17],[166,9,168,9],[166,10,168,10],[166,11,168,11],[166,12,168,12],[166,13,168,13],[163,0,168,0],[163,1,164,1],[163,2,164,2],[163,3,165,3],[163,4,165,4],[163,5,165,5],[163,6,165,6],[163,7,165,7],[163,8,165,8],[165,1,166,1],[165,2,166,2],[166,3,168,3],[166,4,168,4],[166,5,168,5],[166,6,168,6],[166,7,168,7],[166,8,168,8],[167,1,168,1],[169,0,174,0],[169,1,170,1],[169,2,170,2],[169,3,171,3],[169,4,171,4],[169,5,171,5],[169,6,171,6],[169,7,171,7],[169,8,171,8],[171,1,172,1],[171,2,172,2],[172,3,174,3],[172,4,174,4],[172,5,174,5],[172,6,174,6],[172,7,174,7],[172,8,174,8],[173,1,174,1],[173,2,174,2],[178,8,180,8],[179,1,180,1],[179,2,180,2],[169,9,171,9],[169,10,171,10],[169,11,171,11],[169,12,171,12],[169,13,171,13],[169,14,174,14],[169,15,174,15],[169,16,174,16],[169,17,174,17],[172,9,174,9],[172,10,174,10],[172,11,174,11],[172,12,174,12],[172,13,174,13],[185,1,186,1],[185,2,186,2],[175,9,177,9],[175,10,177,10],[175,11,177,11],[175,12,177,12],[175,13,177,13],[175,14,180,14],[175,15,180,15],[175,16,180,16],[175,17,180,17],[178,9,180,9],[178,10,180,10],[178,11,180,11],[178,12,180,12],[178,13,180,13],[175,0,180,0],[175,1,176,1],[175,2,176,2],[175,3,177,3],[175,4,177,4],[175,5,177,5],[175,6,177,6],[175,7,177,7],[175,8,177,8],[177,1,178,1],[177,2,178,2],[178,3,180,3],[178,4,180,4],[178,5,180,5],[178,6,180,6],[178,7,180,7],[191,2,192,2],[181,9,183,9],[181,10,183,10],[181,11,183,11],[181,12,183,12],[181,13,183,13],[181,14,186,14],[181,15,186,15],[181,16,186,16],[181,17,186,17],[184,9,186,9],[184,10,186,10],[184,11,186,11],[184,12,186,12],[184,13,186,13],[181,0,186,0],[181,1,182,1],[181,2,182,2],[181,3,183,3],[181,4,183,4],[181,5,183,5],[181,6,183,6],[181,7,183,7],[181,8,183,8],[183,1,184,1],[183,2,184,2],[184,3,186,3],[184,4,186,4],[184,5,186,5],[184,6,186,6],[184,7,186,7],[184,8,186,8],[187,9,189,9]],"merged_total":1031,"flags":["merged_cut"]}
[null,"Wage and Hour Record:",null,null,null,"(Contractor Name & Address, Week Ending Date, Contract No. & FPID No., and Project Description retrieved  from Statement of Compliance tab)"]
[]
[null,"Contractor's Name:",{"$f":"IF('Statement of Compliance'!B11=\"\",\"\",'Statement of Compliance'!B11)","v":""},null,null,null,null,null,null,"Address:",null,{"$f":"IF('Statement of Compliance'!B13=\"\",\"\",'Statement of Compliance'!B13)","v":""}]
[]
[null,"Payroll Number:",null,"For Week Ending:",null,null,{"$f":"IF('Statement of Compliance'!I22=\"\",\"\",'Statement of Compliance'!I22)","v":""},null,null,"Contract No.:",null,{"$f":"IF('Statement of Compliance'!J7=\"\",\"\",'Statement of Compliance'!J7)","v":""},null,"Project",null,{"$f":"IF('Statement of Compliance'!G9=\"\",\"\",'Statement of Compliance'!G9)","v":""}]
[null,null,null,null,null,null,null,null,null,null,null,null,null,"Description:"]
[null,"Submission of Final DBRA Certified Payroll Form:",null,null,null,null,false,null,null,"FPID No.:",null,{"$f":"IF('Statement of Compliance'!O7=\"\",\"\",'Statement of Compliance'!O7)","v":""}]
[null,null,null,null,null,null,null,null,null,null,null,null,"                                                                                                                                                                                                                                                                                                                                                 "]
[null,"(1) Employee Information",null,"Straight / Over Time","(2) Day of Work Week, Date, and Hours",null,null,null,null,null,null,null,null,null,null,null,"(8) Fridge Benefits"]
[null,"\nName - First, MI, Last\nIdentification No.\n(min 4-digits)/\nEmployee Type","\nWork Classification:\nFDOT CRM 'Alias'/\nLabor Code/\nClass Code",null,{"$f":"TEXT(E12,\"ddd\")","v":""},"","","","","","","(3)\nTotal Hours\nST/\nOT","(4)\nPay Rate\nST/\nOT","(5)\nGross Pay\nProject/  Weekly ","(6)\nTotal from Deductions Record","(7)\nEmployee \nNet Pay","\nTotal Hourly Credit from\nFB Record","\nTotal\nFringe\nBenefit\n"]
[]
[null,null,null,null,{"$f":"IF(F12=\"\",\"\",F12-1)","v":""},"","","","","",{"$f":"IF(ISBLANK(G5),\"\",G5)","v":""}]
[]
[1,null,"Select FDOT 'Alias'","ST",null,null,null,null,null,null,null,{"$f":"SUM(E14:K14)","v":0},null,{"$f":"ROUND((L14*M14)+(L17*M17),2)","v":0},{"$f":"'Deduction Record'!O10","v":0},{"$f":"IF(N17=0,0,N17-O14)","v":0},{"$f":"'Fringe Record'!S12","v":0},{"$f":"ROUND(IF(Q14=0,0,IF(L14=0,0,Q14*(L14+L17))),2)","v":0}]
[]
[null,null,{"$f":"IF(C14=\"Select Labor Code\",\"\",VLOOKUP(C14,'Labor Classification Codes'!$A$3:$C$554,2,FALSE))","v":{"$error":"#N/A"}}]
[null,null,null,"OT",null,null,null,null,null,null,null,{"$f":"SUM(E17:K17)","v":0},{"$f":"ROUND(M14*1.5,2)","v":0},0]
[null,"Select Employee Type",{"$f":"IF(C14=\"Select Labor Code\",\"\",VLOOKUP(C14,'Labor Classification Codes'!$A$3:$C$554,3,FALSE))","v":{"$error":"#N/A"}}]
[]
[{"$f":"A14+1","v":2},null,"Select FDOT 'Alias'","ST",null,null,null,null,null,null,null,{"$f":"SUM(E20:K20)","v":0},0,{"$f":"ROUND((L20*M20)+(L23*M23),2)","v":0},{"$f":"'Deduction Record'!O11","v":0},{"$f":"IF(N23=0,0,N23-O20)","v":0},{"$f":"'Fringe Record'!S13","v":0},{"$f":"ROUND(IF(Q20=0,0,IF(L20=0,0,Q20*(L20+L23))),2)","v":0}]
[]
[null,null,{"$f":"IF(C20=\"Select Labor Code\",\"\",VLOOKUP(C20,'Labor Classification Codes'!$A$3:$C$554,2,FALSE))","v":{"$error":"#N/A"}}]
[null,null,null,"OT",null,null,null,null,null,null,null,{"$f":"SUM(E23:K23)","v":0},{"$f":"ROUND(M20*1.5,2)","v":0},0]
[null,"Select Employee Type",{"$f":"IF(C20=\"Select Labor Code\",\"\",VLOOKUP(C20,'Labor Classification Codes'!$A$3:$C$554,3,FALSE))","v":{"$error":"#N/A"}}]
[]
[{"$f":"A20+1","v":3},null,"Select FDOT 'Alias'","ST",null,null,null,null,null,null,null,{"$f":"SUM(E26:K26)","v":0},0,{"$f":"ROUND((L26*M26)+(L29*M29),2)","v":0},{"$f":"'Deduction Record'!O12","v":0},{"$f":"IF(N29=0,0,N29-O26)","v":0},{"$f":"'Fringe Record'!S14","v":0},{"$f":"ROUND(IF(Q26=0,0,IF(L26=0,0,Q26*(L26+L29))),2)","v":0}]
[]
[null,null,{"$f":"IF(C26=\"Select Labor Code\",\"\",VLOOKUP(C26,'Labor Classification Codes'!$A$3:$C$554,2,FALSE))","v":{"$error":"#N/A"}}]
[null,null,null,"OT",null,null,null,null,null,null,null,{"$f":"SUM(E29:K29)","v":0},{"$f":"ROUND(M26*1.5,2)","v":0},0]
[null,"Select Employee Type",{"$f":"IF(C26=\"Select Labor Code\",\"\",VLOOKUP(C26,'Labor Classification Codes'!$A$3:$C$554,3,FALSE))","v":{"$error":"#N/A"}}]
[]
[{"$f":"A26+1","v":4},null,"Select FDOT 'Alias'","ST",null,null,null,null,null,null,null,{"$f":"SUM(E32:K32)","v":0},0,{"$f":"ROUND((L32*M32)+(L35*M35),2)","v":0},{"$f":"'Deduction Record'!O13","v":0},{"$f":"IF(N35=0,0,N35-O32)","v":0},{"$f":"'Fringe Record'!S15","v":0},{"$f":"ROUND(IF(Q32=0,0,IF(L32=0,0,Q32*(L32+L35))),2)","v":0}]
[]
[null,null,{"$f":"IF(C32=\"Select Labor Code\",\"\",VLOOKUP(C32,'Labor Classification Codes'!$A$3:$C$554,2,FALSE))","v":{"$error":"#N/A"}}]
[null,null,null,"OT",null,null,null,null,null,null,null,{"$f":"SUM(E35:K35)","v":0},{"$f":"ROUND(M32*1.5,2)","v":0},0]
[null,"Select Employee Type",{"$f":"IF(C32=\"Select Labor Code\",\"\",VLOOKUP(C32,'Labor Classification Codes'!$A$3:$C$554,3,FALSE))","v":{"$error":"#N/A"}}]
[]
[{"$f":"A32+1","v":5},null,"Select FDOT 'Alias'","ST",null,null,null,null,null,null,null,{"$f":"SUM(E38:K38)","v":0},0,{"$f":"ROUND((L38*M38)+(L41*M41),2)","v":0},{"$f":"'Deduction Record'!O14","v":0},{"$f":"IF(N41=0,0,N41-O38)","v":0},{"$f":"'Fringe Record'!S16","v":0},{"$f":"ROUND(IF(Q38=0,0,IF(L38=0,0,Q38*(L38+L41))),2)","v":0}]
[]
[null,null,{"$f":"IF(C38=\"Select Labor Code\",\"\",VLOOKUP(C38,'Labor Classification Codes'!$A$3:$C$554,2,FALSE))","v":{"$error":"#N/A"}}]
[null,null,null,"OT",null,null,null,null,null,null,null,{"$f":"SUM(E41:K41)","v":0},{"$f":"ROUND(M38*1.5,2)","v":0},0]
[null,"Select Employee Type",{"$f":"IF(C38=\"Select Labor Code\",\"\",VLOOKUP(C38,'Labor Classification Codes'!$A$3:$C$554,3,FALSE))","v":{"$error":"#N/A"}}]
[]
[{"$f":"A38+1","v":6},null,"Select FDOT 'Alias'","ST",null,null,null,null,null,null,null,{"$f":"SUM(E44:K44)","v":0},0,{"$f":"ROUND((L44*M44)+(L47*M47),2)","v":0},{"$f":"'Deduction Record'!O15","v":0},{"$f":"IF(N47=0,0,N47-O44)","v":0},{"$f":"'Fringe Record'!S17","v":0},{"$f":"ROUND(IF(Q44=0,0,IF(L44=0,0,Q44*(L44+L47))),2)","v":0}]
[]
[null,null,{"$f":"IF(C44=\"Select Labor Code\",\"\",VLOOKUP(C44,'Labor Classification Codes'!$A$3:$C$554,2,FALSE))","v":{"$error":"#N/A"}}]
[null,null,null,"OT",null,null,null,null,null,null,null,{"$f":"SUM(E47:K47)","v":0},{"$f":"ROUND(M44*1.5,2)","v":0},0]
[null,"Select Employee Type",{"$f":"IF(C44=\"Select Labor Code\",\"\",VLOOKUP(C44,'Labor Classification Codes'!$A$3:$C$554,3,FALSE))","v":{"$error":"#N/A"}}]
[]
[{"$f":"A44+1","v":7},null,"Select FDOT 'Alias'","ST",null,null,null,null,null,null,null,{"$f":"SUM(E50:K50)","v":0},0,{"$f":"ROUND((L50*M50)+(L53*M53),2)","v":0},{"$f":"'Deduction Record'!O16","v":0},{"$f":"IF(N53=0,0,N53-O50)","v":0},{"$f":"'Fringe Record'!S18","v":0},{"$f":"ROUND(IF(Q50=0,0,IF(L50=0,0,Q50*(L50+L53))),2)","v":0}]
[]
[null,null,{"$f":"IF(C50=\"Select Labor Code\",\"\",VLOOKUP(C50,'Labor Classification Codes'!$A$3:$C$554,2,FALSE))","v":{"$error":"#N/A"}}]
[null,null,null,"OT",null,null,null,null,null,null,null,{"$f":"SUM(E53:K53)","v":0},{"$f":"ROUND(M50*1.5,2)","v":0},0]
[null,"Select Employee Type",{"$f":"IF(C50=\"Select Labor Code\",\"\",VLOOKUP(C50,'Labor Classification Codes'!$A$3:$C$554,3,FALSE))","v":{"$error":"#N/A"}}]
[]
[{"$f":"A50+1","v":8},null,"Select FDOT 'Alias'","ST",null,null,null,null,null,null,null,{"$f":"SUM(E56:K56)","v":0},0,{"$f":"ROUND((L56*M56)+(L59*M59),2)","v":0},{"$f":"'Deduction Record'!O17","v":0},{"$f":"IF(N59=0,0,N59-O56)","v":0},{"$f":"'Fringe Record'!S19","v":0},{"$f":"ROUND(IF(Q56=0,0,IF(L56=0,0,Q56*(L56+L59))),2)","v":0}]
[]
[null,null,{"$f":"IF(C56=\"Select Labor Code\",\"\",VLOOKUP(C56,'Labor Classification Codes'!$A$3:$C$554,2,FALSE))","v":{"$error":"#N/A"}}]
[null,null,null,"OT",null,null,null,null,null,null,null,{"$f":"SUM(E59:K59)","v":0},{"$f":"ROUND(M56*1.5,2)","v":0},0]
[null,"Select Employee Type",{"$f":"IF(C56=\"Select Labor Code\",\"\",VLOOKUP(C56,'Labor Classification Codes'!$A$3:$C$554,3,FALSE))","v":{"$error":"#N/A"}}]
[]
[{"$f":"A56+1","v":9},null,"Select FDOT 'Alias'","ST",null,null,null,null,null,null,null,{"$f":"SUM(E62:K62)","v":0},0,{"$f":"ROUND((L62*M62)+(L65*M65),2)","v":0},{"$f":"'Deduction Record'!O18","v":0.23},{"$f":"IF(N65=0,0,N65-O62)","v":0},{"$f":"'Fringe Record'!S20","v":0},{"$f":"ROUND(IF(Q62=0,0,IF(L62=0,0,Q62*(L62+L65))),2)","v":0}]
[]
[null,null,{"$f":"IF(C62=\"Select Labor Code\",\"\",VLOOKUP(C62,'Labor Classification Codes'!$A$3:$C$554,2,FALSE))","v":{"$error":"#N/A"}}]
[null,null,null,"OT",null,null,null,null,null,null,null,{"$f":"SUM(E65:K65)","v":0},{"$f":"ROUND(M62*1.5,2)","v":0},0]
[null,"Select Employee Type",{"$f":"IF(C62=\"Select Labor Code\",\"\",VLOOKUP(C62,'Labor Classification Codes'!$A$3:$C$554,3,FALSE))","v":{"$error":"#N/A"}}]
[]
[{"$f":"A62+1","v":10},null,"Select FDOT 'Alias'","ST",null,null,null,null,null,null,null,{"$f":"SUM(E68:K68)","v":0},0,{"$f":"ROUND((L68*M68)+(L71*M71),2)","v":0},{"$f":"'Deduction Record'!O19","v":0},{"$f":"IF(N71=0,0,N71-O68)","v":0},{"$f":"'Fringe Record'!S21","v":0},{"$f":"ROUND(IF(Q68=0,0,IF(L68=0,0,Q68*(L68+L71))),2)","v":0}]
[]
[null,null,{"$f":"IF(C68=\"Select Labor Code\",\"\",VLOOKUP(C68,'Labor Classification Codes'!$A$3:$C$554,2,FALSE))","v":{"$error":"#N/A"}}]
[null,null,null,"OT",null,null,null,null,null,null,null,{"$f":"SUM(E71:K71)","v":0},{"$f":"ROUND(M68*1.5,2)","v":0},0]
[null,"Select Employee Type",{"$f":"IF(C68=\"Select Labor Code\",\"\",VLOOKUP(C68,'Labor Classification Codes'!$A$3:$C$554,3,FALSE))","v":{"$error":"#N/A"}}]
[]
[{"$f":"A68+1","v":11},null,"Select FDOT 'Alias'","ST",null,null,null,null,null,null,null,{"$f":"SUM(E74:K74)","v":0},0,{"$f":"ROUND((L74*M74)+(L77*M77),2)","v":0},{"$f":"'Deduction Record'!O20","v":0},{"$f":"IF(N77=0,0,N77-O74)","v":0},{"$f":"'Fringe Record'!S22","v":0},{"$f":"ROUND(IF(Q74=0,0,IF(L74=0,0,Q74*(L74+L77))),2)","v":0}]
[]
[null,null,{"$f":"IF(C74=\"Select Labor Code\",\"\",VLOOKUP(C74,'Labor Classification Codes'!$A$3:$C$554,2,FALSE))","v":{"$error":"#N/A"}}]
[null,null,null,"OT",null,null,null,null,null,null,null,{"$f":"SUM(E77:K77)","v":0},{"$f":"ROUND(M74*1.5,2)","v":0},0]
[null,"Select Employee Type",{"$f":"IF(C74=\"Select Labor Code\",\"\",VLOOKUP(C74,'Labor Classification Codes'!$A$3:$C$554,3,FALSE))","v":{"$error":"#N/A"}}]
[]
[{"$f":"A74+1","v":12},null,"Select FDOT 'Alias'","ST",null,null,null,null,null,null,null,{"$f":"SUM(E80:K80)","v":0},0,{"$f":"ROUND((L80*M80)+(L83*M83),2)","v":0},{"$f":"'Deduction Record'!O21","v":0},{"$f":"IF(N83=0,0,N83-O80)","v":0},{"$f":"'Fringe Record'!S23","v":0},{"$f":"ROUND(IF(Q80=0,0,IF(L80=0,0,Q80*(L80+L83))),2)","v":0}]
[]
[null,null,{"$f":"IF(C80=\"Select Labor Code\",\"\",VLOOKUP(C80,'Labor Classification Codes'!$A$3:$C$554,2,FALSE))","v":{"$error":"#N/A"}}]
[null,null,null,"OT",null,null,null,null,null,null,null,{"$f":"SUM(E83:K83)","v":0},{"$f":"ROUND(M80*1.5,2)","v":0},0]
[null,"Select Employee Type",{"$f":"IF(C80=\"Select Labor Code\",\"\",VLOOKUP(C80,'Labor Classification Codes'!$A$3:$C$554,3,FALSE))","v":{"$error":"#N/A"}}]
[]
[{"$f":"A80+1","v":13},null,"Select FDOT 'Alias'","ST",null,null,null,null,null,null,null,{"$f":"SUM(E86:K86)","v":0},0,{"$f":"ROUND((L86*M86)+(L89*M89),2)","v":0},{"$f":"'Deduction Record'!O22","v":0},{"$f":"IF(N89=0,0,N89-O86)","v":0},{"$f":"'Fringe Record'!S24","v":0},{"$f":"ROUND(IF(Q86=0,0,IF(L86=0,0,Q86*(L86+L89))),2)","v":0}]
[]
[null,null,{"$f":"IF(C86=\"Select Labor Code\",\"\",VLOOKUP(C86,'Labor Classification Codes'!$A$3:$C$554,2,FALSE))","v":{"$error":"#N/A"}}]
[null,null,null,"OT",null,null,null,null,null,null,null,{"$f":"SUM(E89:K89)","v":0},{"$f":"ROUND(M86*1.5,2)","v":0},0]
[null,"Select Employee Type",{"$f":"IF(C86=\"Select Labor Code\",\"\",VLOOKUP(C86,'Labor Classification Codes'!$A$3:$C$554,3,FALSE))","v":{"$error":"#N/A"}}]
[]
[{"$f":"A86+1","v":14},null,"Select FDOT 'Alias'","ST",null,null,null,null,null,null,null,{"$f":"SUM(E92:K92)","v":0},0,{"$f":"ROUND((L92*M92)+(L95*M95),2)","v":0},{"$f":"'Deduction Record'!O23","v":0},{"$f":"IF(N95=0,0,N95-O92)","v":0},{"$f":"'Fringe Record'!S25","v":0},{"$f":"ROUND(IF(Q92=0,0,IF(L92=0,0,Q92*(L92+L95))),2)","v":0}]
[]
[null,null,{"$f":"IF(C92=\"Select Labor Code\",\"\",VLOOKUP(C92,'Labor Classification Codes'!$A$3:$C$554,2,FALSE))","v":{"$error":"#N/A"}}]
[null,null,null,"OT",null,null,null,null,null,null,null,{"$f":"SUM(E95:K95)","v":0},{"$f":"ROUND(M92*1.5,2)","v":0},0]
[null,"Select Employee Type",{"$f":"IF(C92=\"Select Labor Code\",\"\",VLOOKUP(C92,'Labor Classification Codes'!$A$3:$C$554,3,FALSE))","v":{"$error":"#N/A"}}]
[]
[{"$f":"A92+1","v":15},null,"Select FDOT 'Alias'","ST",null,null,null,null,null,null,null,{"$f":"SUM(E98:K98)","v":0},0,{"$f":"ROUND((L98*M98)+(L101*M101),2)","v":0},{"$f":"'Deduction Record'!O24","v":0},{"$f":"IF(N101=0,0,N101-O98)","v":0},{"$f":"'Fringe Record'!S26","v":0},{"$f":"ROUND(IF(Q98=0,0,IF(L98=0,0,Q98*(L98+L101))),2)","v":0}]
[]
[null,null,{"$f":"IF(C98=\"Select Labor Code\",\"\",VLOOKUP(C98,'Labor Classification Codes'!$A$3:$C$554,2,FALSE))","v":{"$error":"#N/A"}}]
[null,null,null,"OT",null,null,null,null,null,null,null,{"$f":"SUM(E101:K101)","v":0},{"$f":"ROUND(M98*1.5,2)","v":0},0]
[null,"Select Employee Type",{"$f":"IF(C98=\"Select Labor Code\",\"\",VLOOKUP(C98,'Labor Classification Codes'!$A$3:$C$554,3,FALSE))","v":{"$error":"#N/A"}}]
[]
[{"$f":"A98+1","v":16},null,"Select FDOT 'Alias'","ST",null,null,null,null,null,null,null,{"$f":"SUM(E104:K104)","v":0},0,{"$f":"ROUND((L104*M104)+(L107*M107),2)","v":0},{"$f":"'Deduction Record'!O25","v":0},{"$f":"IF(N107=0,0,N107-O104)","v":0},{"$f":"'Fringe Record'!S27","v":0},{"$f":"ROUND(IF(Q104=0,0,IF(L104=0,0,Q104*(L104+L107))),2)","v":0}]
[]
[null,null,{"$f":"IF(C104=\"Select Labor Code\",\"\",VLOOKUP(C104,'Labor Classification Codes'!$A$3:$C$554,2,FALSE))","v":{"$error":"#N/A"}}]
[null,null,null,"OT",null,null,null,null,null,null,null,{"$f":"SUM(E107:K107)","v":0},{"$f":"ROUND(M104*1.5,2)","v":0},0]
[null,"Select Employee Type",{"$f":"IF(C104=\"Select Labor Code\",\"\",VLOOKUP(C104,'Labor Classification Codes'!$A$3:$C$554,3,FALSE))","v":{"$error":"#N/A"}}]
[]
[{"$f":"A104+1","v":17},null,"Select FDOT 'Alias'","ST",null,null,null,null,null,null,null,{"$f":"SUM(E110:K110)","v":0},0,{"$f":"ROUND((L110*M110)+(L113*M113),2)","v":0},{"$f":"'Deduction Record'!O26","v":0},{"$f":"IF(N113=0,0,N113-O110)","v":0},{"$f":"'Fringe Record'!S28","v":0},{"$f":"ROUND(IF(Q110=0,0,IF(L110=0,0,Q110*(L110+L113))),2)","v":0}]
[]
[null,null,{"$f":"IF(C110=\"Select Labor Code\",\"\",VLOOKUP(C110,'Labor Classification Codes'!$A$3:$C$554,2,FALSE))","v":{"$error":"#N/A"}}]
[null,null,null,"OT",null,null,null,null,null,null,null,{"$f":"SUM(E113:K113)","v":0},{"$f":"ROUND(M110*1.5,2)","v":0},0]
[null,"Select Employee Type",{"$f":"IF(C110=\"Select Labor Code\",\"\",VLOOKUP(C110,'Labor Classification Codes'!$A$3:$C$554,3,FALSE))","v":{"$error":"#N/A"}}]
[]
[{"$f":"A110+1","v":18},null,"Select FDOT 'Alias'","ST",null,null,null,null,null,null,null,{"$f":"SUM(E116:K116)","v":0},0,{"$f":"ROUND((L116*M116)+(L119*M119),2)","v":0},{"$f":"'Deduction Record'!O27","v":0},{"$f":"IF(N119=0,0,N119-O116)","v":0},{"$f":"'Fringe Record'!S29","v":0},{"$f":"ROUND(IF(Q116=0,0,IF(L116=0,0,Q116*(L116+L119))),2)","v":0}]
[]
[null,null,{"$f":"IF(C116=\"Select Labor Code\",\"\",VLOOKUP(C116,'Labor Classification Codes'!$A$3:$C$554,2,FALSE))","v":{"$error":"#N/A"}}]
[null,null,null,"OT",null,null,null,null,null,null,null,{"$f":"SUM(E119:K119)","v":0},{"$f":"ROUND(M116*1.5,2)","v":0},0]
[null,"Select Employee Type",{"$f":"IF(C116=\"Select Labor Code\",\"\",VLOOKUP(C116,'Labor Classification Codes'!$A$3:$C$554,3,FALSE))","v":{"$error":"#N/A"}}]
[]
[{"$f":"A116+1","v":19},null,"Select FDOT 'Alias'","ST",null,null,null,null,null,null,null,{"$f":"SUM(E122:K122)","v":0},0,{"$f":"ROUND((L122*M122)+(L125*M125),2)","v":0},{"$f":"'Deduction Record'!O28","v":0},{"$f":"IF(N125=0,0,N125-O122)","v":0},{"$f":"'Fringe Record'!S30","v":0},{"$f":"ROUND(IF(Q122=0,0,IF(L122=0,0,Q122*(L122+L125))),2)","v":0}]
[]
[null,null,{"$f":"IF(C122=\"Select Labor Code\",\"\",VLOOKUP(C122,'Labor Classification Codes'!$A$3:$C$554,2,FALSE))","v":{"$error":"#N/A"}}]
[null,null,null,"OT",null,null,null,null,null,null,null,{"$f":"SUM(E125:K125)","v":0},{"$f":"ROUND(M122*1.5,2)","v":0},0]
[null,"Select Employee Type",{"$f":"IF(C122=\"Select Labor Code\",\"\",VLOOKUP(C122,'Labor Classification Codes'!$A$3:$C$554,3,FALSE))","v":{"$error":"#N/A"}}]
[]
[{"$f":"A122+1","v":20},null,"Select FDOT 'Alias'","ST",null,null,null,null,null,null,null,{"$f":"SUM(E128:K128)","v":0},0,{"$f":"ROUND((L128*M128)+(L131*M131),2)","v":0},{"$f":"'Deduction Record'!O29","v":0},{"$f":"IF(N131=0,0,N131-O128)","v":0},{"$f":"'Fringe Record'!S31","v":0},{"$f":"ROUND(IF(Q128=0,0,IF(L128=0,0,Q128*(L128+L131))),2)","v":0}]
[]
[null,null,{"$f":"IF(C128=\"Select Labor Code\",\"\",VLOOKUP(C128,'Labor Classification Codes'!$A$3:$C$554,2,FALSE))","v":{"$error":"#N/A"}}]
[null,null,null,"OT",null,null,null,null,null,null,null,{"$f":"SUM(E131:K131)","v":0},{"$f":"ROUND(M128*1.5,2)","v":0},0]
[null,"Select Employee Type",{"$f":"IF(C128=\"Select Labor Code\",\"\",VLOOKUP(C128,'Labor Classification Codes'!$A$3:$C$554,3,FALSE))","v":{"$error":"#N/A"}}]
[]
[{"$f":"A128+1","v":21},null,"Select FDOT 'Alias'","ST",null,null,null,null,null,null,null,{"$f":"SUM(E134:K134)","v":0},0,{"$f":"ROUND((L134*M134)+(L137*M137),2)","v":0},{"$f":"'Deduction Record'!O30","v":0},{"$f":"IF(N137=0,0,N137-O134)","v":0},{"$f":"'Fringe Record'!S32","v":0},{"$f":"ROUND(IF(Q134=0,0,IF(L134=0,0,Q134*(L134+L137))),2)","v":0}]
[]
[null,null,{"$f":"IF(C134=\"Select Labor Code\",\"\",VLOOKUP(C134,'Labor Classification Codes'!$A$3:$C$554,2,FALSE))","v":{"$error":"#N/A"}}]
[null,null,null,"OT",null,null,null,null,null,null,null,{"$f":"SUM(E137:K137)","v":0},{"$f":"ROUND(M134*1.5,2)","v":0},0]
[null,"Select Employee Type",{"$f":"IF(C134=\"Select Labor Code\",\"\",VLOOKUP(C134,'Labor Classification Codes'!$A$3:$C$554,3,FALSE))","v":{"$error":"#N/A"}}]
[]
[{"$f":"A134+1","v":22},null,"Select FDOT 'Alias'","ST",null,null,null,null,null,null,null,{"$f":"SUM(E140:K140)","v":0},0,{"$f":"ROUND((L140*M140)+(L143*M143),2)","v":0},{"$f":"'Deduction Record'!O31","v":0},{"$f":"IF(N143=0,0,N143-O140)","v":0},{"$f":"'Fringe Record'!S33","v":0},{"$f":"ROUND(IF(Q140=0,0,IF(L140=0,0,Q140*(L140+L143))),2)","v":0}]
[]
[null,null,{"$f":"IF(C140=\"Select Labor Code\",\"\",VLOOKUP(C140,'Labor Classification Codes'!$A$3:$C$554,2,FALSE))","v":{"$error":"#N/A"}}]
[null,null,null,"OT",null,null,null,null,null,null,null,{"$f":"SUM(E143:K143)","v":0},{"$f":"ROUND(M140*1.5,2)","v":0},0]
[null,"Select Employee Type",{"$f":"IF(C140=\"Select Labor Code\",\"\",VLOOKUP(C140,'Labor Classification Codes'!$A$3:$C$554,3,FALSE))","v":{"$error":"#N/A"}}]
[]
[{"$f":"A140+1","v":23},null,"Select FDOT 'Alias'","ST",null,null,null,null,null,null,null,{"$f":"SUM(E146:K146)","v":0},0,{"$f":"ROUND((L146*M146)+(L149*M149),2)","v":0},{"$f":"'Deduction Record'!O32","v":0},{"$f":"IF(N149=0,0,N149-O146)","v":0},{"$f":"'Fringe Record'!S34","v":0},{"$f":"ROUND(IF(Q146=0,0,IF(L146=0,0,Q146*(L146+L149))),2)","v":0}]
[]
[null,null,{"$f":"IF(C146=\"Select Labor Code\",\"\",VLOOKUP(C146,'Labor Classification Codes'!$A$3:$C$554,2,FALSE))","v":{"$error":"#N/A"}}]
[null,null,null,"OT",null,null,null,null,null,null,null,{"$f":"SUM(E149:K149)","v":0},{"$f":"ROUND(M146*1.5,2)","v":0},0]
[null,"Select Employee Type",{"$f":"IF(C146=\"Select Labor Code\",\"\",VLOOKUP(C146,'Labor Classification Codes'!$A$3:$C$554,3,FALSE))","v":{"$error":"#N/A"}}]
[]
[{"$f":"A146+1","v":24},null,"Select FDOT 'Alias'","ST",null,null,null,null,null,null,null,{"$f":"SUM(E152:K152)","v":0},0,{"$f":"ROUND((L152*M152)+(L155*M155),2)","v":0},{"$f":"'Deduction Record'!O33","v":0},{"$f":"IF(N155=0,0,N155-O152)","v":0},{"$f":"'Fringe Record'!S35","v":0},{"$f":"ROUND(IF(Q152=0,0,IF(L152=0,0,Q152*(L152+L155))),2)","v":0}]
[]
[null,null,{"$f":"IF(C152=\"Select Labor Code\",\"\",VLOOKUP(C152,'Labor Classification Codes'!$A$3:$C$554,2,FALSE))","v":{"$error":"#N/A"}}]
[null,null,null,"OT",null,null,null,null,null,null,null,{"$f":"SUM(E155:K155)","v":0},{"$f":"ROUND(M152*1.5,2)","v":0},0]
[null,"Select Employee Type",{"$f":"IF(C152=\"Select Labor Code\",\"\",VLOOKUP(C152,'Labor Classification Codes'!$A$3:$C$554,3,FALSE))","v":{"$error":"#N/A"}}]
[]
[{"$f":"A152+1","v":25},null,"Select FDOT 'Alias'","ST",null,null,null,null,null,null,null,{"$f":"SUM(E158:K158)","v":0},0,{"$f":"ROUND((L158*M158)+(L161*M161),2)","v":0},{"$f":"'Deduction Record'!O34","v":0},{"$f":"IF(N161=0,0,N161-O158)","v":0},{"$f":"'Fringe Record'!S36","v":0},{"$f":"ROUND(IF(Q158=0,0,IF(L158=0,0,Q158*(L158+L161))),2)","v":0}]
[]
[null,null,{"$f":"IF(C158=\"Select Labor Code\",\"\",VLOOKUP(C158,'Labor Classification Codes'!$A$3:$C$554,2,FALSE))","v":{"$error":"#N/A"}}]
[null,null,null,"OT",null,null,null,null,null,null,null,{"$f":"SUM(E161:K161)","v":0},{"$f":"ROUND(M158*1.5,2)","v":0},0]
[null,"Select Employee Type",{"$f":"IF(C158=\"Select Labor Code\",\"\",VLOOKUP(C158,'Labor Classification Codes'!$A$3:$C$554,3,FALSE))","v":{"$error":"#N/A"}}]
[]
[{"$f":"A158+1","v":26},null,"Select FDOT 'Alias'","ST",null,null,null,null,null,null,null,{"$f":"SUM(E164:K164)","v":0},0,{"$f":"ROUND((L164*M164)+(L167*M167),2)","v":0},{"$f":"'Deduction Record'!O35","v":0},{"$f":"IF(N167=0,0,N167-O164)","v":0},{"$f":"'Fringe Record'!S37","v":0},{"$f":"ROUND(IF(Q164=0,0,IF(L164=0,0,Q164*(L164+L167))),2)","v":0}]
[]
[null,null,{"$f":"IF(C164=\"Select Labor Code\",\"\",VLOOKUP(C164,'Labor Classification Codes'!$A$3:$C$554,2,FALSE))","v":{"$error":"#N/A"}}]
[null,null,null,"OT",null,null,null,null,null,null,null,{"$f":"SUM(E167:K167)","v":0},{"$f":"ROUND(M164*1.5,2)","v":0},0]
[null,"Select Employee Type",{"$f":"IF(C164=\"Select Labor Code\",\"\",VLOOKUP(C164,'Labor Classification Codes'!$A$3:$C$554,3,FALSE))","v":{"$error":"#N/A"}}]
[]
[{"$f":"A164+1","v":27},null,"Select FDOT 'Alias'","ST",null,null,null,null,null,null,null,{"$f":"SUM(E170:K170)","v":0},0,{"$f":"ROUND((L170*M170)+(L173*M173),2)","v":0},{"$f":"'Deduction Record'!O36","v":0},{"$f":"IF(N173=0,0,N173-O170)","v":0},{"$f":"'Fringe Record'!S38","v":0},{"$f":"ROUND(IF(Q170=0,0,IF(L170=0,0,Q170*(L170+L173))),2)","v":0}]
[]
[null,null,{"$f":"IF(C170=\"Select Labor Code\",\"\",VLOOKUP(C170,'Labor Classification Codes'!$A$3:$C$554,2,FALSE))","v":{"$error":"#N/A"}}]
[null,null,null,"OT",null,null,null,null,null,null,null,{"$f":"SUM(E173:K173)","v":0},{"$f":"ROUND(M170*1.5,2)","v":0},0]
[null,"Select Employee Type",{"$f":"IF(C170=\"Select Labor Code\",\"\",VLOOKUP(C170,'Labor Classification Codes'!$A$3:$C$554,3,FALSE))","v":{"$error":"#N/A"}}]
[]
[{"$f":"A170+1","v":28},null,"Select FDOT 'Alias'","ST",null,null,null,null,null,null,null,{"$f":"SUM(E176:K176)","v":0},0,{"$f":"ROUND((L176*M176)+(L179*M179),2)","v":0},{"$f":"'Deduction Record'!O37","v":0},{"$f":"IF(N179=0,0,N179-O176)","v":0},{"$f":"'Fringe Record'!S39","v":0},{"$f":"ROUND(IF(Q176=0,0,IF(L176=0,0,Q176*(L176+L179))),2)","v":0}]
[]
[null,null,{"$f":"IF(C176=\"Select Labor Code\",\"\",VLOOKUP(C176,'Labor Classification Codes'!$A$3:$C$554,2,FALSE))","v":{"$error":"#N/A"}}]
[null,null,null,"OT",null,null,null,null,null,null,null,{"$f":"SUM(E179:K179)","v":0},{"$f":"ROUND(M176*1.5,2)","v":0},0]
[null,"Select Employee Type",{"$f":"IF(C176=\"Select Labor Code\",\"\",VLOOKUP(C176,'Labor Classification Codes'!$A$3:$C$554,3,FALSE))","v":{"$error":"#N/A"}}]
[]
[{"$f":"A176+1","v":29},null,"Select FDOT 'Alias'","ST",null,null,null,null,null,null,null,{"$f":"SUM(E182:K182)","v":0},0,{"$f":"ROUND((L182*M182)+(L185*M185),2)","v":0},{"$f":"'Deduction Record'!O38","v":0},{"$f":"IF(N185=0,0,N185-O182)","v":0},{"$f":"'Fringe Record'!S40","v":0},{"$f":"ROUND(IF(Q182=0,0,IF(L182=0,0,Q182*(L182+L185))),2)","v":0}]
[]
[null,null,{"$f":"IF(C182=\"Select Labor Code\",\"\",VLOOKUP(C182,'Labor Classification Codes'!$A$3:$C$554,2,FALSE))","v":{"$error":"#N/A"}}]
[null,null,null,"OT",null,null,null,null,null,null,null,{"$f":"SUM(E185:K185)","v":0},{"$f":"ROUND(M182*1.5,2)","v":0},0]
[null,"Select Employee Type",{"$f":"IF(C182=\"Select Labor Code\",\"\",VLOOKUP(C182,'Labor Classification Codes'!$A$3:$C$554,3,FALSE))","v":{"$error":"#N/A"}}]
[]
[{"$f":"A182+1","v":30},null,"Select FDOT 'Alias'","ST",null,null,null,null,null,null,null,{"$f":"SUM(E188:K188)","v":0},0,{"$f":"ROUND((L188*M188)+(L191*M191),2)","v":0},{"$f":"'Deduction Record'!O39","v":0},{"$f":"IF(N191=0,0,N191-O188)","v":0},{"$f":"'Fringe Record'!S41","v":0},{"$f":"ROUND(IF(Q188=0,0,IF(L188=0,0,Q188*(L188+L191))),2)","v":0}]
[]
[null,null,{"$f":"IF(C188=\"Select Labor Code\",\"\",VLOOKUP(C188,'Labor Classification Codes'!$A$3:$C$554,2,FALSE))","v":{"$error":"#N/A"}}]
[null,null,null,"OT",null,null,null,null,null,null,null,{"$f":"SUM(E191:K191)","v":0},{"$f":"ROUND(M188*1.5,2)","v":0},0]
[null,"Select Employee Type",{"$f":"IF(C188=\"Select Labor Code\",\"\",VLOOKUP(C188,'Labor Classification Codes'!$A$3:$C$554,3,FALSE))","v":{"$error":"#N/A"}}]

{"sheet":"Deduction Record","index":5,"n_rows":39,"n_cols":15,"rows_kept":39,"cut":false,"hidden":false,"merged":[[7,1,8,1],[7,2,8,2],[7,3,8,3],[7,4,8,4],[5,2,5,3],[7,13,8,13],[7,14,8,14],[7,5,8,5],[7,6,8,6],[7,11,8,11],[7,12,8,12],[1,9,1,12],[7,7,8,7],[7,8,8,8],[7,9,8,9],[1,2,1,5],[3,9,3,12],[5,5,5,6],[3,5,3,6],[7,10,8,10]]}
[null,"Deduction Record:"]
[null,"Contractor's Name:",{"$f":"IF('Wage & Hour Record'!C3=\"\",\"\",'Wage & Hour Record'!C3)","v":""},null,null,null,null,null,"Address:",{"$f":"IF('Wage & Hour Record'!L3=\"\",\"\",'Wage & Hour Record'!L3)","v":""}]
[]
[null,"Payroll Number:",{"$f":"'Wage & Hour Record'!C5","v":0},null,"Contract No.:",{"$f":"IF('Wage & Hour Record'!L5=\"\",\"\",'Wage & Hour Record'!L5)","v":""},null,null,"Project Description:",{"$f":"IF('Wage & Hour Record'!P5=\"\",\"\",'Wage & Hour Record'!P5)","v":""}]
[]
[null,"For Week Ending:",{"$f":"IF('Wage & Hour Record'!G5=\"\",\"\",'Wage & Hour Record'!G5)","v":""},null,"FPID No.:",{"$f":"IF('Wage & Hour Record'!L7=\"\",\"\",'Wage & Hour Record'!L7)","v":""}]
[]
[null,"Employee Name","FICA","Federal \nIncome Tax","Specify Deduction","Specify Deduction","Specify Deduction","Specify Deduction","Specify Deduction","Specify Deduction","Specify Deduction","Specify Deduction","Specify Deduction","Specify Deduction","Total Deductions"]
[]
[1,{"$f":"'Wage & Hour Record'!B$14","v":0},0,0,0,0,0,0,0,0,0,0,0,0,{"$f":"SUM(C10:N10)","v":0}]
[{"$f":"A10+1","v":2},{"$f":"'Wage & Hour Record'!B$20","v":0},0,0,0,0,0,0,0,0,0,0,0,0,{"$f":"SUM(C11:N11)","v":0}]
[{"$f":"A11+1","v":3},{"$f":"'Wage & Hour Record'!B$26","v":0},0,0,0,0,0,0,0,0,0,0,0,0,0]
[4,{"$f":"'Wage & Hour Record'!B$32","v":0},0,0,0,0,0,0,0,0,0,0,0,0,0]
[5,{"$f":"'Wage & Hour Record'!B$38","v":0},0,0,0,0,0,0,0,0,0,0,0,0,0]
[6,{"$f":"'Wage & Hour Record'!B$44","v":0},0,0,0,0,0,0,0,0,0,0,0,0,0]
[7,{"$f":"'Wage & Hour Record'!B$50","v":0},0,0,0,0,0,0,0,0,0,0,0,0,0]
[8,{"$f":"'Wage & Hour Record'!B$56","v":0},0,0,0,0,0,0,0,0,0,0,0,0,0]
[9,{"$f":"'Wage & Hour Record'!B$62","v":0},0.23,0,0,0,0,0,0,0,0,0,0,0,0.23]
[10,{"$f":"'Wage & Hour Record'!B$68","v":0},0,0,0,0,0,0,0,0,0,0,0,0,0]
[11,{"$f":"'Wage & Hour Record'!B$74","v":0},0,0,0,0,0,0,0,0,0,0,0,0,0]
[{"$f":"A20+1","v":12},{"$f":"'Wage & Hour Record'!B$80","v":0},0,0,0,0,0,0,0,0,0,0,0,0,{"$f":"SUM(C21:N21)","v":0}]
[13,{"$f":"'Wage & Hour Record'!B$86","v":0},0,0,0,0,0,0,0,0,0,0,0,0,0]
[14,{"$f":"'Wage & Hour Record'!B$92","v":0},0,0,0,0,0,0,0,0,0,0,0,0,0]
[15,{"$f":"'Wage & Hour Record'!B$98","v":0},0,0,0,0,0,0,0,0,0,0,0,0,0]
[16,{"$f":"'Wage & Hour Record'!B$104","v":0},0,0,0,0,0,0,0,0,0,0,0,0,0]
[17,{"$f":"'Wage & Hour Record'!B$110","v":0},0,0,0,0,0,0,0,0,0,0,0,0,0]
[18,{"$f":"'Wage & Hour Record'!B$116","v":0},0,0,0,0,0,0,0,0,0,0,0,0,0]
[19,{"$f":"'Wage & Hour Record'!B$122","v":0},0,0,0,0,0,0,0,0,0,0,0,0,0]
[20,{"$f":"'Wage & Hour Record'!B$128","v":0},0,0,0,0,0,0,0,0,0,0,0,0,0]
[21,{"$f":"'Wage & Hour Record'!B$134","v":0},0,0,0,0,0,0,0,0,0,0,0,0,0]
[{"$f":"A30+1","v":22},{"$f":"'Wage & Hour Record'!B$140","v":0},0,0,0,0,0,0,0,0,0,0,0,0,0]
[23,{"$f":"'Wage & Hour Record'!B$146","v":0},0,0,0,0,0,0,0,0,0,0,0,0,0]
[24,{"$f":"'Wage & Hour Record'!B$152","v":0},0,0,0,0,0,0,0,0,0,0,0,0,0]
[25,{"$f":"'Wage & Hour Record'!B$158","v":0},0,0,0,0,0,0,0,0,0,0,0,0,0]
[26,{"$f":"'Wage & Hour Record'!B$164","v":0},0,0,0,0,0,0,0,0,0,0,0,0,0]
[27,{"$f":"'Wage & Hour Record'!B$170","v":0},0,0,0,0,0,0,0,0,0,0,0,0,0]
[28,{"$f":"'Wage & Hour Record'!B$176","v":0},0,0,0,0,0,0,0,0,0,0,0,0,0]
[29,{"$f":"'Wage & Hour Record'!B$182","v":0},0,0,0,0,0,0,0,0,0,0,0,0,0]
[30,{"$f":"'Wage & Hour Record'!B$188","v":0},0,0,0,0,0,0,0,0,0,0,0,0,0]

{"sheet":"Fringe Record","index":6,"n_rows":41,"n_cols":19,"rows_kept":41,"cut":false,"hidden":false,"merged":[[1,2,1,5],[7,16,7,17],[8,16,8,17],[9,16,9,17],[10,16,10,17],[7,14,7,15],[8,14,8,15],[9,14,9,15],[10,14,10,15],[10,8,10,9],[3,5,3,6],[5,2,5,3],[5,5,5,6],[1,9,1,13],[7,12,7,13],[8,12,8,13],[8,10,8,11],[9,10,9,11],[10,10,10,11],[7,1,10,1],[7,4,7,5],[8,4,8,5],[9,4,9,5],[10,4,10,5],[9,12,9,13],[10,12,10,13],[3,9,3,13],[7,18,10,18],[7,2,7,3],[8,2,8,3],[9,2,9,3],[7,6,7,7],[8,6,8,7],[9,6,9,7],[10,6,10,7],[10,2,10,3],[7,8,7,9],[8,8,8,9],[9,8,9,9],[7,10,7,11]]}
[null,"Fringe Benefit Record:"]
[null,"Contractor's Name:",{"$f":"IF('Wage & Hour Record'!C3=\"\",\"\",'Wage & Hour Record'!C3)","v":""},null,null,null,null,null,"Address:",{"$f":"IF('Wage & Hour Record'!L3=\"\",\"\",'Wage & Hour Record'!L3)","v":""}]
[]
[null,"Payroll Number:",{"$f":"'Wage & Hour Record'!C5","v":0},null,"Contract No.:",{"$f":"IF('Wage & Hour Record'!L5=\"\",\"\",'Wage & Hour Record'!L5)","v":""},null,null,"Project Description:",{"$f":"IF('Wage & Hour Record'!P5=\"\",\"\",'Wage & Hour Record'!P5)","v":""}]
[]
[null,"For Week Ending:",{"$f":"IF('Wage & Hour Record'!G5=\"\",\"\",'Wage & Hour Record'!G5)","v":""},null,"FPID No.:",{"$f":"IF('Wage & Hour Record'!L7=\"\",\"\",'Wage & Hour Record'!L7)","v":""}]
[]
[null,"Employee Name","Specify FB Name",null,"Specify FB Name",null,"Specify FB Name",null,"Specify FB Name",null,"Specify FB Name",null,"Specify FB Name",null,"Specify FB Name",null,"Specify FB Name",null,"Total \nHourly\nCredit"]
[null,null,"Select FB Type",null,"Select FB Type",null,"Select FB Type",null,"Select FB Type",null,"Select FB Type",null,"Select FB Type",null,"Select FB Type",null,"Select FB Type"]
[null,null,"Specify FB Plan #",null,"Specify FB Plan #",null,"Specify FB Plan #",null,"Specify FB Plan #",null,"Specify FB Plan #",null,"Specify FB Plan #",null,"Specify FB Plan #",null,"Specify FB Plan #"]
[null,null,"Select FB Funding",null,"Select FB Funding",null,"Select FB Funding",null,"Select FB Funding",null,"Select FB Funding",null,"Select FB Funding",null,"Select FB Funding",null,"Select FB Funding"]
[1,{"$f":"'Wage & Hour Record'!B$14","v":0},"Hrly Credit:",0,"Hrly Credit:",0,"Hrly Credit:",0,"Hrly Credit:",0,"Hrly Credit:",0,"Hrly Credit:",0,"Hrly Credit:",0,"Hrly Credit:",0,{"$f":"D12+F12+H12+J12+L12+N12+P12+R12","v":0}]
[{"$f":"A12+1","v":2},{"$f":"'Wage & Hour Record'!B$20","v":0},"Hrly Credit:",0,"Hrly Credit:",0,"Hrly Credit:",0,"Hrly Credit:",0,"Hrly Credit:",0,"Hrly Credit:",0,"Hrly Credit:",0,"Hrly Credit:",0,{"$f":"D13+F13+H13+J13+L13+N13+P13+R13","v":0}]
[{"$f":"A13+1","v":3},{"$f":"'Wage & Hour Record'!B$26","v":0},"Hrly Credit:",0,"Hrly Credit:",0,"Hrly Credit:",0,"Hrly Credit:",0,"Hrly Credit:",0,"Hrly Credit:",0,"Hrly Credit:",0,"Hrly Credit:",0,0]
[4,{"$f":"'Wage & Hour Record'!B$32","v":0},"Hrly Credit:",0,"Hrly Credit:",0,"Hrly Credit:",0,"Hrly Credit:",0,"Hrly Credit:",0,"Hrly Credit:",0,"Hrly Credit:",0,"Hrly Credit:",0,0]
[5,{"$f":"'Wage & Hour Record'!B$38","v":0},"Hrly Credit:",0,"Hrly Credit:",0,"Hrly Credit:",0,"Hrly Credit:",0,"Hrly Credit:",0,"Hrly Credit:",0,"Hrly Credit:",0,"Hrly Credit:",0,0]
[6,{"$f":"'Wage & Hour Record'!B$44","v":0},"Hrly Credit:",0,"Hrly Credit:",0,"Hrly Credit:",0,"Hrly Credit:",0,"Hrly Credit:",0,"Hrly Credit:",0,"Hrly Credit:",0,"Hrly Credit:",0,0]
[7,{"$f":"'Wage & Hour Record'!B$50","v":0},"Hrly Credit:",0,"Hrly Credit:",0,"Hrly Credit:",0,"Hrly Credit:",0,"Hrly Credit:",0,"Hrly Credit:",0,"Hrly Credit:",0,"Hrly Credit:",0,0]
[8,{"$f":"'Wage & Hour Record'!B$56","v":0},"Hrly Credit:",0,"Hrly Credit:",0,"Hrly Credit:",0,"Hrly Credit:",0,"Hrly Credit:",0,"Hrly Credit:",0,"Hrly Credit:",0,"Hrly Credit:",0,0]
[9,{"$f":"'Wage & Hour Record'!B$62","v":0},"Hrly Credit:",0,"Hrly Credit:",0,"Hrly Credit:",0,"Hrly Credit:",0,"Hrly Credit:",0,"Hrly Credit:",0,"Hrly Credit:",0,"Hrly Credit:",0,0]
[10,{"$f":"'Wage & Hour Record'!B$68","v":0},"Hrly Credit:",0,"Hrly Credit:",0,"Hrly Credit:",0,"Hrly Credit:",0,"Hrly Credit:",0,"Hrly Credit:",0,"Hrly Credit:",0,"Hrly Credit:",0,0]
[11,{"$f":"'Wage & Hour Record'!B$74","v":0},"Hrly Credit:",0,"Hrly Credit:",0,"Hrly Credit:",0,"Hrly Credit:",0,"Hrly Credit:",0,"Hrly Credit:",0,"Hrly Credit:",0,"Hrly Credit:",0,0]
[{"$f":"A22+1","v":12},{"$f":"'Wage & Hour Record'!B$80","v":0},"Hrly Credit:",0,"Hrly Credit:",0,"Hrly Credit:",0,"Hrly Credit:",0,"Hrly Credit:",0,"Hrly Credit:",0,"Hrly Credit:",0,"Hrly Credit:",0,{"$f":"D23+F23+H23+J23+L23+N23+P23+R23","v":0}]
[13,{"$f":"'Wage & Hour Record'!B$86","v":0},"Hrly Credit:",0,"Hrly Credit:",0,"Hrly Credit:",0,"Hrly Credit:",0,"Hrly Credit:",0,"Hrly Credit:",0,"Hrly Credit:",0,"Hrly Credit:",0,0]
[14,{"$f":"'Wage & Hour Record'!B$92","v":0},"Hrly Credit:",0,"Hrly Credit:",0,"Hrly Credit:",0,"Hrly Credit:",0,"Hrly Credit:",0,"Hrly Credit:",0,"Hrly Credit:",0,"Hrly Credit:",0,0]
[15,{"$f":"'Wage & Hour Record'!B$98","v":0},"Hrly Credit:",0,"Hrly Credit:",0,"Hrly Credit:",0,"Hrly Credit:",0,"Hrly Credit:",0,"Hrly Credit:",0,"Hrly Credit:",0,"Hrly Credit:",0,0]
[16,{"$f":"'Wage & Hour Record'!B$104","v":0},"Hrly Credit:",0,"Hrly Credit:",0,"Hrly Credit:",0,"Hrly Credit:",0,"Hrly Credit:",0,"Hrly Credit:",0,"Hrly Credit:",0,"Hrly Credit:",0,0]
[17,{"$f":"'Wage & Hour Record'!B$110","v":0},"Hrly Credit:",0,"Hrly Credit:",0,"Hrly Credit:",0,"Hrly Credit:",0,"Hrly Credit:",0,"Hrly Credit:",0,"Hrly Credit:",0,"Hrly Credit:",0,0]
[18,{"$f":"'Wage & Hour Record'!B$116","v":0},"Hrly Credit:",0,"Hrly Credit:",0,"Hrly Credit:",0,"Hrly Credit:",0,"Hrly Credit:",0,"Hrly Credit:",0,"Hrly Credit:",0,"Hrly Credit:",0,0]
[19,{"$f":"'Wage & Hour Record'!B$122","v":0},"Hrly Credit:",0,"Hrly Credit:",0,"Hrly Credit:",0,"Hrly Credit:",0,"Hrly Credit:",0,"Hrly Credit:",0,"Hrly Credit:",0,"Hrly Credit:",0,0]
[20,{"$f":"'Wage & Hour Record'!B$128","v":0},"Hrly Credit:",0,"Hrly Credit:",0,"Hrly Credit:",0,"Hrly Credit:",0,"Hrly Credit:",0,"Hrly Credit:",0,"Hrly Credit:",0,"Hrly Credit:",0,0]
[21,{"$f":"'Wage & Hour Record'!B$134","v":0},"Hrly Credit:",0,"Hrly Credit:",0,"Hrly Credit:",0,"Hrly Credit:",0,"Hrly Credit:",0,"Hrly Credit:",0,"Hrly Credit:",0,"Hrly Credit:",0,0]
[{"$f":"A32+1","v":22},{"$f":"'Wage & Hour Record'!B$140","v":0},"Hrly Credit:",0,"Hrly Credit:",0,"Hrly Credit:",0,"Hrly Credit:",0,"Hrly Credit:",0,"Hrly Credit:",0,"Hrly Credit:",0,"Hrly Credit:",0,0]
[23,{"$f":"'Wage & Hour Record'!B$146","v":0},"Hrly Credit:",0,"Hrly Credit:",0,"Hrly Credit:",0,"Hrly Credit:",0,"Hrly Credit:",0,"Hrly Credit:",0,"Hrly Credit:",0,"Hrly Credit:",0,0]
[24,{"$f":"'Wage & Hour Record'!B$152","v":0},"Hrly Credit:",0,"Hrly Credit:",0,"Hrly Credit:",0,"Hrly Credit:",0,"Hrly Credit:",0,"Hrly Credit:",0,"Hrly Credit:",0,"Hrly Credit:",0,0]
[25,{"$f":"'Wage & Hour Record'!B$158","v":0},"Hrly Credit:",0,"Hrly Credit:",0,"Hrly Credit:",0,"Hrly Credit:",0,"Hrly Credit:",0,"Hrly Credit:",0,"Hrly Credit:",0,"Hrly Credit:",0,0]
[26,{"$f":"'Wage & Hour Record'!B$164","v":0},"Hrly Credit:",0,"Hrly Credit:",0,"Hrly Credit:",0,"Hrly Credit:",0,"Hrly Credit:",0,"Hrly Credit:",0,"Hrly Credit:",0,"Hrly Credit:",0,0]
[27,{"$f":"'Wage & Hour Record'!B$170","v":0},"Hrly Credit:",0,"Hrly Credit:",0,"Hrly Credit:",0,"Hrly Credit:",0,"Hrly Credit:",0,"Hrly Credit:",0,"Hrly Credit:",0,"Hrly Credit:",0,0]
[28,{"$f":"'Wage & Hour Record'!B$176","v":0},"Hrly Credit:",0,"Hrly Credit:",0,"Hrly Credit:",0,"Hrly Credit:",0,"Hrly Credit:",0,"Hrly Credit:",0,"Hrly Credit:",0,"Hrly Credit:",0,0]
[29,{"$f":"'Wage & Hour Record'!B$182","v":0},"Hrly Credit:",0,"Hrly Credit:",0,"Hrly Credit:",0,"Hrly Credit:",0,"Hrly Credit:",0,"Hrly Credit:",0,"Hrly Credit:",0,"Hrly Credit:",0,0]
[30,{"$f":"'Wage & Hour Record'!B$188","v":0},"Hrly Credit:",0,"Hrly Credit:",0,"Hrly Credit:",0,"Hrly Credit:",0,"Hrly Credit:",0,"Hrly Credit:",0,"Hrly Credit:",0,"Hrly Credit:",0,0]

{"sheet":"Employee Info","index":7,"n_rows":251,"n_cols":5,"rows_kept":251,"cut":false,"hidden":true,"merged":[[0,0,0,4]]}
["This worksheet will allow 250 employees to be listed.  It is recommended that you add employees in alphabetical order.\nEmployee information included in this worksheet should be the same as that recorded in company Payroll Software system.\nEmployee ID (auto calculated) : birth month and birth Year, last four numbers of SS#."]
[1,2,3,4,{"$f":"D2+1","v":5}]
["Select Employee","First Name","Middle Initial ","Last Name","Employee ID No."]
[{"$f":"TEXT(PROPER(B4)&\" \"&PROPER(C4)&\". \"&PROPER(D4),)","v":"John C. Smith"},"John","C","Smith",1234]
[]
[]
[]
[]
[]
[]
[]
[]
[]
[]
[]
[]
[]
[]
[]
[]
[]
[]
[]
[]
[]
[]
[]
[]
[]
[]
[]
[]
[{"$f":"TEXT(B33&\", \"&C33&\" \"&D33,)","v":",  "}]
[",  "]
[",  "]
[",  "]
[",  "]
[",  "]
[",  "]
[",  "]
[",  "]
[",  "]
[",  "]
[",  "]
[",  "]
[",  "]
[",  "]
[",  "]
[",  "]
[",  "]
[",  "]
[",  "]
[",  "]
[",  "]
[",  "]
[",  "]
[",  "]
[",  "]
[",  "]
[",  "]
[",  "]
[",  "]
[",  "]
[",  "]
[",  "]
[",  "]
[",  "]
[",  "]
[",  "]
[",  "]
[",  "]
[",  "]
[",  "]
[",  "]
[",  "]
[",  "]
[",  "]
[",  "]
[",  "]
[",  "]
[",  "]
[",  "]
[",  "]
[",  "]
[",  "]
[",  "]
[",  "]
[",  "]
[",  "]
[",  "]
[",  "]
[",  "]
[",  "]
[",  "]
[",  "]
[",  "]
[{"$f":"TEXT(B97&\", \"&C97&\" \"&D97,)","v":",  "}]
[",  "]
[",  "]
[",  "]
[",  "]
[",  "]
[",  "]
[",  "]
[",  "]
[",  "]
[",  "]
[",  "]
[",  "]
[",  "]
[",  "]
[",  "]
[",  "]
[",  "]
[",  "]
[",  "]
[",  "]
[",  "]
[",  "]
[",  "]
[",  "]
[",  "]
[",  "]
[",  "]
[",  "]
[",  "]
[",  "]
[",  "]
[",  "]
[",  "]
[",  "]
[",  "]
[",  "]
[",  "]
[",  "]
[",  "]
[",  "]
[",  "]
[",  "]
[",  "]
[",  "]
[",  "]
[",  "]
[",  "]
[",  "]
[",  "]
[",  "]
[",  "]
[",  "]
[",  "]
[",  "]
[",  "]
[",  "]
[",  "]
[",  "]
[",  "]
[",  "]
[",  "]
[",  "]
[",  "]
[{"$f":"TEXT(B161&\", \"&C161&\" \"&D161,)","v":",  "}]
[",  "]
[",  "]
[",  "]
[",  "]
[",  "]
[",  "]
[",  "]
[",  "]
[",  "]
[",  "]
[",  "]
[",  "]
[",  "]
[",  "]
[",  "]
[",  "]
[",  "]
[",  "]
[",  "]
[",  "]
[",  "]
[",  "]
[",  "]
[",  "]
[",  "]
[",  "]
[",  "]
[",  "]
[",  "]
[",  "]
[",  "]
[",  "]
[",  "]
[",  "]
[",  "]
[",  "]
[",  "]
[",  "]
[",  "]
[",  "]
[",  "]
[",  "]
[",  "]
[",  "]
[",  "]
[",  "]
[",  "]
[",  "]
[",  "]
[",  "]
[",  "]
[",  "]
[",  "]
[",  "]
[",  "]
[",  "]
[",  "]
[",  "]
[",  "]
[",  "]
[",  "]
[",  "]
[",  "]
[{"$f":"TEXT(B225&\", \"&C225&\" \"&D225,)","v":",  "}]
[",  "]
[",  "]
[",  "]
[",  "]
[",  "]
[",  "]
[",  "]
[",  "]
[",  "]
[",  "]
[",  "]
[",  "]
[",  "]
[",  "]
[",  "]
[",  "]
[",  "]
[",  "]
[",  "]
[",  "]
[",  "]
[",  "]
[",  "]
[",  "]
[",  "]
[null,"'Copy and Insert above"]

{"sheet":"Labor Classification Codes","index":8,"n_rows":546,"n_cols":9,"rows_kept":546,"cut":false,"hidden":false,"merged":[]}
["FDOT CRM Alias Names","Labor Code","Class Code","Description",null,null,null,null,"Fringe Benefit Payment"]
["Select FDOT 'Alias'",null,null,null,"Select Employee Type",null,"Select FB Type",null,"Select FB Funds"]
["10 YARD HAUL TRUCK","TRUCK DRIVER","10 YARD HAUL AWAY TRUCK","DRIVES LIGHT OR HEAVY DUTY SINGLE REAR AXEL TRUCK USED IN HAULING MATERIALS.  DOES NOT INCLUDE DUMP TRUCK","Journeyworker ",null,"Insurance-Life",null,"Funded"]
["ABATEMENT WORKER","CRAFTMAN","ABATEMENT WORKER","INCLUDES PREPARATION WETTING STRIPPING REMOVAL SCRAPING VACUUMING BAGGING AND DISPOSING OF CONTAMINATEDHAZARDOUS MATERIALS WHETHER THEY CONTAIN ASBESTOS OR LEAD. INCLUDES THE REMOVAL APPLICATION OF ALL INSULATING MAERIALS  PROTECTIVE COVERINGS COATING AND FINISHING TO TYPES OF SYSTEMS.","Registered Apprentice",null,"Insurance-Health",null,"Unfunded"]
["ADA CURB RAMP INSTALLER","LABORER","DETECTABLE WARNING INSTALLER","INSTALLATION OF CURB RAMPS AND DETECTABLE WARNING MATS. THIS WORK MAY INVOLVE THE USE OF ADHESIVES AND SMALL HAND TOOS SUCH AS SCRAPERS AND DRILLS.","On-the-Job Training",null,"Insurance-Dental"]
["ADA INSTALLER","LABORER","DETECTABLE WARNING INSTALLER","INSTALLATION OF CURB RAMPS AND DETECTABLE WARNING MATS. THIS WORK MAY INVOLVE THE USE OF ADHESIVES AND SMALL HAND TOOS SUCH AS SCRAPERS AND DRILLS.",null,null,"Pension/401K"]
["ADA MAT INSTALLER","LABORER","DETECTABLE WARNING INSTALLER","INSTALLATION OF CURB RAMPS AND DETECTABLE WARNING MATS. THIS WORK MAY INVOLVE THE USE OF ADHESIVES AND SMALL HAND TOOS SUCH AS SCRAPERS AND DRILLS.",null,null,"Vacation/Holiday"]
["ADAABA CURB RAMP INSTALLER","LABORER","DETECTABLE WARNING INSTALLER","INSTALLATION OF CURB RAMPS AND DETECTABLE WARNING MATS. THIS WORK MAY INVOLVE THE USE OF ADHESIVES AND SMALL HAND TOOS SUCH AS SCRAPERS AND DRILLS.",null,null,"Sick Leave"]
["AERIAL TRUCK OPERATOR","TRUCK OPERATOR","AERIAL TRUCK OPERATOR","OPERATES A TRUCK WITH A MOUNTED ARTICULATED BOOM USED TO LIFT PEOPLE ANDOR OBJECTS",null,null,"Cash"]
["AERIALNBSPLIFTNBSPOPERATOR","OPERATOR","AERIAL LIFT OPERATOR","OPERATES A MACHINE WITH A MOUNTED ARTICULATED BOOM USED TO LIFT PEOPLE ANDOR OBJECTS."]
["AFRAME","TRUCK DRIVER","AFRAME TRUCK","DRIVES TRUCK DESIGNED TO TRANSPORT SHEETED MATERIAL I.E.. GLASS GRANITE MARBLE ETC.."]
["AGGREGATE SPREADER","OPERATOR","OPERATOR: PAVER (Asphalt, Aggregate and Concrete)","OPERATES A MACHINE/LEVERS TO CONTROL SPREADING AND LEVELING TO APPROXIMATE GRADE AND CONTOUR ASPHALTIC CONCRETE OR PORTLAND CEMENT CONCRETE AS WELL AS SLAG OR OTHER AGGREGATES FOR SURFACE TREATMENT, OVER CONCRETE PAVING FORMS OR SUBGRADE OF HIGHWAY."]
["AGGREGATE TRUCK","OPERATOR","DISTRIBUTOR","OPERATES DISTRIBUTOR THAT SPREADS MATERIAL EVENLY ACROSS ROADWAY; INCLUDES SAND AGGREGATE OR BITUMINOUS MATERIALS; SETS SPRAY BAR AND OPERATES VALVES AND LEVERS TO CONTROL DISTRIBUTION OF OIL OR BITUMINOUS LIQUID PRIME TACK ETC."]
["AIR TOOL OPERATOR","LABORER","POWER TOOL OPERATOR","USES SMALL HAND HELD POWER TOOLS DRIVEN BY COMPRESSED AIR GASOLINE OR ELECTRICAL POWER TO PERFORM VARIOUS TYPES OF WORK THAT MAY INVOLVE SAWING GRINDING CUTTING CHIPPING TRENCHING DIGGING BREAKING OF CONCRETE PAVEMENT OR WOOD ON A PROJECT."]
["ALL CRANES WITH BOOM LENGTH 150 FEET AND OVER WITH OR WITHOUT JIB FRICTION","OPERATOR","CRANE GROUP 1","OPERATES A CRANE DRAGLINE ETC. TO HOIST AND MOVE MATERIALS RAISE AND LOWER HEAVY WEIGHTS OPERATIONS MAY INVOLVE USE OF DRAG BUCKET CLAMSHELL ORANGE PEEL AND OTHER RELATED ATTACHMENTS."]
["ALL TOWER CRANES MOBILE","OPERATOR","CRANE GROUP 1","OPERATES A CRANE DRAGLINE ETC. TO HOIST AND MOVE MATERIALS RAISE AND LOWER HEAVY WEIGHTS OPERATIONS MAY INVOLVE USE OF DRAG BUCKET CLAMSHELL ORANGE PEEL AND OTHER RELATED ATTACHMENTS."]
["ALL TYPE OF FLYING CRANES  FINISH GRADER","OPERATOR","CRANE GROUP 1","OPERATES A CRANE DRAGLINE ETC. TO HOIST AND MOVE MATERIALS RAISE AND LOWER HEAVY WEIGHTS OPERATIONS MAY INVOLVE USE OF DRAG BUCKET CLAMSHELL ORANGE PEEL AND OTHER RELATED ATTACHMENTS."]
["ANTENNATRANS LINE INSTALLER","CRAFTMAN","ANTENNATRANS LINE INSTALLER","INSTALLS COAXIAL CABLE AND ANTENNA AND OTHER RELATED TRANSMISSIONANTENNA SYSTEM DEVICES. MAY OPERATE A BUCKET TRUCK WHEN REQUIRED. VERIFIES THE QUALITY AN TIGHTNESS OF GROUND AND SURGE PROTECTION CONNECTIONS. CONNECTS DEVICES TO POWER SOURCE AND VERIFIES PROPER VOLTAGES. CONFIGURES SYSTEM FROM A REMOTE PERSONAL COMPUTER. VERIFIES ALL CONNECTIONS TO POWER CABLES AND TRANSMITTER."]
["ASBESTOS ABATEMENT WORKER","CRAFTMAN","ABATEMENT WORKER","INCLUDES PREPARATION WETTING STRIPPING REMOVAL SCRAPING VACUUMING BAGGING AND DISPOSING OF CONTAMINATEDHAZARDOUS MATERIALS WHETHER THEY CONTAIN ASBESTOS OR LEAD. INCLUDES THE REMOVAL APPLICATION OF ALL INSULATING MAERIALS  PROTECTIVE COVERINGS COATING AND FINISHING TO TYPES OF SYSTEMS."]
["ASBESTOS REMOVAL TECHNICIAN","CRAFTMAN","ABATEMENT WORKER","INCLUDES PREPARATION WETTING STRIPPING REMOVAL SCRAPING VACUUMING BAGGING AND DISPOSING OF CONTAMINATEDHAZARDOUS MATERIALS WHETHER THEY CONTAIN ASBESTOS OR LEAD. INCLUDES THE REMOVAL APPLICATION OF ALL INSULATING MAERIALS  PROTECTIVE COVERINGS COATING AND FINISHING TO TYPES OF SYSTEMS."]
["ASBESTOS WORKERSINSULATOR","CRAFTMAN","ABATEMENT WORKER","INCLUDES PREPARATION WETTING STRIPPING REMOVAL SCRAPING VACUUMING BAGGING AND DISPOSING OF CONTAMINATEDHAZARDOUS MATERIALS WHETHER THEY CONTAIN ASBESTOS OR LEAD. INCLUDES THE REMOVAL APPLICATION OF ALL INSULATING MAERIALS  PROTECTIVE COVERINGS COATING AND FINISHING TO TYPES OF SYSTEMS."]
["ASPHALT BROOM","OPERATOR","BROOM SWEEPER","OPERATES MACHINE WITH A BROOM ANDOR WATER SPRAYER FOR SETTLING DUST PARTICLES OR OTHER AIR BORN DEBRIS TO SWEEP DEBRIS FROM ROADWAYS OR EXTRACTING DEBRISPARTICLES FROM ROADWAY VIA VACUUMING SYSTEM."]
["ASPHALT DISTRIBUTOR","OPERATOR","DISTRIBUTOR","OPERATES DISTRIBUTOR THAT SPREADS MATERIAL EVENLY ACROSS ROADWAY; INCLUDES SAND AGGREGATE OR BITUMINOUS MATERIALS; SETS SPRAY BAR AND OPERATES VALVES AND LEVERS TO CONTROL DISTRIBUTION OF OIL OR BITUMINOUS LIQUID PRIME TACK ETC."]
["ASPHALT DISTRIBUTOR TRUCK DRIVER","OPERATOR","DISTRIBUTOR","OPERATES DISTRIBUTOR THAT SPREADS MATERIAL EVENLY ACROSS ROADWAY; INCLUDES SAND AGGREGATE OR BITUMINOUS MATERIALS; SETS SPRAY BAR AND OPERATES VALVES AND LEVERS TO CONTROL DISTRIBUTION OF OIL OR BITUMINOUS LIQUID PRIME TACK ETC."]
["ASPHALT HEATER","OPERATOR","ASPHALT HEATER","SETS UP AND MAINTAINS THE OPERATION OF A PORTABLE JOBSITE ASPHALT HEATER MACHINE."]
["ASPHALT LUTEMAN","LABORER","ASPHALT RAKER","FOLLOWS PAVING EQUIPMENT WHILE REWORKING RAISINGLOWERING AND SMOOTHING NEW ASPHALT JOINTS WITH LUTE TOOL AS HOT MIX ASPHALT IS BEING PLACED."]
["ASPHALT PAVER","OPERATOR","OPERATOR: PAVER (Asphalt, Aggregate and Concrete)","OPERATES A MACHINE/LEVERS TO CONTROL SPREADING AND LEVELING TO APPROXIMATE GRADE AND CONTOUR ASPHALTIC CONCRETE OR PORTLAND CEMENT CONCRETE AS WELL AS SLAG OR OTHER AGGREGATES FOR SURFACE TREATMENT, OVER CONCRETE PAVING FORMS OR SUBGRADE OF HIGHWAY."]
["ASPHALT PAVING SPREADER","OPERATOR","OPERATOR: PAVER (Asphalt, Aggregate and Concrete)","OPERATES A MACHINE/LEVERS TO CONTROL SPREADING AND LEVELING TO APPROXIMATE GRADE AND CONTOUR ASPHALTIC CONCRETE OR PORTLAND CEMENT CONCRETE AS WELL AS SLAG OR OTHER AGGREGATES FOR SURFACE TREATMENT, OVER CONCRETE PAVING FORMS OR SUBGRADE OF HIGHWAY."]
["ASPHALT PLANT","OPERATOR","ASPHALT PLANT","TENDS AN AGGREGATE DRYING DRUM OF AN ASPHALT PLANT. CONTROLS THE HEAT APPLIED TO DRUM STARTS AND STOPS AGGREGATE LOADING CONVEYORS AND ROTATION OF DRUM AND ASCERTAINS BY INSPECTION THAT AGGREGATES ARE FLOWING THROUGH DRUM PROPERLY."]
["ASPHALT PLANT DRYER OPERATOR","OPERATOR","ASPHALT PLANT","TENDS AN AGGREGATE DRYING DRUM OF AN ASPHALT PLANT. CONTROLS THE HEAT APPLIED TO DRUM STARTS AND STOPS AGGREGATE LOADING CONVEYORS AND ROTATION OF DRUM AND ASCERTAINS BY INSPECTION THAT AGGREGATES ARE FLOWING THROUGH DRUM PROPERLY."]
["ASPHALT RAKER","LABORER","ASPHALT RAKER","FOLLOWS PAVING EQUIPMENT WHILE REWORKING RAISINGLOWERING AND SMOOTHING NEW ASPHALT JOINTS WITH LUTE TOOL AS HOT MIX ASPHALT IS BEING PLACED."]
["ASPHALT ROLLER","OPERATOR","ROLLER","OPERATES A TANDEM OR THREEWHEELED STEEL OR RUBBER TIRE ROLLER IN CONJUNCTION WITH FINISHING OPERATIONS ON ASPHALT BASES OR PERFORMS INITIALPRELIMINARY ROLLING TO OBTAIN COMPACTION OF SUBGRADE OR BASE MATERIAL PRIOR TO THE FINISHING OPERATION."]
["ASPHALT SCREED","OPERATOR","ASPHALT SCREED","TURNS HAND WHEELS TO RAISE OR LOWER SCREEDS ON AN ASPHALT PAVING MACHINE TO ENSURE THE ASPHALT SURFACE WILL BE TO THE PROPER GRADE AND FINISH."]
["ASPHALT SERVICE TRUCK","TRUCK OPERATOR","SERVICEFUEL TRUCK","DRIVES AND OPERATES SERVICEFUEL TRUCK"]
["ASPHALT SHOVELER","LABORER","ASPHALT RAKER","FOLLOWS PAVING EQUIPMENT WHILE REWORKING RAISINGLOWERING AND SMOOTHING NEW ASPHALT JOINTS WITH LUTE TOOL AS HOT MIX ASPHALT IS BEING PLACED."]
["ASPHALT SHUTTLE BUGGY","OPERATOR","MATERIAL TRANSFER VEHICLE","ENSURES EQUIPMENT PROPERLY HOLDS AND TRANSFERS ASPHALT PAVEMENT BETWEEN THE DUMP TRUCKS AND THE PAVING MACHINE DURING PAVING OPERATIONS."]
["ASPHALT SPREADER","OPERATOR","OPERATOR: PAVER (Asphalt, Aggregate and Concrete)","OPERATES A MACHINE/LEVERS TO CONTROL SPREADING AND LEVELING TO APPROXIMATE GRADE AND CONTOUR ASPHALTIC CONCRETE OR PORTLAND CEMENT CONCRETE AS WELL AS SLAG OR OTHER AGGREGATES FOR SURFACE TREATMENT, OVER CONCRETE PAVING FORMS OR SUBGRADE OF HIGHWAY."]
["ASSISTANT SIGNAL MAINTAINER","LABORER","TRAFFIC SIGNAL INSTALLATION","READS TRAFFIC BLUE PRINTS AND INTERPRETS PLAN SET LAYOUTS  INSTALLATION AND WIRING OF TRAFFIC SIGNAL EQUIPMENT. INSTALLS POLESSPAN WIRE CONTROL CABLES  MAST ARMS SIGNAL HEADS LOOPS CONDUIT SERVICE CONTROLLERS WIRING AND RELATED PARTS MATERIALS AND COMPONENTS."]
["ATTENUATOR DRIVER","TRUCK DRIVER","TRAFFIC CONTROL SPECIALIST","INSTALLS AND SETS UP TEMPORARY TRAFFIC CONTROL DEVICES. ENSURES LANE CLOSURES ARE SET UP AND MAINTAINED PROPERLY. PROVIDES PROPER MAINTENANCE OF TRAFFIC USING APPROPRIATE ADVANCED WARNING DEVICES WITHIN THE APPLICABLE CONSTRUCTION OPERATION ZONES."]
["ATTENUATOR ERECTOR","LABORER","GUARDRAIL ERECTOR","CONSTRUCTS POST FOUNDATIONS ERECTS POSTS AND STRUCTURES AND ATTACHES GUARDRAIL."]
["ATTENUATOR TRUCK","TRUCK DRIVER","TRAFFIC CONTROL SPECIALIST","INSTALLS AND SETS UP TEMPORARY TRAFFIC CONTROL DEVICES. ENSURES LANE CLOSURES ARE SET UP AND MAINTAINED PROPERLY. PROVIDES PROPER MAINTENANCE OF TRAFFIC USING APPROPRIATE ADVANCED WARNING DEVICES WITHIN THE APPLICABLE CONSTRUCTION OPERATION ZONES."]
["ATTENUATORQUAD GUARD INSTALLER","LABORER","GUARDRAIL ERECTOR","CONSTRUCTS POST FOUNDATIONS ERECTS POSTS AND STRUCTURES AND ATTACHES GUARDRAIL."]
["AUDIBLE PVMT MARKER INSTALLER","OPERATOR","RUMBLE STRIP MACHINE","OPERATES EQUIPMENT THAT RAISE AND LOWER HYDRAULICS TO FORM AN INDENTION OR RAISED ASPHALT STRIPS IN THE SHOULDER OF THE HIGHWAY TO ALERT DRIVERS THAT THEY ARE OUT OF THE TRAVEL LANE"]
["AUGER","OPERATOR","DRILL","SETS UP AND OPERATES DRILLING MACHINE THAT DRILLS HOLES THROUGH CONCRETE ROCK ETC. LEVELS MACHINE BY PLACING TIMBERS UNDER WHEELS INSETS AND FASTENS DRILL STEEL IN CHUCK ADJUSTS ANGLE OF DRILL TOWER AND BOLTS IT IN POSITION CONTROLS DRILLING BY MOVING LEVERS."]
["AUTOMATED TRIMMER","OPERATOR","SCRAPER","OPERATES MACHINERY THAT SCRAPES AND TRANSPORTS EARTHWORK MATERIAL."]
["BACKHOE","OPERATOR","BACKHOE","OPERATES A MACHINE CONTAINING A POWER SHOVEL TO REMOVE MATERIAL."]
["BACKHOE  EXCAVATOR","OPERATOR","EXCAVATOR","OPERATES A MACHINE CONTAINING POWER SHOVEL TO REMOVE MATERIAL."]
["BACKHOE LOADER COMBO","OPERATOR","BACKHOE LOADER COMBO","OPERATES A MACHINE WHICH USUALLY HAS A FRONT BUCKET AND A REARMOUNTED POWER SHOVEL."]
["BASIC DIVER","CRAFTMAN","DIVER","WORKS PRIMARILY UNDERWATER OR AT THE WATERS SURFACE. PRIMARY EQUIPMENT UTILIZED IS SCUBA GEAR ANDOR SNORKEL. PERFORMS NUMEROUS DUTIES MOSTLY WITH VARIOUS TYPES OF HAND TOOLS."]
["BLADEGRADER","OPERATOR","MOTOR GRADER","OPERATES POWER DRIVEN GRADING MACHINE MANIPULATES HAND CONTROLS TO GUIDE MACHINE AND SET DEPTH AND ANGLE OF GRADING BLADE TO PERFORM FINISHED WORK SUCH AS SCRAPING AND LEVELING DIRT ON HIGHWAYS AND FINISHING SUBGRADE FOR ROADS AND THE FINISHED GRADING OF ROAD BASE MATERIALS."]
["BLASTER","OPERATOR","BLASTER","USES A SAND BEAD SODA OR WATER BLASTER TO REMOVE PAINT RUST OR OTHER MATERIAL FROM SURFACES."]
["BLOCK MASON","CRAFTMAN","CEMENT MASON","LAYS OUT WORK FROM PLANS AND SETS UP TEMPLATE AND GUIDELINES LAYS BRICK CONCRETE BLOCK CLAY TILES OR ARCHITECTURAL ROADWAY BRICK PAVERS IN CONSTRUCTION AND USES MORTAR OF VARIOUS TYPES."]
["BOAT CAPTAIN","CRAFTMAN","BOAT CAPTAIN","OPERATES A BOAT OR BARGE IN THE SUPPORT OF CONSTRUCTION PROJECTS."]
["BOAT OPERATOR","CRAFTMAN","BOAT CAPTAIN","OPERATES A BOAT OR BARGE IN THE SUPPORT OF CONSTRUCTION PROJECTS."]
["BOBCATBOBCATSKID STEER OPERATORBOBCATSKIDSTEER","OPERATOR","SKID STEER","OPERATES AN ENGINEPOWERED MACHINE USED WITH A WIDE VARIETY OF LABORSAVING TOOLS OR ATTACHMENTS."]
["BOOM AUGER","OPERATOR","DRILL","SETS UP AND OPERATES DRILLING MACHINE THAT DRILLS HOLES THROUGH CONCRETE ROCK ETC. LEVELS MACHINE BY PLACING TIMBERS UNDER WHEELS INSETS AND FASTENS DRILL STEEL IN CHUCK ADJUSTS ANGLE OF DRILL TOWER AND BOLTS IT IN POSITION CONTROLS DRILLING BY MOVING LEVERS."]
["BOOM TRUCK","OPERATOR","BOOM TRUCK","OPERATES A TRUCK WITH A MOUNTED BOOMNBSPTO ERECT SIGNS TO STAND POSTS AND STRUCTURES TO SET POLES AND OTHER SIMILAR OPERATIONS."]
["BOOMAUGER TRUCK","OPERATOR","DRILL","SETS UP AND OPERATES DRILLING MACHINE THAT DRILLS HOLES THROUGH CONCRETE ROCK ETC. LEVELS MACHINE BY PLACING TIMBERS UNDER WHEELS INSETS AND FASTENS DRILL STEEL IN CHUCK ADJUSTS ANGLE OF DRILL TOWER AND BOLTS IT IN POSITION CONTROLS DRILLING BY MOVING LEVERS."]
["BORE MACHINE","OPERATOR","BORING MACHINE","OPERATES A MACHINE WHICH BORES HORIZONTALLY UNDER ROADWAYS ETC. TO MAKE WAY FOR PIPE CABLE ETC."]
["BORE OPERATOR","OPERATOR","BORING MACHINE","OPERATES A MACHINE WHICH BORES HORIZONTALLY UNDER ROADWAYS ETC. TO MAKE WAY FOR PIPE CABLE ETC."]
["BORING GROUND TECHNICIAN","LABORER","BORING GROUND TECHNICIAN","LOCATES UTILITIES VIA HAND DIGS OPERATES RECOVERY TANKTRAILER FOR REMOVAL OF SLURRY MIX BORING GELSLURRY OPERATES EQUIPMENT ASSOCIATED WITH BORING GELSLURRY SLURRY TRUCK WHEN APPLICAGLE AND CONNECTS PIPE TO ROD."]
["BORING MACHINE","OPERATOR","BORING MACHINE","OPERATES A MACHINE WHICH BORES HORIZONTALLY UNDER ROADWAYS ETC. TO MAKE WAY FOR PIPE CABLE ETC."]
["BORING MACHINE LOCATOR","LABORER","BORING LOCATOR","LOCATES THE DRILL HEAD AND NAVIGATES THE DIRECTON OF THE BORE."]
["BORING ROD LOCATOR","LABORER","BORING LOCATOR","LOCATES THE DRILL HEAD AND NAVIGATES THE DIRECTON OF THE BORE."]
["BOX BLADE TRACTOR OPERATOR","OPERATOR","TRACTOR","OPERATES A MACHINE USED TO PULL GRADERSBOX BLADES PLOWS HARROWS ROLLERS AND TRAILERS OR HAS ATTACHMENTS FOR POST HOLE DIGGING."]
["BREAKER","OPERATOR","CRUSHER","OPERATES A TRUCK MOUNTED DEVICE TO BREAK UP ROADWAY MATERIAL."]
["BRICK INSTALLER","CRAFTMAN","CEMENT MASON","LAYS OUT WORK FROM PLANS AND SETS UP TEMPLATE AND GUIDELINES LAYS BRICK CONCRETE BLOCK CLAY TILES OR ARCHITECTURAL ROADWAY BRICK PAVERS IN CONSTRUCTION AND USES MORTAR OF VARIOUS TYPES."]
["BRICK MASON MASON","CRAFTMAN","CEMENT MASON","LAYS OUT WORK FROM PLANS AND SETS UP TEMPLATE AND GUIDELINES LAYS BRICK CONCRETE BLOCK CLAY TILES OR ARCHITECTURAL ROADWAY BRICK PAVERS IN CONSTRUCTION AND USES MORTAR OF VARIOUS TYPES."]
["BRICK PAVER INSTALLER","CRAFTMAN","CEMENT MASON","LAYS OUT WORK FROM PLANS AND SETS UP TEMPLATE AND GUIDELINES LAYS BRICK CONCRETE BLOCK CLAY TILES OR ARCHITECTURAL ROADWAY BRICK PAVERS IN CONSTRUCTION AND USES MORTAR OF VARIOUS TYPES."]
["BRICKLAYER","CRAFTMAN","CEMENT MASON","LAYS OUT WORK FROM PLANS AND SETS UP TEMPLATE AND GUIDELINES LAYS BRICK CONCRETE BLOCK CLAY TILES OR ARCHITECTURAL ROADWAY BRICK PAVERS IN CONSTRUCTION AND USES MORTAR OF VARIOUS TYPES."]
["BRICKLAYERBRICKMASON","CRAFTMAN","CEMENT MASON","LAYS OUT WORK FROM PLANS AND SETS UP TEMPLATE AND GUIDELINES LAYS BRICK CONCRETE BLOCK CLAY TILES OR ARCHITECTURAL ROADWAY BRICK PAVERS IN CONSTRUCTION AND USES MORTAR OF VARIOUS TYPES."]
["BRIDGE CARPENTER","CRAFTMAN","CARPENTER EXCLUDES FORM WORK","BUILDS ROUGH WOODEDN STRUCTURES IN PLACE OR IN UNITS TO BE ERECTED LATER NORMALLY USED ON HIGHWAY BRIDGES CULVERTS GRADE SEPARATORS INTERCHANGES DRAINAGE STRUCTURES AND OTHER HIGHWAY CONSTRUCTION WORK NORMALLY CONSISTS OF USING A VARIETY OF HAND TOOLS PORTABLE POWER TOOLS AND MEASURING INSTRUMENTS."]
["BRIDGE SCREED","OPERATOR","CONCRETE SCREED","OPERATES A SELFPROPELLED MACHINE THAT STRIKES OFF AND FINISHES CONCRETE TO ENSURE PROPER LEVEL."]
["BROOM","OPERATOR","BROOM SWEEPER","OPERATES MACHINE WITH A BROOM ANDOR WATER SPRAYER FOR SETTLING DUST PARTICLES OR OTHER AIR BORN DEBRIS TO SWEEP DEBRIS FROM ROADWAYS OR EXTRACTING DEBRISPARTICLES FROM ROADWAY VIA VACUUMING SYSTEM."]
["BROOM SWEEPER","OPERATOR","BROOM SWEEPER","OPERATES MACHINE WITH A BROOM ANDOR WATER SPRAYER FOR SETTLING DUST PARTICLES OR OTHER AIR BORN DEBRIS TO SWEEP DEBRIS FROM ROADWAYS OR EXTRACTING DEBRISPARTICLES FROM ROADWAY VIA VACUUMING SYSTEM."]
["BROOM SWEEPER VAC MACHINE","OPERATOR","BROOM SWEEPER","OPERATES MACHINE WITH A BROOM ANDOR WATER SPRAYER FOR SETTLING DUST PARTICLES OR OTHER AIR BORN DEBRIS TO SWEEP DEBRIS FROM ROADWAYS OR EXTRACTING DEBRISPARTICLES FROM ROADWAY VIA VACUUMING SYSTEM."]
["BROOM TRACTOR","OPERATOR","BROOM SWEEPER","OPERATES MACHINE WITH A BROOM ANDOR WATER SPRAYER FOR SETTLING DUST PARTICLES OR OTHER AIR BORN DEBRIS TO SWEEP DEBRIS FROM ROADWAYS OR EXTRACTING DEBRISPARTICLES FROM ROADWAY VIA VACUUMING SYSTEM."]
["BROOM TRACTOR OPEERATOR","OPERATOR","BROOM SWEEPER","OPERATES MACHINE WITH A BROOM ANDOR WATER SPRAYER FOR SETTLING DUST PARTICLES OR OTHER AIR BORN DEBRIS TO SWEEP DEBRIS FROM ROADWAYS OR EXTRACTING DEBRISPARTICLES FROM ROADWAY VIA VACUUMING SYSTEM."]
["BUCKET TRUCK","OPERATOR","BUCKET TRUCK","OPERATES A TRUCK WITH A MOUNTED BOOM  BUCKET TO ERECT SIGNS TO STAND POSTS AND STRUCTURES TO SET POLES AND OTHER SIMILAR OPERATIONS."]
["BUCKET TRUCK LOADER","OPERATOR","BUCKET TRUCK","OPERATES A TRUCK WITH A MOUNTED BOOM  BUCKET TO ERECT SIGNS TO STAND POSTS AND STRUCTURES TO SET POLES AND OTHER SIMILAR OPERATIONS."]
["BULLDOZER","OPERATOR","BULLDOZER","OPERATES A TRACTOR WITH A CONCAVE BLADE MOUNTED IN FRONT OF THE MACHINE TO LEVEL PUSH AND DISTRIBUTE EARTH AND OTHER MATERIALS."]
["BUNCHER","OPERATOR","FELLER BUNCHER","OPERATES EQUIPMENT THAT CUTS AND GATHERS TREES PRIOR TO FELLING."]
["CABINET INSTALLER","LABORER","TRAFFIC SIGNAL LABORER","UNDER THE DIRECTION OF THE TRAFFIC SIGNAL INSTALLER ASSISTS IN THE PHYSICAL TASK REQUIRED FOR THE INSTALLATION OF POLES MAST ARMS SIGNAL HEADS AND NBSP LOOPS. THIS POSITION DOES NO INSTALLATIONS."]
["CAMERA TRUCK","OPERATOR","CAMERA TRUCK","OPERATES CAMERA TO VIEW PIPE OR OTHER CONCEALED AREAS."]
["CAMERATV TRUCK","OPERATOR","CAMERA TRUCK","OPERATES CAMERA TO VIEW PIPE OR OTHER CONCEALED AREAS."]
["CARPENTER","CRAFTMAN","CARPENTER EXCLUDES FORM WORK","BUILDS ROUGH WOODEDN STRUCTURES IN PLACE OR IN UNITS TO BE ERECTED LATER NORMALLY USED ON HIGHWAY BRIDGES CULVERTS GRADE SEPARATORS INTERCHANGES DRAINAGE STRUCTURES AND OTHER HIGHWAY CONSTRUCTION WORK NORMALLY CONSISTS OF USING A VARIETY OF HAND TOOLS PORTABLE POWER TOOLS AND MEASURING INSTRUMENTS."]
["CARPENTER DOCK BUILDER","CRAFTMAN","CARPENTER EXCLUDES FORM WORK","BUILDS ROUGH WOODEDN STRUCTURES IN PLACE OR IN UNITS TO BE ERECTED LATER NORMALLY USED ON HIGHWAY BRIDGES CULVERTS GRADE SEPARATORS INTERCHANGES DRAINAGE STRUCTURES AND OTHER HIGHWAY CONSTRUCTION WORK NORMALLY CONSISTS OF USING A VARIETY OF HAND TOOLS PORTABLE POWER TOOLS AND MEASURING INSTRUMENTS."]
["CARPENTER EXCLUDES FORM WORK","CRAFTMAN","CARPENTER EXCLUDES FORM WORK","BUILDS ROUGH WOODEDN STRUCTURES IN PLACE OR IN UNITS TO BE ERECTED LATER NORMALLY USED ON HIGHWAY BRIDGES CULVERTS GRADE SEPARATORS INTERCHANGES DRAINAGE STRUCTURES AND OTHER HIGHWAY CONSTRUCTION WORK NORMALLY CONSISTS OF USING A VARIETY OF HAND TOOLS PORTABLE POWER TOOLS AND MEASURING INSTRUMENTS."]
["CARPENTER HIGHWAYBRIDGE","CRAFTMAN","CARPENTER EXCLUDES FORM WORK","BUILDS ROUGH WOODEDN STRUCTURES IN PLACE OR IN UNITS TO BE ERECTED LATER NORMALLY USED ON HIGHWAY BRIDGES CULVERTS GRADE SEPARATORS INTERCHANGES DRAINAGE STRUCTURES AND OTHER HIGHWAY CONSTRUCTION WORK NORMALLY CONSISTS OF USING A VARIETY OF HAND TOOLS PORTABLE POWER TOOLS AND MEASURING INSTRUMENTS."]
["CARPENTER INCLUDES FORM WORK","CRAFTMAN","CARPENTER INCLUDES FORM WORK","BUILDS ROUGH WOODEDN STRUCTURES IN PLACE OR IN UNITS TO BE ERECTED LATER NORMALLY USED ON HIGHWAY BRIDGES CULVERTS GRADE SEPARATORS INTERCHANGES DRAINAGE STRUCTURES AND OTHER HIGHWAY CONSTRUCTION WORK NORMALLY CONSISTS OF USING A VARIETY OF HAND TOOLS PORTABLE POWER TOOLS AND MEASURING INSTRUMENTS INCLUDING PREFAB FORMS."]
["CCTV TRUCK","OPERATOR","CAMERA TRUCK","OPERATES CAMERA TO VIEW PIPE OR OTHER CONCEALED AREAS."]
["CEMENT MASON","CRAFTMAN","CEMENT MASON","LAYS OUT WORK FROM PLANS AND SETS UP TEMPLATE AND GUIDELINES LAYS BRICK CONCRETE BLOCK CLAY TILES OR ARCHITECTURAL ROADWAY BRICK PAVERS IN CONSTRUCTION AND USES MORTAR OF VARIOUS TYPES."]
["CHAIN SAW OPERATOR","LABORER","POWER TOOL OPERATOR","USES SMALL HAND HELD POWER TOOLS DRIVEN BY COMPRESSED AIR GASOLINE OR ELECTRICAL POWER TO PERFORM VARIOUS TYPES OF WORK THAT MAY INVOLVE SAWING GRINDING CUTTING CHIPPING TRENCHING DIGGING BREAKING OF CONCRETE PAVEMENT OR WOOD ON A PROJECT."]
["CHAIN SAW OPERATOR","LABORER","POWER TOOL OPERATOR","USES SMALL HAND HELD POWER TOOLS DRIVEN BY COMPRESSED AIR GASOLINE OR ELECTRICAL POWER TO PERFORM VARIOUS TYPES OF WORK THAT MAY INVOLVE SAWING GRINDING CUTTING CHIPPING TRENCHING DIGGING BREAKING OF CONCRETE PAVEMENT OR WOOD ON A PROJECT."]
["CHIPPING HAMMER","OPERATOR","LARGE POWER TOOL OPERATOR","OPERATES STAND BEHIND AND PUSH HAND TOOLS DRIVEN BY COMPRESSED AIR GASOLINE OR ELECTRICAL POWER TO PERFORM SUCH WORK AS MOWERS SAWS AND TOOLS USED FOR BREAKING OLD PAVEMENT LOOSENING OR DIGGING HARD EARTH TRIMMING BOTTOM AND SIDES OF TRENCHES BREAKING LARGE ROCKS DRIVING SHEETING CHIPPING CONCRETE TRIMMING OR CUTTING STONE CAULKING STEEL PLATES."]
["CHIPPING MACHINE","OPERATOR","LARGE POWER TOOL OPERATOR","OPERATES STAND BEHIND AND PUSH HAND TOOLS DRIVEN BY COMPRESSED AIR GASOLINE OR ELECTRICAL POWER TO PERFORM SUCH WORK AS MOWERS SAWS AND TOOLS USED FOR BREAKING OLD PAVEMENT LOOSENING OR DIGGING HARD EARTH TRIMMING BOTTOM AND SIDES OF TRENCHES BREAKING LARGE ROCKS DRIVING SHEETING CHIPPING CONCRETE TRIMMING OR CUTTING STONE CAULKING STEEL PLATES."]
["CLAW TRUCK","OPERATOR","CLAW TRUCK","OPERATES A TRUCK WITH A TELESCOPING CLAW THAT IS USED TO LOAD CUT TREES AND DEBRI ONTO A TRUCK."]
["CLIMBERS","OPERATOR","CRANE GROUP 1","OPERATES A CRANE DRAGLINE ETC. TO HOIST AND MOVE MATERIALS RAISE AND LOWER HEAVY WEIGHTS OPERATIONS MAY INVOLVE USE OF DRAG BUCKET CLAMSHELL ORANGE PEEL AND OTHER RELATED ATTACHMENTS."]
["COMMERCIAL DIVER","CRAFTMAN","DIVER","WORKS PRIMARILY UNDERWATER OR AT THE WATERS SURFACE. PRIMARY EQUIPMENT UTILIZED IS SCUBA GEAR ANDOR SNORKEL. PERFORMS NUMEROUS DUTIES MOSTLY WITH VARIOUS TYPES OF HAND TOOLS."]
["COMMERCIAL TENDER","LABORER","DIVER TENDER","LAND BASED  ACTS AS AN ASSISTANT OR WATCH OUT FOR THE DIVER."]
["COMMON OR GENERAL","LABORER","COMMON OR GENERAL","UNSKILLED OR SEMISKILLED  LEVEL OF LABORER. MAY WORK IN MANY DIFFERENT FIELDS BUT HAS MINIMAL OR LIMITED EXPERIENCE."]
["CONC CURBSLIPFORM MACH","OPERATOR","CONCRETE SLIPFORM MACHINE","OPERATES A MACHINE FOR PLACING CURBGUTTER BARRIER WALL OR SIDEWALK WITH CONCRETE ADJUSTS SENSORS ON THE MACHINE TO CONTROL HORIZONTAL AND VERTICAL ALIGNMENT"]
["CONC. PUMP TRAILER MOUNT","OPERATOR","CONCRETE PUMP TRAILERTRUCK","MONITOR THE PRESSURE AND CONSISTENCY OF THE CONCRETE WHILE CONTROLLING WITH A REMOTE BOX  PUMP IS MOUNTED ON TRUCKTRAILERBOOM."]
["CONC. PUMP TRUCK MOUNTED","OPERATOR","CONCRETE PUMP TRAILERTRUCK","MONITOR THE PRESSURE AND CONSISTENCY OF THE CONCRETE WHILE CONTROLLING WITH A REMOTE BOX  PUMP IS MOUNTED ON TRUCKTRAILERBOOM."]
["CONC. SLIPFORM MACHINE","OPERATOR","CONCRETE SLIPFORM MACHINE","OPERATES A MACHINE FOR PLACING CURBGUTTER BARRIER WALL OR SIDEWALK WITH CONCRETE ADJUSTS SENSORS ON THE MACHINE TO CONTROL HORIZONTAL AND VERTICAL ALIGNMENT"]
["CONCRETE BOOM TRUCK","OPERATOR","BUCKET TRUCK","OPERATES A TRUCK WITH A MOUNTED BOOM  BUCKET TO ERECT SIGNS TO STAND POSTS AND STRUCTURES TO SET POLES AND OTHER SIMILAR OPERATIONS."]
["CONCRETE CORE RIG","OPERATOR","CORE DRILL","OPERATES CORE DRILLING EQUIPMENT TO DRILL HOLES OF A SPECIFIED SIZE IN A CONCRETE WALL OR SLAB"]
["CONCRETE CURB MACHINE","OPERATOR","CONCRETE SLIPFORM MACHINE","OPERATES A MACHINE FOR PLACING CURBGUTTER BARRIER WALL OR SIDEWALK WITH CONCRETE ADJUSTS SENSORS ON THE MACHINE TO CONTROL HORIZONTAL AND VERTICAL ALIGNMENT"]
["CONCRETE CURBSLIPFORM","OPERATOR","CONCRETE SLIPFORM MACHINE","OPERATES A MACHINE FOR PLACING CURBGUTTER BARRIER WALL OR SIDEWALK WITH CONCRETE ADJUSTS SENSORS ON THE MACHINE TO CONTROL HORIZONTAL AND VERTICAL ALIGNMENT"]
["CONCRETE CUTTER","OPERATOR","LARGE POWER TOOL OPERATOR","OPERATES STAND BEHIND AND PUSH HAND TOOLS DRIVEN BY COMPRESSED AIR GASOLINE OR ELECTRICAL POWER TO PERFORM SUCH WORK AS MOWERS SAWS AND TOOLS USED FOR BREAKING OLD PAVEMENT LOOSENING OR DIGGING HARD EARTH TRIMMING BOTTOM AND SIDES OF TRENCHES BREAKING LARGE ROCKS DRIVING SHEETING CHIPPING CONCRETE TRIMMING OR CUTTING STONE CAULKING STEEL PLATES."]
["CONCRETE CUTTERDRILLER","OPERATOR","LARGE POWER TOOL OPERATOR","OPERATES STAND BEHIND AND PUSH HAND TOOLS DRIVEN BY COMPRESSED AIR GASOLINE OR ELECTRICAL POWER TO PERFORM SUCH WORK AS MOWERS SAWS AND TOOLS USED FOR BREAKING OLD PAVEMENT LOOSENING OR DIGGING HARD EARTH TRIMMING BOTTOM AND SIDES OF TRENCHES BREAKING LARGE ROCKS DRIVING SHEETING CHIPPING CONCRETE TRIMMING OR CUTTING STONE CAULKING STEEL PLATES."]
["CONCRETE CUTTERDRILLER","LABORER","POWER TOOL OPERATOR","USES SMALL HAND HELD POWER TOOLS DRIVEN BY COMPRESSED AIR GASOLINE OR ELECTRICAL POWER TO PERFORM VARIOUS TYPES OF WORK THAT MAY INVOLVE SAWING GRINDING CUTTING CHIPPING TRENCHING DIGGING BREAKING OF CONCRETE PAVEMENT OR WOOD ON A PROJECT."]
["CONCRETE FINISHER","CRAFTMAN","CONCRETE FINISHER","LEVELS FRESH CONCRETE PAVING SURFACE TO DESIRED GRADE AND CONTOUR BY USE OF TROWELS AND FLOATS AND PUSHING AND PULLING SCREED OR TEMPLATE OVER THE SURFACE. SMOOTHES SURFACE WITH A FLOAT OR STRAIGHTEDGE.  MAY FORM AND FINISH EDGES AND JOINTS. MAY DO FINISHING WORK ON CURBS AND GUTTERS AND OTHER HGHWAY SRUCTURES."]
["CONCRETE FINISHER MACHINE","OPERATOR","LARGE POWER TOOL OPERATOR","OPERATES STAND BEHIND AND PUSH HAND TOOLS DRIVEN BY COMPRESSED AIR GASOLINE OR ELECTRICAL POWER TO PERFORM SUCH WORK AS MOWERS SAWS AND TOOLS USED FOR BREAKING OLD PAVEMENT LOOSENING OR DIGGING HARD EARTH TRIMMING BOTTOM AND SIDES OF TRENCHES BREAKING LARGE ROCKS DRIVING SHEETING CHIPPING CONCRETE TRIMMING OR CUTTING STONE CAULKING STEEL PLATES."]
["CONCRETE FORM SETTER","LABORER","FORM SETTER","USES PREFAB FORMS THAT FIT TOGETHER ALIGNS AND SETS TO GRADE METAL AND WOODEN FORMS FOR HOLDING CONCRETE MAY INVOLVE PAVING CURB OR OTHER STRUCTURES."]
["CONCRETE GINDERGROOVER","OPERATOR","GRINDERGROOVER","OPERATES A SELFPROPELLED MACHINE USED IN SCARIFYING AND REMOVING CONCRETE HIGHWAY PAINTTHERMOPLASTIC OR MAY CUT GROOVES IN THE SURFACE OF THE MATERIAL."]
["CONCRETE GRINDER","OPERATOR","GRINDERGROOVER","OPERATES A SELFPROPELLED MACHINE USED IN SCARIFYING AND REMOVING CONCRETE HIGHWAY PAINTTHERMOPLASTIC OR MAY CUT GROOVES IN THE SURFACE OF THE MATERIAL."]
["CONCRETE GROOVERGRINDER","OPERATOR","GRINDERGROOVER","OPERATES A SELFPROPELLED MACHINE USED IN SCARIFYING AND REMOVING CONCRETE HIGHWAY PAINTTHERMOPLASTIC OR MAY CUT GROOVES IN THE SURFACE OF THE MATERIAL."]
["CONCRETE HAND HELD SAW OPERATOR","LABORER","POWER TOOL OPERATOR","USES SMALL HAND HELD POWER TOOLS DRIVEN BY COMPRESSED AIR GASOLINE OR ELECTRICAL POWER TO PERFORM VARIOUS TYPES OF WORK THAT MAY INVOLVE SAWING GRINDING CUTTING CHIPPING TRENCHING DIGGING BREAKING OF CONCRETE PAVEMENT OR WOOD ON A PROJECT."]
["CONCRETE JOINT SAW","LABORER","POWER TOOL OPERATOR","USES SMALL HAND HELD POWER TOOLS DRIVEN BY COMPRESSED AIR GASOLINE OR ELECTRICAL POWER TO PERFORM VARIOUS TYPES OF WORK THAT MAY INVOLVE SAWING GRINDING CUTTING CHIPPING TRENCHING DIGGING BREAKING OF CONCRETE PAVEMENT OR WOOD ON A PROJECT."]
["CONCRETE MIXING TRUCK DRIVER","TRUCK OPERATOR","CONCRETE MIXING TRUCK DRIVER","DRIVES TRUCK UNDER A LOADING HOPPER TO RECEIVE SAND GRAVEL CEMENT AND WATER AND STARTS MIXER DELIVERS MIX TO LOCATION FOR UNLOADING MOVES LEVERS ON TRUCK TO RELEASE CONCRETE MIX. ASSEMBLES CHUTES AND CLEANS TRUCK AFTER DELIVERY TO PREVENT CONCRETE FROM HARDENING IN MIXER."]
["CONCRETE PAVING FINISH MACHINE","OPERATOR","OPERATOR: PAVER (Asphalt, Aggregate and Concrete)","OPERATES A MACHINE/LEVERS TO CONTROL SPREADING AND LEVELING TO APPROXIMATE GRADE AND CONTOUR ASPHALTIC CONCRETE OR PORTLAND CEMENT CONCRETE AS WELL AS SLAG OR OTHER AGGREGATES FOR SURFACE TREATMENT, OVER CONCRETE PAVING FORMS OR SUBGRADE OF HIGHWAY."]
["CONCRETE PAVING MACHINE","OPERATOR","OPERATOR: PAVER (Asphalt, Aggregate and Concrete)","OPERATES A MACHINE/LEVERS TO CONTROL SPREADING AND LEVELING TO APPROXIMATE GRADE AND CONTOUR ASPHALTIC CONCRETE OR PORTLAND CEMENT CONCRETE AS WELL AS SLAG OR OTHER AGGREGATES FOR SURFACE TREATMENT, OVER CONCRETE PAVING FORMS OR SUBGRADE OF HIGHWAY."]
["CONCRETE PUMP","OPERATOR","CONCRETE PUMP TRAILERTRUCK","MONITOR THE PRESSURE AND CONSISTENCY OF THE CONCRETE WHILE CONTROLLING WITH A REMOTE BOX  PUMP IS MOUNTED ON TRUCKTRAILERBOOM."]
["CONCRETE PUMP OPERATOR","OPERATOR","CONCRETE PUMP TRAILERTRUCK","MONITOR THE PRESSURE AND CONSISTENCY OF THE CONCRETE WHILE CONTROLLING WITH A REMOTE BOX  PUMP IS MOUNTED ON TRUCKTRAILERBOOM."]
["CONCRETE PUMP TRAILER","OPERATOR","CONCRETE PUMP TRAILERTRUCK","MONITOR THE PRESSURE AND CONSISTENCY OF THE CONCRETE WHILE CONTROLLING WITH A REMOTE BOX  PUMP IS MOUNTED ON TRUCKTRAILERBOOM."]
["CONCRETE PUMP TRAILERTRUCK","OPERATOR","CONCRETE PUMP TRAILERTRUCK","MONITOR THE PRESSURE AND CONSISTENCY OF THE CONCRETE WHILE CONTROLLING WITH A REMOTE BOX  PUMP IS MOUNTED ON TRUCKTRAILERBOOM."]
["CONCRETE PUMP TRUCK","OPERATOR","CONCRETE PUMP TRAILERTRUCK","MONITOR THE PRESSURE AND CONSISTENCY OF THE CONCRETE WHILE CONTROLLING WITH A REMOTE BOX  PUMP IS MOUNTED ON TRUCKTRAILERBOOM."]
["CONCRETE PUMPING","OPERATOR","CRANE GROUP 1","OPERATES A CRANE DRAGLINE ETC. TO HOIST AND MOVE MATERIALS RAISE AND LOWER HEAVY WEIGHTS OPERATIONS MAY INVOLVE USE OF DRAG BUCKET CLAMSHELL ORANGE PEEL AND OTHER RELATED ATTACHMENTS."]
["CONCRETE SAW","OPERATOR","CONCRETE SAW","STEERS CONCRETE SAW MACHINE WHICH CUTS JOINTS IN PAVEMENTS OR LOOPS IN ROADWAY BY MEANS OF AN ENGINE POWERED ROTARY BLADE."]
["CONCRETE SAW OPERATOR","OPERATOR","CONCRETE SAW","STEERS CONCRETE SAW MACHINE WHICH CUTS JOINTS IN PAVEMENTS OR LOOPS IN ROADWAY BY MEANS OF AN ENGINE POWERED ROTARY BLADE."]
["CONCRETE SCREED","OPERATOR","CONCRETE SCREED","OPERATES A SELFPROPELLED MACHINE THAT STRIKES OFF AND FINISHES CONCRETE TO ENSURE PROPER LEVEL."]
["CONCRETE SLIPFORM MACHINE","OPERATOR","CONCRETE SLIPFORM MACHINE","OPERATES A MACHINE FOR PLACING CURBGUTTER BARRIER WALL OR SIDEWALK WITH CONCRETE ADJUSTS SENSORS ON THE MACHINE TO CONTROL HORIZONTAL AND VERTICAL ALIGNMENT"]
["CONCRETE TRAILER PUMP HYDRAULIC CONCRETE PUMP","OPERATOR","CONCRETE PUMP TRAILERTRUCK","MONITOR THE PRESSURE AND CONSISTENCY OF THE CONCRETE WHILE CONTROLLING WITH A REMOTE BOX  PUMP IS MOUNTED ON TRUCKTRAILERBOOM."]
["CONCRETEASPHALT CRUSHER","OPERATOR","CRUSHER","OPERATES A TRUCK MOUNTED DEVICE TO BREAK UP ROADWAY MATERIAL."]
["CONCRETETHERMO GRINDER","OPERATOR","LARGE POWER TOOL OPERATOR","OPERATES STAND BEHIND AND PUSH HAND TOOLS DRIVEN BY COMPRESSED AIR GASOLINE OR ELECTRICAL POWER TO PERFORM SUCH WORK AS MOWERS SAWS AND TOOLS USED FOR BREAKING OLD PAVEMENT LOOSENING OR DIGGING HARD EARTH TRIMMING BOTTOM AND SIDES OF TRENCHES BREAKING LARGE ROCKS DRIVING SHEETING CHIPPING CONCRETE TRIMMING OR CUTTING STONE CAULKING STEEL PLATES."]
["CONSTRUCTION ELECTRICIAN","CRAFTMAN","ELECTRICIAN","PERFORMS A VARIETY OF ELECTRICAL TRADE FUNCTIONS SUCH AS INSTALLATION MAINTENANCE AND REPAIR FOR THE GENERATION DISTRIBUTION AND UTILIZATION OF ELECTRICAL ENERGY PLANS AND EXECUTES THE LAYOUT OF ELECTRICAL CONDUIT WIRING SYSTEMS SWITCHPANELS CIRCUIT BREAKERS CONTROLLERS AND OTHER ELECTRICAL TRANSMISSION EQUIPMENT UTILIZES A VARIETY OF ELECTRICAL HAND TOOLS MEASURING AND TESTING DEVICES."]
["CONSTRUCTION LABORER","LABORER","COMMON OR GENERAL","UNSKILLED OR SEMISKILLED  LEVEL OF LABORER. MAY WORK IN MANY DIFFERENT FIELDS BUT HAS MINIMAL OR LIMITED EXPERIENCE."]
["CONSTRUCTION SPECIALIST","LABORER","COMMON OR GENERAL","UNSKILLED OR SEMISKILLED  LEVEL OF LABORER. MAY WORK IN MANY DIFFERENT FIELDS BUT HAS MINIMAL OR LIMITED EXPERIENCE."]
["CORE DRILL","OPERATOR","CORE DRILL","OPERATES CORE DRILLING EQUIPMENT TO DRILL HOLES OF A SPECIFIED SIZE IN A CONCRETE WALL OR SLAB"]
["CORE DRILLING OPERATOR","OPERATOR","CORE DRILL","OPERATES CORE DRILLING EQUIPMENT TO DRILL HOLES OF A SPECIFIED SIZE IN A CONCRETE WALL OR SLAB"]
["CRANE GROUP 1","OPERATOR","CRANE GROUP 1","OPERATES A CRANE DRAGLINE ETC. TO HOIST AND MOVE MATERIALS RAISE AND LOWER HEAVY WEIGHTS OPERATIONS MAY INVOLVE USE OF DRAG BUCKET CLAMSHELL ORANGE PEEL AND OTHER RELATED ATTACHMENTS."]
["CRANE GROUP 2","OPERATOR","CRANE GROUP 2","OPERATES A CRANE DRAGLINE ETC. TO HOIST AND MOVE MATERIALS RAISE AND LOWER HEAVY WEIGHTS OPERATIONS MAY INVOLVE USE OF DRAG BUCKET CLAMSHELL ORANGE PEEL AND OTHER RELATED ATTACHMENTS."]
["CRANEDERRICKDRAGLINE","OPERATOR","CRANE GROUP 1","OPERATES A CRANE DRAGLINE ETC. TO HOIST AND MOVE MATERIALS RAISE AND LOWER HEAVY WEIGHTS OPERATIONS MAY INVOLVE USE OF DRAG BUCKET CLAMSHELL ORANGE PEEL AND OTHER RELATED ATTACHMENTS."]
["CRANES WITH 3 DRUMS WHEN 3RD DRUM IS RIGGED FOR WORK","OPERATOR","CRANE GROUP 1","OPERATES A CRANE DRAGLINE ETC. TO HOIST AND MOVE MATERIALS RAISE AND LOWER HEAVY WEIGHTS OPERATIONS MAY INVOLVE USE OF DRAG BUCKET CLAMSHELL ORANGE PEEL AND OTHER RELATED ATTACHMENTS."]
["CRANES WITH BOOM LENGTH LESS THAN 150 FEET WITH OR WITHOUT JIB","OPERATOR","CRANE GROUP 2","OPERATES A CRANE DRAGLINE ETC. TO HOIST AND MOVE MATERIALS RAISE AND LOWER HEAVY WEIGHTS OPERATIONS MAY INVOLVE USE OF DRAG BUCKET CLAMSHELL ORANGE PEEL AND OTHER RELATED ATTACHMENTS."]
["CRASH TRUCK DRIVER","TRUCK DRIVER","TRAFFIC CONTROL SPECIALIST","INSTALLS AND SETS UP TEMPORARY TRAFFIC CONTROL DEVICES. ENSURES LANE CLOSURES ARE SET UP AND MAINTAINED PROPERLY. PROVIDES PROPER MAINTENANCE OF TRAFFIC USING APPROPRIATE ADVANCED WARNING DEVICES WITHIN THE APPLICABLE CONSTRUCTION OPERATION ZONES."]
["CREW BOAT OPERATOR","LABORER","CREW BOAT OPERATOR","Required to have the knowledge and skill to safely operate a boat less than 35 feet in length that ferries workers, equipment, tools and materials to different locations around a jobsite.  Is competent in seamanship and understands US Coast Guard rules and regulations for operating a boat in navigable waters.  Required to tend to boat lines and tie up boats using various ropes and knots.  Understands and is able to operate navigational equipment."]
["CRUSHER","OPERATOR","CRUSHER","OPERATES A TRUCK MOUNTED DEVICE TO BREAK UP ROADWAY MATERIAL."]
["CURB ENGRAVOR","CRAFTMAN","CEMENT MASON","LAYS OUT WORK FROM PLANS AND SETS UP TEMPLATE AND GUIDELINES LAYS BRICK CONCRETE BLOCK CLAY TILES OR ARCHITECTURAL ROADWAY BRICK PAVERS IN CONSTRUCTION AND USES MORTAR OF VARIOUS TYPES."]
["CUTTERCHIPPER MACH","OPERATOR","CUTTERCHIPPER MACHINE","OPERATES EQUIPMENT USED FOR CHIPPING AND GRINDING TREES AND LIMBS"]
["CUTTERCHIPPER MACHINE","OPERATOR","CUTTERCHIPPER MACHINE","OPERATES EQUIPMENT USED FOR CHIPPING AND GRINDING TREES AND LIMBS"]
["DECK HAND","LABORER","DECK HAND","Required to tend to boat lines, tie up boats and barges using various ropes and knots, sweep and clean decks on boats, spotter for tugboat captain during maneuvering, assist in loading, and unloading and securing of loads for transportation."]
["DESILTER","OPERATOR","VACUUM TRUCK","OPERATES EQUIPMENT THAT REMOVES SAND WATER AND OBJECTS FROMNBSPPIPE BY A VACUUMING SYSTEM"]
["DETECTABLE WARNING INSTALLER","LABORER","DETECTABLE WARNING INSTALLER","INSTALLATION OF CURB RAMPS AND DETECTABLE WARNING MATS. THIS WORK MAY INVOLVE THE USE OF ADHESIVES AND SMALL HAND TOOS SUCH AS SCRAPERS AND DRILLS."]
["DETECTABLE WARNING INSTALLER","LABORER","DETECTABLE WARNING INSTALLER","INSTALLATION OF CURB RAMPS AND DETECTABLE WARNING MATS. THIS WORK MAY INVOLVE THE USE OF ADHESIVES AND SMALL HAND TOOS SUCH AS SCRAPERS AND DRILLS."]
["DIRECTIONAL BORE","OPERATOR","BORING MACHINE","OPERATES A MACHINE WHICH BORES HORIZONTALLY UNDER ROADWAYS ETC. TO MAKE WAY FOR PIPE CABLE ETC."]
["DIRECTIONAL BORE LOCATOR","LABORER","BORING LOCATOR","LOCATES THE DRILL HEAD AND NAVIGATES THE DIRECTON OF THE BORE."]
["DIRECTIONAL BORE MACHINE","OPERATOR","BORING MACHINE","OPERATES A MACHINE WHICH BORES HORIZONTALLY UNDER ROADWAYS ETC. TO MAKE WAY FOR PIPE CABLE ETC."]
["DIRECTIONAL BORING DRILL","OPERATOR","BORING MACHINE","OPERATES A MACHINE WHICH BORES HORIZONTALLY UNDER ROADWAYS ETC. TO MAKE WAY FOR PIPE CABLE ETC."]
["DIRECTIONAL BORING LOCATOR","LABORER","BORING LOCATOR","LOCATES THE DRILL HEAD AND NAVIGATES THE DIRECTON OF THE BORE."]
["DIRECTIONAL BORING MACHINE","OPERATOR","BORING MACHINE","OPERATES A MACHINE WHICH BORES HORIZONTALLY UNDER ROADWAYS ETC. TO MAKE WAY FOR PIPE CABLE ETC."]
["DIRECTIONAL BORING TECHNICIAN","LABORER","BORING GROUND TECHNICIAN","LOCATES UTILITIES VIA HAND DIGS OPERATES RECOVERY TANKTRAILER FOR REMOVAL OF SLURRY MIX BORING GELSLURRY OPERATES EQUIPMENT ASSOCIATED WITH BORING GELSLURRY SLURRY TRUCK WHEN APPLICAGLE AND CONNECTS PIPE TO ROD."]
["DIRECTIONAL DRILL","OPERATOR","BORING MACHINE","OPERATES A MACHINE WHICH BORES HORIZONTALLY UNDER ROADWAYS ETC. TO MAKE WAY FOR PIPE CABLE ETC."]
["DIRECTIONAL DRILL LOCATOR","LABORER","BORING LOCATOR","LOCATES THE DRILL HEAD AND NAVIGATES THE DIRECTON OF THE BORE."]
["DISTRIBUTOR","OPERATOR","DISTRIBUTOR","OPERATES DISTRIBUTOR THAT SPREADS MATERIAL EVENLY ACROSS ROADWAY; INCLUDES SAND AGGREGATE OR BITUMINOUS MATERIALS; SETS SPRAY BAR AND OPERATES VALVES AND LEVERS TO CONTROL DISTRIBUTION OF OIL OR BITUMINOUS LIQUID PRIME TACK ETC."]
["DISTRIBUTOR TRUCK","OPERATOR","DISTRIBUTOR","OPERATES DISTRIBUTOR THAT SPREADS MATERIAL EVENLY ACROSS ROADWAY; INCLUDES SAND AGGREGATE OR BITUMINOUS MATERIALS; SETS SPRAY BAR AND OPERATES VALVES AND LEVERS TO CONTROL DISTRIBUTION OF OIL OR BITUMINOUS LIQUID PRIME TACK ETC."]
["DISTRIBUTOR TRUCK DRIVER","OPERATOR","DISTRIBUTOR","OPERATES DISTRIBUTOR THAT SPREADS MATERIAL EVENLY ACROSS ROADWAY; INCLUDES SAND AGGREGATE OR BITUMINOUS MATERIALS; SETS SPRAY BAR AND OPERATES VALVES AND LEVERS TO CONTROL DISTRIBUTION OF OIL OR BITUMINOUS LIQUID PRIME TACK ETC."]
["DITCH WITCH","OPERATOR","LARGE POWER TOOL OPERATOR","OPERATES STAND BEHIND AND PUSH HAND TOOLS DRIVEN BY COMPRESSED AIR GASOLINE OR ELECTRICAL POWER TO PERFORM SUCH WORK AS MOWERS SAWS AND TOOLS USED FOR BREAKING OLD PAVEMENT LOOSENING OR DIGGING HARD EARTH TRIMMING BOTTOM AND SIDES OF TRENCHES BREAKING LARGE ROCKS DRIVING SHEETING CHIPPING CONCRETE TRIMMING OR CUTTING STONE CAULKING STEEL PLATES.."]
["DIVE TENDER","LABORER","DIVER TENDER","LAND BASED  ACTS AS AN ASSISTANT OR WATCH OUT FOR THE DIVER."]
["DIVER","CRAFTMAN","DIVER","WORKS PRIMARILY UNDERWATER OR AT THE WATERS SURFACE. PRIMARY EQUIPMENT UTILIZED IS SCUBA GEAR ANDOR SNORKEL. PERFORMS NUMEROUS DUTIES MOSTLY WITH VARIOUS TYPES OF HAND TOOLS."]
["DIVER PIPELAYER","CRAFTMAN","DIVER","WORKS PRIMARILY UNDERWATER OR AT THE WATERS SURFACE. PRIMARY EQUIPMENT UTILIZED IS SCUBA GEAR ANDOR SNORKEL. PERFORMS NUMEROUS DUTIES MOSTLY WITH VARIOUS TYPES OF HAND TOOLS."]
["DRAINAGE REHAB TECHNICIAN","CRAFTMAN","DRAINAGE REHAB TECHNICIAN","CLEAN/DESILT DRAINAGE STRUCTURES/STORM DRAINS/SANITARY PIPES; DOCUMENT VISUAL INSPECTION OF INTERIOR OF DRAINAGE STRUCTURES/STORM DRAINS/SANITARY PIPES BY MEANS OF VIDEO TAPE/LASER PROFILING; REPAIR AREAS IDENTIFIED AS BEING STRUCTURALLY COMPROMISING WITHIN INTERIOR OF DRAINAGE STRUCTURES/STORM DRAINS/SANITARY PIPES; REPAIR WORK INCLUDES BUT NOT LIMITED TO CHEMICAL GROUTING OR INSTALLATION OF SECTIONAL LINER REPLACEMENT/BLADDER WHICH CONSISTS OF INSTALLING LINER MATERIAL OVER MANHOLE OR CATCH BASIN; PUMPING HOT WATER TO PUSH LINER INTO THE EXISTING DRAINAGE STRUCTURES/STORM DRAINS/SANITARY PIPES; WHEN REQUIRED QUANTITY OF WATER FILLS SECTIONAL LINER REPLACEMENT/BLADDER, A CURING PERIOD IS ALLOCATED TO ENSURE ADHERENCE OF SECTIONAL LINER REPLACEMENT/BLADDER WITHIN INTERIOR OF DRAINAGE STRUCTURES/STORM DRAINS/SANITARY PIPES."]
["DREDGE OPERATOR","OPERATOR","DREDGE OPERATOR","OPERATES A DREDGE TO REMOVE SAND GRAVEL OR OTHER MATERIALS IN ORDER TO EXCAVATE AND MAINTAIN A NAVIGABLE CHANNEL IN WATERWAYS."]
["DRILL LOCATOR","LABORER","BORING LOCATOR","LOCATES THE DRILL HEAD AND NAVIGATES THE DIRECTON OF THE BORE."]
["DRILL MACHINE","OPERATOR","DRILL","SETS UP AND OPERATES DRILLING MACHINE THAT DRILLS HOLES THROUGH CONCRETE ROCK ETC. LEVELS MACHINE BY PLACING TIMBERS UNDER WHEELS INSETS AND FASTENS DRILL STEEL IN CHUCK ADJUSTS ANGLE OF DRILL TOWER AND BOLTS IT IN POSITION CONTROLS DRILLING BY MOVING LEVERS."]
["DRILL RIG","OPERATOR","DRILL","SETS UP AND OPERATES DRILLING MACHINE THAT DRILLS HOLES THROUGH CONCRETE ROCK ETC. LEVELS MACHINE BY PLACING TIMBERS UNDER WHEELS INSETS AND FASTENS DRILL STEEL IN CHUCK ADJUSTS ANGLE OF DRILL TOWER AND BOLTS IT IN POSITION CONTROLS DRILLING BY MOVING LEVERS."]
["DRILL SHAFT DRILLER","OPERATOR","DRILL","SETS UP AND OPERATES DRILLING MACHINE THAT DRILLS HOLES THROUGH CONCRETE ROCK ETC. LEVELS MACHINE BY PLACING TIMBERS UNDER WHEELS INSETS AND FASTENS DRILL STEEL IN CHUCK ADJUSTS ANGLE OF DRILL TOWER AND BOLTS IT IN POSITION CONTROLS DRILLING BY MOVING LEVERS."]
["DRILL SHAFT LABORER","LABORER","DRILL SHAFT MAN","CONTINUOUSLY ENSURES THE PROPER RATIO OF SLURRY AND WATER IS ACHIEVED WHILE DRILLING OPERATION IS OCCURRING IN ORDER TO MAINTAIN STABILIZATION OF AREA ASSEMBLES AND INSTALLS CAGEFORM CONSTRUCTED OF REBAR STEEL INTO DRILLED AREAS INSTALLATION OF TREMI PRIOR TO CONCRETE PUMPINGINSTALLATION OPERATION IF APPLICABLE.   TREMIE IS TUBING USED ON DEEP FOUNDATIONS IT IS LOWERED TO THE BOTTOM OF THE HOLE CONCRETE IS POURED FROM THE TRUCK CHUTE THROUGH TUBING AS CONCRETE RISES IN THE HOLE SO IS THE TUBING AND IS REMOVED WHEN THE HOLE IS FILLED."]
["DRILL SHAFT MAN","LABORER","DRILL SHAFT MAN","CONTINUOUSLY ENSURES THE PROPER RATIO OF SLURRY AND WATER IS ACHIEVED WHILE DRILLING OPERATION IS OCCURRING IN ORDER TO MAINTAIN STABILIZATION OF AREA ASSEMBLES AND INSTALLS CAGEFORM CONSTRUCTED OF REBAR STEEL INTO DRILLED AREAS INSTALLATION OF TREMI PRIOR TO CONCRETE PUMPINGINSTALLATION OPERATION IF APPLICABLE.   TREMIE IS TUBING USED ON DEEP FOUNDATIONS IT IS LOWERED TO THE BOTTOM OF THE HOLE CONCRETE IS POURED FROM THE TRUCK CHUTE THROUGH TUBING AS CONCRETE RISES IN THE HOLE SO IS THE TUBING AND IS REMOVED WHEN THE HOLE IS FILLED."]
["DRILL SHAFT OPERATOR","OPERATOR","DRILL","SETS UP AND OPERATES DRILLING MACHINE THAT DRILLS HOLES THROUGH CONCRETE ROCK ETC. LEVELS MACHINE BY PLACING TIMBERS UNDER WHEELS INSETS AND FASTENS DRILL STEEL IN CHUCK ADJUSTS ANGLE OF DRILL TOWER AND BOLTS IT IN POSITION CONTROLS DRILLING BY MOVING LEVERS."]
["DRILL SHAFT WORKER","LABORER","DRILL SHAFT MAN","CONTINUOUSLY ENSURES THE PROPER RATIO OF SLURRY AND WATER IS ACHIEVED WHILE DRILLING OPERATION IS OCCURRING IN ORDER TO MAINTAIN STABILIZATION OF AREA ASSEMBLES AND INSTALLS CAGEFORM CONSTRUCTED OF REBAR STEEL INTO DRILLED AREAS INSTALLATION OF TREMI PRIOR TO CONCRETE PUMPINGINSTALLATION OPERATION IF APPLICABLE.   TREMIE IS TUBING USED ON DEEP FOUNDATIONS IT IS LOWERED TO THE BOTTOM OF THE HOLE CONCRETE IS POURED FROM THE TRUCK CHUTE THROUGH TUBING AS CONCRETE RISES IN THE HOLE SO IS THE TUBING AND IS REMOVED WHEN THE HOLE IS FILLED."]
["DRILLED SHAFT MAN","LABORER","DRILL SHAFT MAN","CONTINUOUSLY ENSURES THE PROPER RATIO OF SLURRY AND WATER IS ACHIEVED WHILE DRILLING OPERATION IS OCCURRING IN ORDER TO MAINTAIN STABILIZATION OF AREA ASSEMBLES AND INSTALLS CAGEFORM CONSTRUCTED OF REBAR STEEL INTO DRILLED AREAS INSTALLATION OF TREMI PRIOR TO CONCRETE PUMPINGINSTALLATION OPERATION IF APPLICABLE.   TREMIE IS TUBING USED ON DEEP FOUNDATIONS IT IS LOWERED TO THE BOTTOM OF THE HOLE CONCRETE IS POURED FROM THE TRUCK CHUTE THROUGH TUBING AS CONCRETE RISES IN THE HOLE SO IS THE TUBING AND IS REMOVED WHEN THE HOLE IS FILLED."]
["DRILLED SHAFT OPERATOR","OPERATOR","DRILL","SETS UP AND OPERATES DRILLING MACHINE THAT DRILLS HOLES THROUGH CONCRETE ROCK ETC. LEVELS MACHINE BY PLACING TIMBERS UNDER WHEELS INSETS AND FASTENS DRILL STEEL IN CHUCK ADJUSTS ANGLE OF DRILL TOWER AND BOLTS IT IN POSITION CONTROLS DRILLING BY MOVING LEVERS."]
["DRILLER","OPERATOR","DRILL","SETS UP AND OPERATES DRILLING MACHINE THAT DRILLS HOLES THROUGH CONCRETE ROCK ETC. LEVELS MACHINE BY PLACING TIMBERS UNDER WHEELS INSETS AND FASTENS DRILL STEEL IN CHUCK ADJUSTS ANGLE OF DRILL TOWER AND BOLTS IT IN POSITION CONTROLS DRILLING BY MOVING LEVERS."]
["DRILLING MACHINE","OPERATOR","DRILL","SETS UP AND OPERATES DRILLING MACHINE THAT DRILLS HOLES THROUGH CONCRETE ROCK ETC. LEVELS MACHINE BY PLACING TIMBERS UNDER WHEELS INSETS AND FASTENS DRILL STEEL IN CHUCK ADJUSTS ANGLE OF DRILL TOWER AND BOLTS IT IN POSITION CONTROLS DRILLING BY MOVING LEVERS."]
["DRYWALL INSTALLERFINISHER","LABORER","DRYWALL INSTALLERFINISHER","APPLIES FINISHES TO DRYWALL SUCH AS MUD OR PLASTER. INVOLVES TAPING MUDDING AND SANDING CAN INCLUDE INTERIOR AND EXTERIOR WALLS AND CEILINGS."]
["DUMP TRUCK","TRUCK DRIVER","DUMP TRUCK","DRIVES A LIGHT OR HEAVY DUTY TRUCK WITH TANDEM REARAXLE OR SINGLE REARAXLE WITH A DUMPING BED USED IN HAULING MATERIALS."]
["EARTH MOVER","OPERATOR","SCRAPER","OPERATES MACHINERY THAT SCRAPES AND TRANSPORTS EARTHWORK MATERIAL."]
["EARTH WALL ERECTOR","CRAFTMAN","WALL ERECTOR","HOLDS, ALIGNS, PLUMBS, SETS VERTICALLY TO ELEVATION WALL SECTIONS OR PRECAST PANELS; TYING OF BACKSTRAPS; DRIVES STAKES FOR BRACES; GRADE, FORM AND POUR LEVELING PAD; COMPACTION OF BACKFILL"]
["ELECTRIC OR OTHERWISE","OPERATOR","CRANE GROUP 1","OPERATES A CRANE DRAGLINE ETC. TO HOIST AND MOVE MATERIALS RAISE AND LOWER HEAVY WEIGHTS OPERATIONS MAY INVOLVE USE OF DRAG BUCKET CLAMSHELL ORANGE PEEL AND OTHER RELATED ATTACHMENTS."]
["ELECTRICAL INSTALLER","CRAFTMAN","ELECTRICIAN","PERFORMS A VARIETY OF ELECTRICAL TRADE FUNCTIONS SUCH AS INSTALLATION MAINTENANCE AND REPAIR FOR THE GENERATION DISTRIBUTION AND UTILIZATION OF ELECTRICAL ENERGY PLANS AND EXECUTES THE LAYOUT OF ELECTRICAL CONDUIT WIRING SYSTEMS SWITCHPANELS CIRCUIT BREAKERS CONTROLLERS AND OTHER ELECTRICAL TRANSMISSION EQUIPMENT UTILIZES A VARIETY OF ELECTRICAL HAND TOOLS MEASURING AND TESTING DEVICES."]
["ELECTRICAL LABORER","LABORER","ELECTRICAL LABORER","HELPS ELECTRICIAN BY PERFORMING DUTIES REQUIREING LESS SKILL. DUTIES INCLUDE USING SUPPLYING OR HOLDING MATERIALS OR TOOLS AND CLEANING WORK AREA AND EQUIPMENT. RESTRICTED TO MOVEMENT AND HANDLING OF MATERIALS EXCLUDES ANY INSTALLATION."]
["ELECTRICAL MECHANIC","CRAFTMAN","ELECTRICIAN","PERFORMS A VARIETY OF ELECTRICAL TRADE FUNCTIONS SUCH AS INSTALLATION MAINTENANCE AND REPAIR FOR THE GENERATION DISTRIBUTION AND UTILIZATION OF ELECTRICAL ENERGY PLANS AND EXECUTES THE LAYOUT OF ELECTRICAL CONDUIT WIRING SYSTEMS SWITCHPANELS CIRCUIT BREAKERS CONTROLLERS AND OTHER ELECTRICAL TRANSMISSION EQUIPMENT UTILIZES A VARIETY OF ELECTRICAL HAND TOOLS MEASURING AND TESTING DEVICES."]
["ELECTRICIAN","CRAFTMAN","ELECTRICIAN","PERFORMS A VARIETY OF ELECTRICAL TRADE FUNCTIONS SUCH AS INSTALLATION MAINTENANCE AND REPAIR FOR THE GENERATION DISTRIBUTION AND UTILIZATION OF ELECTRICAL ENERGY PLANS AND EXECUTES THE LAYOUT OF ELECTRICAL CONDUIT WIRING SYSTEMS SWITCHPANELS CIRCUIT BREAKERS CONTROLLERS AND OTHER ELECTRICAL TRANSMISSION EQUIPMENT UTILIZES A VARIETY OF ELECTRICAL HAND TOOLS MEASURING AND TESTING DEVICES."]
["ELECTRICIAN HELPER","LABORER","ELECTRICAL LABORER","HELPS ELECTRICIAN BY PERFORMING DUTIES REQUIREING LESS SKILL. DUTIES INCLUDE USING SUPPLYING OR HOLDING MATERIALS OR TOOLS AND CLEANING WORK AREA AND EQUIPMENT. RESTRICTED TO MOVEMENT AND HANDLING OF MATERIALS EXCLUDES ANY INSTALLATION."]
["ELECTROHYDRAULIC TECHNICIAN","CRAFTMAN","MECHANIC","ASSEMBLES DIASSEMBLES SETS UP DIAGNOSES ADJUST AND MAINTAINS CONSTRUCTION EQUIPMENT ON THE PROJECT. MAY WELD PARTS OR STEEL TO REPAIR EQUIPMENT."]
["ELECTRONICS INSTALLER","LABORER","ELECTRONICS INSTALLER","SPECIALIZES OR PARTICIPATES IN DESIGN INSTALLATION, MAINTENANCE, RIGGING, OR REPAIR TOWER BASED ELECTRONIC TRANSMISSION EQUIPMENT UTILIZED FOR COMMUNICATION, NAVIGATIONAL, OR DIGITAL DATA. SELF-SUFFICIENT AND CAPABLE CLIMBING HEIGHTS SAFELY FOR SELF AND OTHERS. PROFICIENT IN ANTENNNA AND OTHER INSTALLATION TYPES. ABLE TO BE TRAINED OR CERTIFIED IN SAFETY/RESCUE. WILL SUPPORT MORE EXPERIENCED TECHNICIANS’ INSTALLATION OF VOICE, DATA, VIDEO, OR OTHER COMMUNICATION TRANSMISSION METHODOLOGY AS REQUIRED ON TRANSPORTATION PROJECTS."]
["ELECTRONICS TECHNICIAN","CRAFTMAN","ITS TECHNICIAN","PREPARES ELECTRONIC AND FIBER OPTIC CABLING FORM INTERFACE WITH ELECTRONIC IN ENCLOSURES RACKS OR MOUNTS. TESTS TROUBLE SHOOTS ANDINSTALLS ITS DEVICES SUCH AS CAMERAS ETC."]
["END DUMP OPERATOR","TRUCK DRIVER","DUMP TRUCK","DRIVES A LIGHT OR HEAVY DUTY TRUCK WITH TANDEM REARAXLE OR SINGLE REARAXLE WITH A DUMPING BED USED IN HAULING MATERIALS."]
["EPA CERTIFIED WORKER","CRAFTMAN","ABATEMENT WORKER","INCLUDES PREPARATION WETTING STRIPPING REMOVAL SCRAPING VACUUMING BAGGING AND DISPOSING OF CONTAMINATEDHAZARDOUS MATERIALS WHETHER THEY CONTAIN ASBESTOS OR LEAD. INCLUDES THE REMOVAL APPLICATION OF ALL INSULATING MAERIALS  PROTECTIVE COVERINGS COATING AND FINISHING TO TYPES OF SYSTEMS."]
["EQUIPMENT MAINTENANCE TECHNICIAN","CRAFTMAN","MECHANIC","ASSEMBLES DIASSEMBLES SETS UP DIAGNOSES ADJUST AND MAINTAINS CONSTRUCTION EQUIPMENT ON THE PROJECT. MAY WELD PARTS OR STEEL TO REPAIR EQUIPMENT."]
["EROSION CONTROL SPECIALIST","LABORER","EROSION CONTROL SPECIALIST","MAINTAINS OR RESTORES ALL EROSION CONTROL DEVICES SUCH AS SILT FENCING AND FIBER BALES. MUST BE ABLE TO READ AND INTERPRET PLANS TO INSURE INSTALLATION IS CORRECT MONITORS PROJECT DURING CONSTRUCTION AND IDENTIFIES AREAS THAT NEED TO BE FIXED."]
["EXCAVATOR","OPERATOR","EXCAVATOR","OPERATES A MACHINE CONTAINING POWER SHOVEL TO REMOVE MATERIAL."]
["EXCAVATORTRACKHOE","OPERATOR","EXCAVATOR","OPERATES A MACHINE CONTAINING POWER SHOVEL TO REMOVE MATERIAL."]
["EXPLOSIVE HANDLER","CRAFTMAN","EXPLOSIVE HANDLER","PERSON AUTHORIZED BY ATF TO LOAD BLAST HOLES UNDER THE DIRECTION OF THE BLASTER IN CHARGE."]
["FELLER BUNCHER","OPERATOR","FELLER BUNCHER","OPERATES EQUIPMENT THAT CUTS AND GATHERS TREES PRIOR TO FELLING."]
["FENCE ERECTOR","LABORER","FENCE ERECTOR","ERECTS AND REPAIRS METAL AND WOODEN FENCES AND FENCE GATES AROUND HIGHWAY ESTABLISHMENTS. INVOLVES THE USE OF HAND AND POWER TOOLS."]
["FENCE INSTALLER","LABORER","FENCE ERECTOR","ERECTS AND REPAIRS METAL AND WOODEN FENCES AND FENCE GATES AROUND HIGHWAY ESTABLISHMENTS. INVOLVES THE USE OF HAND AND POWER TOOLS."]
["FENCE LABORER","LABORER","FENCE ERECTOR","ERECTS AND REPAIRS METAL AND WOODEN FENCES AND FENCE GATES AROUND HIGHWAY ESTABLISHMENTS. INVOLVES THE USE OF HAND AND POWER TOOLS."]
["FENCE POST DRIVER OPERATOR","OPERATOR","DRILL","SETS UP AND OPERATES DRILLING MACHINE THAT DRILLS HOLES THROUGH CONCRETE ROCK ETC. LEVELS MACHINE BY PLACING TIMBERS UNDER WHEELS INSETS AND FASTENS DRILL STEEL IN CHUCK ADJUSTS ANGLE OF DRILL TOWER AND BOLTS IT IN POSITION CONTROLS DRILLING BY MOVING LEVERS."]
["FIBER OPTIC INSTALLER","CRAFTMAN","FIBER OPTIC INSTALLER","SPECIALIZED IN THE INSTALLATION AND REPAIR OF FIBER OPTIC CABLE MAY INVOLVE STRINGING CABLE OR LAYING UNDERGROUND. MAY HAVE TO USE PLOWS TRENCHERS BORERS OR WINCHES FOR INSTALLATION. INSTALLATION OF TERMINAL BOXES INSULATION AND OTHER AUXILIARY EQUIPMENT SUCH AS SIGNAL AMPLIFIERS AND REPEATERS. ALSO INVOLVES TESTING."]
["FIBER OPTIC LINEMAN","CRAFTMAN","FIBER OPTIC INSTALLER","SPECIALIZED IN THE INSTALLATION AND REPAIR OF FIBER OPTIC CABLE MAY INVOLVE STRINGING CABLE OR LAYING UNDERGROUND. MAY HAVE TO USE PLOWS TRENCHERS BORERS OR WINCHES FOR INSTALLATION. INSTALLATION OF TERMINAL BOXES INSULATION AND OTHER AUXILIARY EQUIPMENT SUCH AS SIGNAL AMPLIFIERS AND REPEATERS. ALSO INVOLVES TESTING."]
["FIBER OPTIC REPAIRER","CRAFTMAN","FIBER OPTIC INSTALLER","SPECIALIZED IN THE INSTALLATION AND REPAIR OF FIBER OPTIC CABLE MAY INVOLVE STRINGING CABLE OR LAYING UNDERGROUND. MAY HAVE TO USE PLOWS TRENCHERS BORERS OR WINCHES FOR INSTALLATION. INSTALLATION OF TERMINAL BOXES INSULATION AND OTHER AUXILIARY EQUIPMENT SUCH AS SIGNAL AMPLIFIERS AND REPEATERS. ALSO INVOLVES TESTING."]
["FIBER OPTIC SPLICER","CRAFTMAN","FIBER OPTIC INSTALLER","SPECIALIZED IN THE INSTALLATION AND REPAIR OF FIBER OPTIC CABLE MAY INVOLVE STRINGING CABLE OR LAYING UNDERGROUND. MAY HAVE TO USE PLOWS TRENCHERS BORERS OR WINCHES FOR INSTALLATION. INSTALLATION OF TERMINAL BOXES INSULATION AND OTHER AUXILIARY EQUIPMENT SUCH AS SIGNAL AMPLIFIERS AND REPEATERS. ALSO INVOLVES TESTING."]
["FIBER OPTIC TECHNICIAN","CRAFTMAN","FIBER OPTIC TECHNICIAN","OVERSEES AND INVOLVED IN THE INSTALLATION AND REPAIR OF FIBER OPTIC CABLE MAY INVOLVE STRINGING CABLE OR LAYING UNDERGROUND FUSION AND MECHANICAL SPLICING OF FIBER OPTIC CABLE AND THE CONNECTION AND INTERFACE OF FIBER OPTIC CABLINGNBSPTO TERMINAL BOXESNBSPAND OTHER AUXILIARY EQUIPMENT SUCH AS SIGNAL AMPLIFIERS AND REPEATERS. LOCATES AND DIAGNOSES FIBER OPTIC SYSTEM TROUBLES ALSO INVOLVES TESTING."]
["FINISH ROLLER","OPERATOR","ROLLER","OPERATES A TANDEM OR THREEWHEELED STEEL OR RUBBER TIRE ROLLER IN CONJUNCTION WITH FINISHING OPERATIONS ON ASPHALT BASES OR PERFORMS INITIALPRELIMINARY ROLLING TO OBTAIN COMPACTION OF SUBGRADE OR BASE MATERIAL PRIOR TO THE FINISHING OPERATION."]
["FIRESTOPPING APPLICATOR","LABORER","FIRESTOPPING APPLICATOR","FIRESTOP PENETRATIONS OF MEP TRADES THROUGH RATED WALLS, FLOORS AND JOINTS USING MINERAL WOOL, CAULK OR FIRESTOPPING COLLARS."]
["FLAGGER","LABORER","FLAGGER","DIRECTS TRAFFIC THROUGH CONSTRUCTION ZONES AS NEEDED. REQUIRES FLAGGING CERTIFICATION AND WORKS UNDER THE SUPERVISION OF THE WORKSITE TRAFFIC SUPERVISOR."]
["FLAGMAN","LABORER","FLAGGER","DIRECTS TRAFFIC THROUGH CONSTRUCTION ZONES AS NEEDED. REQUIRES FLAGGING CERTIFICATION AND WORKS UNDER THE SUPERVISION OF THE WORKSITE TRAFFIC SUPERVISOR."]
["FORKLIFT","OPERATOR","FORKLIFT","OPERATES MACHINE WHICH IS USED TO LIFT AND TRANSPORT OBJECTS VIA FORKS."]
["FORM CARPENTER","CRAFTMAN","CARPENTER INCLUDES FORM WORK","BUILDS ROUGH WOODEDN STRUCTURES IN PLACE OR IN UNITS TO BE ERECTED LATER NORMALLY USED ON HIGHWAY BRIDGES CULVERTS GRADE SEPARATORS INTERCHANGES DRAINAGE STRUCTURES AND OTHER HIGHWAY CONSTRUCTION WORK NORMALLY CONSISTS OF USING A VARIETY OF HAND TOOLS PORTABLE POWER TOOLS AND MEASURING INSTRUMENTS INCLUDING PREFAB FORMS."]
["FORM CURB  GUTTER BUILDER","LABORER","FORM SETTER","USES PREFAB FORMS THAT FIT TOGETHER ALIGNS AND SETS TO GRADE METAL AND WOODEN FORMS FOR HOLDING CONCRETE MAY INVOLVE PAVING CURB OR OTHER STRUCTURES."]
["FORM SETTER","LABORER","FORM SETTER","USES PREFAB FORMS THAT FIT TOGETHER ALIGNS AND SETS TO GRADE METAL AND WOODEN FORMS FOR HOLDING CONCRETE MAY INVOLVE PAVING CURB OR OTHER STRUCTURES."]
["FORM WORK","CRAFTMAN","CARPENTER INCLUDES FORM WORK","BUILDS ROUGH WOODEDN STRUCTURES IN PLACE OR IN UNITS TO BE ERECTED LATER NORMALLY USED ON HIGHWAY BRIDGES CULVERTS GRADE SEPARATORS INTERCHANGES DRAINAGE STRUCTURES AND OTHER HIGHWAY CONSTRUCTION WORK NORMALLY CONSISTS OF USING A VARIETY OF HAND TOOLS PORTABLE POWER TOOLS AND MEASURING INSTRUMENTS INCLUDING PREFAB FORMS."]
["FORM WORKER","LABORER","FORM SETTER","USES PREFAB FORMS THAT FIT TOGETHER ALIGNS AND SETS TO GRADE METAL AND WOODEN FORMS FOR HOLDING CONCRETE MAY INVOLVE PAVING CURB OR OTHER STRUCTURES."]
["FRONT END LOADER","OPERATOR","FRONT END LOADER","OPERATES A CRAWLER OR RUBBER TIRED TYPE TRACTOR WITH A FRONT MOUNTED SCOOP BUCKET THE BUCKET RAISES AND LOWERS TO DUMP CONTENTS."]
["FUEL MAINTENANCE TECHNICIAN","TRUCK OPERATOR","SERVICEFUEL TRUCK","DRIVES AND OPERATES SERVICEFUEL TRUCK"]
["FUEL SERVICE","TRUCK OPERATOR","SERVICEFUEL TRUCK","DRIVES AND OPERATES SERVICEFUEL TRUCK"]
["FUEL SERVICE TRUCK DRIVER","TRUCK OPERATOR","SERVICEFUEL TRUCK","DRIVES AND OPERATES SERVICEFUEL TRUCK"]
["FUEL TRUCK","TRUCK OPERATOR","SERVICEFUEL TRUCK","DRIVES AND OPERATES SERVICEFUEL TRUCK"]
["FUEL TRUCK DRIVER","TRUCK OPERATOR","SERVICEFUEL TRUCK","DRIVES AND OPERATES SERVICEFUEL TRUCK"]
["FUELSERVICE TRUCK DRIVER","TRUCK OPERATOR","SERVICEFUEL TRUCK","DRIVES AND OPERATES SERVICEFUEL TRUCK"]
["GANTRY  OVERHEAD CRANES","OPERATOR","CRANE GROUP 1","OPERATES A CRANE DRAGLINE ETC. TO HOIST AND MOVE MATERIALS RAISE AND LOWER HEAVY WEIGHTS OPERATIONS MAY INVOLVE USE OF DRAG BUCKET CLAMSHELL ORANGE PEEL AND OTHER RELATED ATTACHMENTS."]
["GENIE OPERATOR","OPERATOR","AERIAL LIFT OPERATOR","OPERATES A MACHINE WITH A MOUNTED ARTICULATED BOOM USED TO LIFT PEOPLE ANDOR OBJECTS."]
["GLAZIER","CRAFTMAN","GLAZIER","RESPONSIBLE FOR CUTTING INSTALLING AND REMOVING GLASS AND MATERIALS USED AS SUBSTITUTES FOR GLASS. MAY WORK WITH VARIOUS SURFACES AND SETTINGS SUCH AS WINDOWS DOORS SKYLIGHTS DISPLAY CASES INTERIOR WALLS TABLETOPS ETC."]
["GRADALL","OPERATOR","EXCAVATOR","OPERATES A MACHINE CONTAINING POWER SHOVEL TO REMOVE MATERIAL."]
["GRADALL EXCAVATOR","OPERATOR","EXCAVATOR","OPERATES A MACHINE CONTAINING POWER SHOVEL TO REMOVE MATERIAL."]
["GRADE CHECKER","LABORER","GRADE CHECKER","OPERATES A CONSTRUCTION LEVEL TO ENSURE THAT THE HEAVY EQUIPMENT OPERATORS DIG OR FILL TO THE CORRECT DEPTH. MAY REQUIRE SETTING STAKES."]
["GRADEMAN","LABORER","GRADE CHECKER","OPERATES A CONSTRUCTION LEVEL TO ENSURE THAT THE HEAVY EQUIPMENT OPERATORS DIG OR FILL TO THE CORRECT DEPTH. MAY REQUIRE SETTING STAKES."]
["GRADERBLADE","OPERATOR","MOTOR GRADER","OPERATES POWER DRIVEN GRADING MACHINE MANIPULATES HAND CONTROLS TO GUIDE MACHINE AND SET DEPTH AND ANGLE OF GRADING BLADE TO PERFORM FINISHED WORK SUCH AS SCRAPING AND LEVELING DIRT ON HIGHWAYS AND FINISHING SUBGRADE FOR ROADS AND THE FINISHED GRADING OF ROAD BASE MATERIALS."]
["GRAPPLE TRUCK","OPERATOR","CLAW TRUCK","OPERATES A TRUCK WITH A TELESCOPING CLAW THAT IS USED TO LOAD CUT TREES AND DEBRI ONTO A TRUCK."]
["GRINDER","OPERATOR","GRINDERGROOVER","OPERATES A SELFPROPELLED MACHINE USED IN SCARIFYING AND REMOVING CONCRETE HIGHWAY PAINTTHERMOPLASTIC OR MAY CUT GROOVES IN THE SURFACE OF THE MATERIAL."]
["GRINDERGROOVER","OPERATOR","GRINDERGROOVER","OPERATES A SELFPROPELLED MACHINE USED IN SCARIFYING AND REMOVING CONCRETE HIGHWAY PAINTTHERMOPLASTIC OR MAY CUT GROOVES IN THE SURFACE OF THE MATERIAL."]
["GRINDERMULCHER","OPERATOR","CUTTERCHIPPER MACHINE","OPERATES EQUIPMENT USED FOR CHIPPING AND GRINDING TREES AND LIMBS"]
["GRINDING  GROOVING","OPERATOR","GRINDERGROOVER","OPERATES A SELFPROPELLED MACHINE USED IN SCARIFYING AND REMOVING CONCRETE HIGHWAY PAINTTHERMOPLASTIC OR MAY CUT GROOVES IN THE SURFACE OF THE MATERIAL."]
["GRINDINGGROOVING","OPERATOR","GRINDERGROOVER","OPERATES A SELFPROPELLED MACHINE USED IN SCARIFYING AND REMOVING CONCRETE HIGHWAY PAINTTHERMOPLASTIC OR MAY CUT GROOVES IN THE SURFACE OF THE MATERIAL."]
["GROOVER","OPERATOR","GRINDERGROOVER","OPERATES A SELFPROPELLED MACHINE USED IN SCARIFYING AND REMOVING CONCRETE HIGHWAY PAINTTHERMOPLASTIC OR MAY CUT GROOVES IN THE SURFACE OF THE MATERIAL."]
["GROOVINGGRINDING","OPERATOR","GRINDERGROOVER","OPERATES A SELFPROPELLED MACHINE USED IN SCARIFYING AND REMOVING CONCRETE HIGHWAY PAINTTHERMOPLASTIC OR MAY CUT GROOVES IN THE SURFACE OF THE MATERIAL."]
["GUARDRAIL ERECTOR","LABORER","GUARDRAIL ERECTOR","CONSTRUCTS POST FOUNDATIONS ERECTS POSTS AND STRUCTURES AND ATTACHES GUARDRAIL."]
["GUARDRAIL INSTALLER","LABORER","GUARDRAIL ERECTOR","CONSTRUCTS POST FOUNDATIONS ERECTS POSTS AND STRUCTURES AND ATTACHES GUARDRAIL."]
["GUARDRAIL POST","OPERATOR","GUARDRAIL POST DRIVER","OPERATES LEVERS FOR CONTROLLING A TRUCK MOUNTED HYDRAULIC HAMMER THAT DRIVES THE GUARDRAIL POSTS."]
["GUARDRAIL POST DRIVER","OPERATOR","GUARDRAIL POST DRIVER","OPERATES LEVERS FOR CONTROLLING A TRUCK MOUNTED HYDRAULIC HAMMER THAT DRIVES THE GUARDRAIL POSTS."]
["GUARDRAIL POST TRUCK DRIVER","OPERATOR","GUARDRAIL POST DRIVER","OPERATES LEVERS FOR CONTROLLING A TRUCK MOUNTED HYDRAULIC HAMMER THAT DRIVES THE GUARDRAIL POSTS."]
["HAND HELD SAND SPRAYER","OPERATOR","BLASTER","USES A SAND BEAD SODA OR WATER BLASTER TO REMOVE PAINT RUST OR OTHER MATERIAL FROM SURFACES."]
["HAND HELD SAND SPRAYER","LABORER","POWER TOOL OPERATOR","USES SMALL HAND HELD POWER TOOLS DRIVEN BY COMPRESSED AIR GASOLINE OR ELECTRICAL POWER TO PERFORM VARIOUS TYPES OF WORK THAT MAY INVOLVE SAWING GRINDING CUTTING CHIPPING TRENCHING DIGGING BREAKING OF CONCRETE PAVEMENT OR WOOD ON A PROJECT."]
["HAND LINE MACHINE OPERATOR","OPERATOR","HAND LINE STRIPING MACHINE OPERATOR","OPERATES A WALK BEHIND MACHINE FOR THE  GRAVITY APPLICATION OF ROADWAY PAVEMENT STRIPING OR MARKING MUST MANIPULATE ALL NECESSARY LEVERS AND VALVES."]
["HAND LINE STRIPING MACHINE","OPERATOR","HAND LINE STRIPING MACHINE OPERATOR","OPERATES A WALK BEHIND MACHINE FOR THE  GRAVITY APPLICATION OF ROADWAY PAVEMENT STRIPING OR MARKING MUST MANIPULATE ALL NECESSARY LEVERS AND VALVES."]
["HAND LINER OPERATOR","OPERATOR","HAND LINE STRIPING MACHINE OPERATOR","OPERATES A WALK BEHIND MACHINE FOR THE  GRAVITY APPLICATION OF ROADWAY PAVEMENT STRIPING OR MARKING MUST MANIPULATE ALL NECESSARY LEVERS AND VALVES."]
["HAND LINER STRIPING MACHINE","OPERATOR","HAND LINE STRIPING MACHINE OPERATOR","OPERATES A WALK BEHIND MACHINE FOR THE  GRAVITY APPLICATION OF ROADWAY PAVEMENT STRIPING OR MARKING MUST MANIPULATE ALL NECESSARY LEVERS AND VALVES."]
["HANDLINER STRIPING MACHINE","OPERATOR","HAND LINE STRIPING MACHINE OPERATOR","OPERATES A WALK BEHIND MACHINE FOR THE  GRAVITY APPLICATION OF ROADWAY PAVEMENT STRIPING OR MARKING MUST MANIPULATE ALL NECESSARY LEVERS AND VALVES."]
["HANDRAIL ERECTOR","LABORER","HANDRAIL ERECTOR","CONSTRUCTS POST FOUNDATIONS ERECTS POSTS AND STRUCTURES AND ATTACHES HAND RAIL."]
["HANDRAIL INSTALLER","LABORER","HANDRAIL ERECTOR","CONSTRUCTS POST FOUNDATIONS ERECTS POSTS AND STRUCTURES AND ATTACHES HAND RAIL."]
["HAZARDOUS MATERIAL HANDLER","CRAFTMAN","ABATEMENT WORKER","INCLUDES PREPARATION WETTING STRIPPING REMOVAL SCRAPING VACUUMING BAGGING AND DISPOSING OF CONTAMINATEDHAZARDOUS MATERIALS WHETHER THEY CONTAIN ASBESTOS OR LEAD. INCLUDES THE REMOVAL APPLICATION OF ALL INSULATING MAERIALS  PROTECTIVE COVERINGS COATING AND FINISHING TO TYPES OF SYSTEMS."]
["HIGHWAY LIGHTING GROUNDMAN","CRAFTMAN","HIGHWAY LIGHTING GROUNDMAN","UNDER THE DIRECTION OF THE HIGHWAY LIGHTING INSTALLER ASSISTS IN THE INSTALLATION OF POLES LUMINAIRES POLE CABLE DEVICES AND ALL RELATED PARTS MATERIALS AND DEVICES."]
["HIGHWAY LIGHTING INSTALLER","CRAFTMAN","HIGHWAY LIGHTING INSTALLER","INVOLVED IN THE ERECTION OF POLES AND INSTALLATION OF CONTROL CABLES CONDUIT SERVICES AND ALL RELATED PARTS MATERIALS AND DEVICES."]
["HIGHWAY LIGHTING MECHANIC","CRAFTMAN","HIGHWAY LIGHTING MECHANIC","LAYS OUT LIGHTING SYSTEM FROM PLANS DIRECTS INSTALLER AND MAY BE INVOLVED IN THE INSTALLATION OF ALL MATERIAL AND DEVICES."]
["HIGHWAY LIGHTING SUPERVISOR","CRAFTMAN","HIGHWAY LIGHTING MECHANIC","LAYS OUT LIGHTING SYSTEM FROM PLANS DIRECTS INSTALLER AND MAY BE INVOLVED IN THE INSTALLATION OF ALL MATERIAL AND DEVICES."]
["HIGHWAY LIGHTING TECHNICIAN","CRAFTMAN","HIGHWAY LIGHTING INSTALLER","INVOLVED IN THE ERECTION OF POLES AND INSTALLATION OF CONTROL CABLES CONDUIT SERVICES AND ALL RELATED PARTS MATERIALS AND DEVICES."]
["HIGHWAY PAINTER","CRAFTMAN","HIGHWAY STRIPING MACHINE NOZZLEMAN","CONTROLS SWITCHES TO ALLOW COMPRESSED AIRPAINT TO FLOW TO THE STRIPING GUN MAKES ADJUSTMENTS AS NEEDED SELECTS COLORS AND PATTERNS AS DIRECTED BY THE HIGHWAY STRIPING MACHINE OPERATOR."]
["HIGHWAY STRIPING MACHINE NOZZLEMAN","CRAFTMAN","HIGHWAY STRIPING MACHINE NOZZLEMAN","CONTROLS SWITCHES TO ALLOW COMPRESSED AIRPAINT TO FLOW TO THE STRIPING GUN MAKES ADJUSTMENTS AS NEEDED SELECTS COLORS AND PATTERNS AS DIRECTED BY THE HIGHWAY STRIPING MACHINE OPERATOR."]
["HIGHWAY STRIPING MACHINE OPERATOR","OPERATOR","HIGHWAY STRIPING MACHINE OPERATOR","OPERATES A TRUCKMOUNTED SMALL SELFPROPELLED OR LARGER TOWED MACHINE FOR THE PNEUMATIC OR GRAVITY APPLICATION OF ROADWAY PAVEMENT STRIPING OR MARKING MAY MANIPULATE ALL NECESSARY LEVERS AND VALVES. INSTALLS RAISED PAVEMENT MARKERS WHILE OPERATING THE EQUIPMENT USED TO APPLY THE ADHESIVE ON THE ASPHALT OR OPERATING THE VEHICLE PLACING THE RAISED PAVEMENT MARKERS ON THE PROPER LOCATION."]
["HIGHWAYPARKING LOT STRIPING OPERATOR","OPERATOR","HIGHWAY STRIPING MACHINE OPERATOR","OPERATES A TRUCKMOUNTED SMALL SELFPROPELLED OR LARGER TOWED MACHINE FOR THE PNEUMATIC OR GRAVITY APPLICATION OF ROADWAY PAVEMENT STRIPING OR MARKING MAY MANIPULATE ALL NECESSARY LEVERS AND VALVES. INSTALLS RAISED PAVEMENT MARKERS WHILE OPERATING THE EQUIPMENT USED TO APPLY THE ADHESIVE ON THE ASPHALT OR OPERATING THE VEHICLE PLACING THE RAISED PAVEMENT MARKERS ON THE PROPER LOCATION."]
["HYDRA PLATFORM TRUCK OPERATOR","TRUCK OPERATOR","HYDRA PLATFORM TRUCK OPERATOR","THE OPERATOR WILL MOVE THE TRUCK AND UNFOLD THE PLATFORM UTILIZING HYDRAULICS TO ALLOW THE LABORERS ACCESS BELOW THE BRIDGE. AFTER THE LABORERS ARE COMPLETE WITH THEIR TASK THE LABORERS WILL COME BACK UP TO THE TOP OF THE BRIDGE VIA THE HYDRA PLATFORM. THE OPERATOR WILL THEN STOWFOLD THE HYDRA PLATFORM BACK UP UTILIZING THE HYDRAULICS AND MOVE THE TRUCK AS NECESSARY."]
["HYDRO","OPERATOR","CRANE GROUP 1","OPERATES A CRANE DRAGLINE ETC. TO HOIST AND MOVE MATERIALS RAISE AND LOWER HEAVY WEIGHTS OPERATIONS MAY INVOLVE USE OF DRAG BUCKET CLAMSHELL ORANGE PEEL AND OTHER RELATED ATTACHMENTS."]
["HYDRO CRANES 25 TONS AND UNDER  OVER 50 TONS","OPERATOR","CRANE GROUP 2","OPERATES A CRANE DRAGLINE ETC. TO HOIST AND MOVE MATERIALS RAISE AND LOWER HEAVY WEIGHTS OPERATIONS MAY INVOLVE USE OF DRAG BUCKET CLAMSHELL ORANGE PEEL AND OTHER RELATED ATTACHMENTS."]
["HYDRO CRANES OVER 25 TONS BUT NOT MORE THAN 50 TONS","OPERATOR","CRANE GROUP 1","OPERATES A CRANE DRAGLINE ETC. TO HOIST AND MOVE MATERIALS RAISE AND LOWER HEAVY WEIGHTS OPERATIONS MAY INVOLVE USE OF DRAG BUCKET CLAMSHELL ORANGE PEEL AND OTHER RELATED ATTACHMENTS."]
["HYDRO SEEDER","OPERATOR","HYDROSEEDER","OPERATES POWER DRIVEN EQUIPMENT THAT BLOWS HYDRO SEED ONTO ROADWAY SHOULDERS AND BACK SLOPES."]
["HYDROBLASTER","OPERATOR","HYDROBLASTER","OPERATES A SPECIALIZED PIECE OF EQUIPMENT THAT USES WATER EXPELLED THROUGH A NOZZLE WITH EXCESSIVE PRESSURE FOR REMOVING ANDOR SCARIFYING MATERIALSURFACES."]
["HYDROFRICTION CRANES","OPERATOR","CRANE GROUP 1","OPERATES A CRANE DRAGLINE ETC. TO HOIST AND MOVE MATERIALS RAISE AND LOWER HEAVY WEIGHTS OPERATIONS MAY INVOLVE USE OF DRAG BUCKET CLAMSHELL ORANGE PEEL AND OTHER RELATED ATTACHMENTS."]
["HYDROSEEDER","OPERATOR","HYDROSEEDER","OPERATES POWER DRIVEN EQUIPMENT THAT BLOWS HYDRO SEED ONTO ROADWAY SHOULDERS AND BACK SLOPES."]
["HYDROSEEDER MACHINE","OPERATOR","HYDROSEEDER","OPERATES POWER DRIVEN EQUIPMENT THAT BLOWS HYDRO SEED ONTO ROADWAY SHOULDERS AND BACK SLOPES."]
["HYDROSEEDING","OPERATOR","HYDROSEEDER","OPERATES POWER DRIVEN EQUIPMENT THAT BLOWS HYDRO SEED ONTO ROADWAY SHOULDERS AND BACK SLOPES."]
["HYDROSEEDING EQUIP","OPERATOR","HYDROSEEDER","OPERATES POWER DRIVEN EQUIPMENT THAT BLOWS HYDRO SEED ONTO ROADWAY SHOULDERS AND BACK SLOPES."]
["HYDROSEEDINGMULCHER","OPERATOR","HYDROSEEDER","OPERATES POWER DRIVEN EQUIPMENT THAT BLOWS HYDRO SEED ONTO ROADWAY SHOULDERS AND BACK SLOPES."]
["INSTRUMENT PERSON","LABORER","INSTRUMENT PERSON","CUTS AND REMOVES BRUSH AND UNDERGROWTH FOR LINE OF SIGHT; DRIVES STAKES TO SET GRADES, DIGS GROUND USING A PICK, SHOVEL, OR OTHER HAND TOOLS TO LOCATE SURVEY MONUMENTS, READS AND UNDERSTANDS PLANS AND SPECIFICATIONS OF BASIC SOURCES OF MEASUREMENT; HOLD AND PLUM ROD IN OBTAINING ELEVATIONS AND DISTANCES."]
["IRONWORKER","CRAFTMAN","STRUCTURAL IRONWORKER","LAYS OUT WORK FROM PLANS RIGS ASSEMBLES AND ERECTS STRUCTURAL MEMBERS REQUIRING BOLTING WELDING RIVETING ETC. UNITES STEEL TO FORM A COMPLETED STRUCTURE OR THE FRAMEWORK OF A STRUCTURE."]
["IRONWORKER REINFORCING","CRAFTMAN","REINFORCING IRONWORKER","PLACES REINFORCING STEEL IN FORMS SETS AND TIES STEEL IN PLACE ACCORDING TO PLANS NORMALLY USED IN MOST WORK INVOLVING CONCRETE STRUCTURES SUCH AS BRIGES PAVEMENT ETC."]
["IRONWORKER STRUCTURAL","CRAFTMAN","STRUCTURAL IRONWORKER","LAYS OUT WORK FROM PLANS RIGS ASSEMBLES AND ERECTS STRUCTURAL MEMBERS REQUIRING BOLTING WELDING RIVETING ETC. UNITES STEEL TO FORM A COMPLETED STRUCTURE OR THE FRAMEWORK OF A STRUCTURE."]
["ITS INSTALLER","LABORER","ELECTRONICS INSTALLER","SPECIALIZES OR PARTICIPATES IN DESIGN INSTALLATION, MAINTENANCE, RIGGING, OR REPAIR TOWER BASED ELECTRONIC TRANSMISSION EQUIPMENT UTILIZED FOR COMMUNICATION, NAVIGATIONAL, OR DIGITAL DATA. SELF-SUFFICIENT AND CAPABLE CLIMBING HEIGHTS SAFELY FOR SELF AND OTHERS. PROFICIENT IN ANTENNNA AND OTHER INSTALLATION TYPES. ABLE TO BE TRAINED OR CERTIFIED IN SAFETY/RESCUE. WILL SUPPORT MORE EXPERIENCED TECHNICIANS’ INSTALLATION OF VOICE, DATA, VIDEO, OR OTHER COMMUNICATION TRANSMISSION METHODOLOGY AS REQUIRED ON TRANSPORTATION PROJECTS."]
["ITS TECHNICIAN","CRAFTMAN","ITS TECHNICIAN","PREPARES ELECTRONIC AND FIBER OPTIC CABLING FORM INTERFACE WITH ELECTRONIC IN ENCLOSURES RACKS OR MOUNTS. TESTS TROUBLE SHOOTS ANDINSTALLS ITS DEVICES SUCH AS CAMERAS ETC."]
["JETVAC TRUCK","OPERATOR","VACUUM TRUCK","OPERATES EQUIPMENT THAT REMOVES OBJECTS FROM THE ROADWAY BY A VACUUMING SYSTEM"]
["JETVACUUM TRUCK","OPERATOR","VACUUM TRUCK","OPERATES EQUIPMENT THAT REMOVES OBJECTS FROM THE ROADWAY BY A VACUUMING SYSTEM"]
["JOINT SAW OPERATOR","LABORER","POWER TOOL OPERATOR","USES SMALL HAND HELD POWER TOOLS DRIVEN BY COMPRESSED AIR GASOLINE OR ELECTRICAL POWER TO PERFORM VARIOUS TYPES OF WORK THAT MAY INVOLVE SAWING GRINDING CUTTING CHIPPING TRENCHING DIGGING BREAKING OF CONCRETE PAVEMENT OR WOOD ON A PROJECT."]
["KETTLEMAN","LABORER","KETTLEMAN","CONTROLS THE HEAT APPLIED TO KETTLE THAT MELTS POLYMERS FOR CONSTRUCTION."]
["KNUCKLE BOOM","TRUCK OPERATOR","KNUCKLE BOOM","OPERATES A TRUCK WITH A MOUNTED BOOMAND CLAW TO PICK UP DOWNED TREES BRUSH AND OTHER SIMILAR OPERATIONS"]
["KNUCKLE BOOM LOADER","OPERATOR","KNUCKLE BOOM","OPERATES A TRUCK WITH A MOUNTED BOOM AND CLAW TO PICK UP DOWNED TREES BRUSH AND OTHER SIMILAR OPERATIONS."]
["KRIBBER ADZER","OPERATOR","KRIBBER ADZER","A WORKER THAT OPERATES A MACHINE THAT REMOVES BALLAST FROM BETWEEN TIES ADZES THE CROSS TIES AND SWEEPS AWAY WOOD SHAVINGS."]
["LANDSCAPE","LABORER","LANDSCAPEIRRIGATION INSTALLER","INVOLVED IN THE PLANTING MAINTAINING OF PLANTS AND THE INSTALLATION OF IRRIGATION SYSTEM TO WATER THEM."]
["LANDSCAPE TRUCK CRANE","OPERATOR","BUCKET TRUCK","OPERATES A TRUCK WITH A MOUNTED BOOM  BUCKET TO ERECT SIGNS TO STAND POSTS AND STRUCTURES TO SET POLES AND OTHER SIMILAR OPERATIONS."]
["LANDSCAPE TRUCK CRANE","OPERATOR","CRANE GROUP 2","OPERATES A CRANE DRAGLINE ETC. TO HOIST AND MOVE MATERIALS RAISE AND LOWER HEAVY WEIGHTS OPERATIONS MAY INVOLVE USE OF DRAG BUCKET CLAMSHELL ORANGE PEEL AND OTHER RELATED ATTACHMENTS."]
["LANDSCAPE WORKER","LABORER","LANDSCAPEIRRIGATION INSTALLER","INVOLVED IN THE PLANTING MAINTAINING OF PLANTS AND THE INSTALLATION OF IRRIGATION SYSTEM TO WATER THEM."]
["LANDSCAPEIRRIGATION INSTALLER","LABORER","LANDSCAPEIRRIGATION INSTALLER","INVOLVED IN THE PLANTING MAINTAINING OF PLANTS AND THE INSTALLATION OF IRRIGATION SYSTEM TO WATER THEM."]
["LARGE POWER TOOL OPERATOR","OPERATOR","LARGE POWER TOOL OPERATOR","OPERATES STAND BEHIND AND PUSH HAND TOOLS DRIVEN BY COMPRESSED AIR GASOLINE OR ELECTRICAL POWER TO PERFORM SUCH WORK AS MOWERS SAWS AND TOOLS USED FOR BREAKING OLD PAVEMENT LOOSENING OR DIGGING HARD EARTH TRIMMING BOTTOM AND SIDES OF TRENCHES BREAKING LARGE ROCKS DRIVING SHEETING CHIPPING CONCRETE TRIMMING OR CUTTING STONE CAULKING STEEL PLATES."]
["LEAD ABATEMENT WORKER","CRAFTMAN","ABATEMENT WORKER","INCLUDES PREPARATION WETTING STRIPPING REMOVAL SCRAPING VACUUMING BAGGING AND DISPOSING OF CONTAMINATEDHAZARDOUS MATERIALS WHETHER THEY CONTAIN ASBESTOS OR LEAD. INCLUDES THE REMOVAL APPLICATION OF ALL INSULATING MAERIALS  PROTECTIVE COVERINGS COATING AND FINISHING TO TYPES OF SYSTEMS."]
["LEADMAN","CRAFTMAN","PILE DRIVER LEADSMAN","SETS UP WOODEN STEEL OR CONCRETE PILE IN LEADS PLACES CUSHION CAP ON PILE TO PREVENT SPLITTING GUIDES PILE WHILE BEING DRIVEN PLUMBS PILES WITH JACK TO MAINTAIN VERTICAL POSITION SIGNALS THE PILE DRIVER OPERATOR TO START AND STOP HAMMERING."]
["LEADSMAN","CRAFTMAN","PILE DRIVER LEADSMAN","SETS UP WOODEN STEEL OR CONCRETE PILE IN LEADS PLACES CUSHION CAP ON PILE TO PREVENT SPLITTING GUIDES PILE WHILE BEING DRIVEN PLUMBS PILES WITH JACK TO MAINTAIN VERTICAL POSITION SIGNALS THE PILE DRIVER OPERATOR TO START AND STOP HAMMERING."]
["LICENSED TUG OPERATOR","CRAFTMAN","BOAT CAPTAIN","OPERATES A BOAT OR BARGE IN THE SUPPORT OF CONSTRUCTION PROJECTS."]
["LIGHT TRACTOR","OPERATOR","TRACTOR","OPERATES A MACHINE USED TO PULL GRADERSBOX BLADES PLOWS HARROWS ROLLERS AND TRAILERS OR HAS ATTACHMENTS FOR POST HOLE DIGGING."]
["LIGHTNING PROTECTION INSTALLER","CRAFTMAN","LIGHTNING PROTECTION INSTALLER","INSTALLATION OF LIGHTNING CABLES AIR TERMINALS GROUND RODS AND GROUNDING CONNECTIONS INSTALLATION OF PIPE FOR LIGHTNING CABLE."]
["LINER TECHNICIAN DRAINAGE PIPE TECHREHAB","CRAFTMAN","DRAINAGE REHAB TECHNICIAN","CLEAN/DESILT DRAINAGE STRUCTURES/STORM DRAINS/SANITARY PIPES; DOCUMENT VISUAL INSPECTION OF INTERIOR OF DRAINAGE STRUCTURES/STORM DRAINS/SANITARY PIPES BY MEANS OF VIDEO TAPE/LASER PROFILING; REPAIR AREAS IDENTIFIED AS BEING STRUCTURALLY COMPROMISING WITHIN INTERIOR OF DRAINAGE STRUCTURES/STORM DRAINS/SANITARY PIPES; REPAIR WORK INCLUDES BUT NOT LIMITED TO CHEMICAL GROUTING OR INSTALLATION OF SECTIONAL LINER REPLACEMENT/BLADDER WHICH CONSISTS OF INSTALLING LINER MATERIAL OVER MANHOLE OR CATCH BASIN; PUMPING HOT WATER TO PUSH LINER INTO THE EXISTING DRAINAGE STRUCTURES/STORM DRAINS/SANITARY PIPES; WHEN REQUIRED QUANTITY OF WATER FILLS SECTIONAL LINER REPLACEMENT/BLADDER, A CURING PERIOD IS ALLOCATED TO ENSURE ADHERENCE OF SECTIONAL LINER REPLACEMENT/BLADDER WITHIN INTERIOR OF DRAINAGE STRUCTURES/STORM DRAINS/SANITARY PIPES."]
["LOADER","OPERATOR","FRONT END LOADER","OPERATES A CRAWLER OR RUBBER TIRED TYPE TRACTOR WITH A FRONT MOUNTED SCOOP BUCKET THE BUCKET RAISES AND LOWERS TO DUMP CONTENTS."]
["LOADERBACKHOE COMBO","OPERATOR","BACKHOE LOADER COMBO","OPERATES A MACHINE WHICH USUALLY HAS A FRONT BUCKET AND A REARMOUNTED POWER SHOVEL."]
["LOADERLOGGING","OPERATOR","CLAW TRUCK","OPERATES A TRUCK WITH A TELESCOPING CLAW THAT IS USED TO LOAD CUT TREES AND DEBRI ONTO A TRUCK."]
["LOG LOADER","OPERATOR","CLAW TRUCK","OPERATES A TRUCK WITH A TELESCOPING CLAW THAT IS USED TO LOAD CUT TREES AND DEBRI ONTO A TRUCK."]
["LOG SKIDDER","OPERATOR","LOG SKIDDER","OPERATES MOTORIZED EQUIPMENT TO MOVES LOGS."]
["LOGGING TRUCK","TRUCK DRIVER","LOGGING TRUCK","DRIVES A TRUCK DESIGNED FOR HAULING TIMBER."]
["LOOP INSTALLER","LABORER","TRAFFIC SIGNAL LABORER","UNDER THE DIRECTION OF THE TRAFFIC SIGNAL INSTALLER ASSISTS IN THE PHYSICAL TASK REQUIRED FOR THE INSTALLATION OF POLES MAST ARMS SIGNAL HEADS AND NBSP LOOPS. THIS POSITION DOES NO INSTALLATIONS."]
["LOW VOLTAGE TECHNICIAN","CRAFTMAN","ELECTRICIAN","PERFORMS A VARIETY OF ELECTRICAL TRADE FUNCTIONS SUCH AS INSTALLATION MAINTENANCE AND REPAIR FOR THE GENERATION DISTRIBUTION AND UTILIZATION OF ELECTRICAL ENERGY PLANS AND EXECUTES THE LAYOUT OF ELECTRICAL CONDUIT WIRING SYSTEMS SWITCHPANELS CIRCUIT BREAKERS CONTROLLERS AND OTHER ELECTRICAL TRANSMISSION EQUIPMENT UTILIZES A VARIETY OF ELECTRICAL HAND TOOLS MEASURING AND TESTING DEVICES."]
["LOWBOY TRUCK","TRUCK DRIVER","TRACTOR HAUL TRUCK","DRIVES A CAB OR TRACTORTRAILER COMBINATION"]
["LUTEMAN","LABORER","ASPHALT RAKER","FOLLOWS PAVING EQUIPMENT WHILE REWORKING RAISINGLOWERING AND SMOOTHING NEW ASPHALT JOINTS WITH LUTE TOOL AS HOT MIX ASPHALT IS BEING PLACED."]
["MACHINE WITH BOOM ATTACHMENTS","OPERATOR","CRANE GROUP 1","OPERATES A CRANE DRAGLINE ETC. TO HOIST AND MOVE MATERIALS RAISE AND LOWER HEAVY WEIGHTS OPERATIONS MAY INVOLVE USE OF DRAG BUCKET CLAMSHELL ORANGE PEEL AND OTHER RELATED ATTACHMENTS."]
["MAN LIFT OPERATOR","OPERATOR","AERIAL LIFT OPERATOR","OPERATES A MACHINE WITH A MOUNTED ARTICULATED BOOM USED TO LIFT PEOPLE ANDOR OBJECTS."]
["MASON","CRAFTMAN","CEMENT MASON","LAYS OUT WORK FROM PLANS AND SETS UP TEMPLATE AND GUIDELINES LAYS BRICK CONCRETE BLOCK CLAY TILES OR ARCHITECTURAL ROADWAY BRICK PAVERS IN CONSTRUCTION AND USES MORTAR OF VARIOUS TYPES."]
["MASON TENDER","LABORER","MASON TENDER","ASSISTANT TO THE MASON STOCKS SUPPLIES MIXES MORTAR PERFORMS SAW CUTS AND GENERAL CLEAN UP."]
["MASON TENDERCEMENTCONCRETE","LABORER","MASON TENDER","ASSISTANT TO THE MASON STOCKS SUPPLIES MIXES MORTAR PERFORMS SAW CUTS AND GENERAL CLEAN UP."]
["MASONBRICKLAYER","CRAFTMAN","CEMENT MASON","LAYS OUT WORK FROM PLANS AND SETS UP TEMPLATE AND GUIDELINES LAYS BRICK CONCRETE BLOCK CLAY TILES OR ARCHITECTURAL ROADWAY BRICK PAVERS IN CONSTRUCTION AND USES MORTAR OF VARIOUS TYPES."]
["MASTER ELECTRICIAN","CRAFTMAN","ELECTRICIAN","PERFORMS A VARIETY OF ELECTRICAL TRADE FUNCTIONS SUCH AS INSTALLATION MAINTENANCE AND REPAIR FOR THE GENERATION DISTRIBUTION AND UTILIZATION OF ELECTRICAL ENERGY PLANS AND EXECUTES THE LAYOUT OF ELECTRICAL CONDUIT WIRING SYSTEMS SWITCHPANELS CIRCUIT BREAKERS CONTROLLERS AND OTHER ELECTRICAL TRANSMISSION EQUIPMENT UTILIZES A VARIETY OF ELECTRICAL HAND TOOLS MEASURING AND TESTING DEVICES."]
["MATERIAL TRANSFER VEHICLE","OPERATOR","MATERIAL TRANSFER VEHICLE","ENSURES EQUIPMENT PROPERLY HOLDS AND TRANSFERS ASPHALT PAVEMENT BETWEEN THE DUMP TRUCKS AND THE PAVING MACHINE DURING PAVING OPERATIONS."]
["MATERIAL TRUCK","TRUCK DRIVER","MATERIAL TRUCK","DRIVES A NONDUMP TRUCK THAT REQUIRES CDL UTILIZED FOR HAULING MATERIALS"]
["MATL TRANSFER BUGGY","OPERATOR","MATERIAL TRANSFER VEHICLE","ENSURES EQUIPMENT PROPERLY HOLDS AND TRANSFERS ASPHALT PAVEMENT BETWEEN THE DUMP TRUCKS AND THE PAVING MACHINE DURING PAVING OPERATIONS."]
["MATL TRANSFER VEHICL","OPERATOR","MATERIAL TRANSFER VEHICLE","ENSURES EQUIPMENT PROPERLY HOLDS AND TRANSFERS ASPHALT PAVEMENT BETWEEN THE DUMP TRUCKS AND THE PAVING MACHINE DURING PAVING OPERATIONS."]
["MECHANIC","CRAFTMAN","MECHANIC","ASSEMBLES DIASSEMBLES SETS UP DIAGNOSES ADJUST AND MAINTAINS CONSTRUCTION EQUIPMENT ON THE PROJECT. MAY WELD PARTS OR STEEL TO REPAIR EQUIPMENT."]
["MECHANICAL TAMPER","OPERATOR","LARGE POWER TOOL OPERATOR","OPERATES STAND BEHIND AND PUSH HAND TOOLS DRIVEN BY COMPRESSED AIR GASOLINE OR ELECTRICAL POWER TO PERFORM SUCH WORK AS MOWERS SAWS AND TOOLS USED FOR BREAKING OLD PAVEMENT LOOSENING OR DIGGING HARD EARTH TRIMMING BOTTOM AND SIDES OF TRENCHES BREAKING LARGE ROCKS DRIVING SHEETING CHIPPING CONCRETE TRIMMING OR CUTTING STONE CAULKING STEEL PLATES."]
["MICRO SURFACING OPERATOR","OPERATOR","MICRO SURFACING OPERATOR","OPERATES EQUIPMENT TO INCLUDE THE MONITORING OF MATERIALS FLOWING THROUGH PUG MILL ON MACHINE MONITORS THE PROPORTIONS OF MATERIALS BEING MIXED MONITORS ACTIVITIES OF SCREED MEN AND OTHER EMPLOYEES"]
["MILLING MACHINE","OPERATOR","MILLING MACHINE","OPERATES A SELFPROPELLED MACHINE USED IN SCARIFYING AND REMOVING FLEXIBLE OR RIGID PAVEMENT CONTROL LEVERS TO DIRECT AND MAINTAIN DEPTH OF CUT IN ACCORDANCE WITH PLANS AND SPECIFICATIONS."]
["MILLRIGHT","CRAFTMAN","MILLRIGHT","ENGAGED IN THE ERECTION AND MAINTENANCE OF CONSTRUCTION MACHINERY."]
["MILLWRIGHTMOVABLE BRIDGE","CRAFTMAN","MILLRIGHT","ENGAGED IN THE ERECTION AND MAINTENANCE OF CONSTRUCTION MACHINERY."]
["MINIEXCAVATOR","OPERATOR","MINIEXCAVATOR","OPERATES A MINATURE VERSION OF ANBSPMACHINE CONTAINING POWER SHOVEL TO REMOVE MATERIAL."]
["MIXER OPERATOR","OPERATOR","MIXERSOIL STABILIZER","OPERATES A SELFPROPELLED MACHINE THAT FIELDMIXES SUBGRADE MATERIALS TO SPECIFICATION REQUIREMENTS FOR WIDTHS AND DEPTHS AFTER MATERIALS ARE SPREAD."]
["MIXERSOIL STABILIZER","OPERATOR","MIXERSOIL STABILIZER","OPERATES A SELFPROPELLED MACHINE THAT FIELDMIXES SUBGRADE MATERIALS TO SPECIFICATION REQUIREMENTS FOR WIDTHS AND DEPTHS AFTER MATERIALS ARE SPREAD."]
["MOT COORDINATOR","LABORER","TRAFFIC CONTROL SPECIALIST","INSTALLS AND SETS UP TEMPORARY TRAFFIC CONTROL DEVICES. ENSURES LANE CLOSURES ARE SET UP AND MAINTAINED PROPERLY. PROVIDES PROPER MAINTENANCE OF TRAFFIC USING APPROPRIATE ADVANCED WARNING DEVICES WITHIN THE APPLICABLE CONSTRUCTION OPERATION ZONES."]
["MOT TECHNICIAN","LABORER","TRAFFIC CONTROL SPECIALIST","INSTALLS AND SETS UP TEMPORARY TRAFFIC CONTROL DEVICES. ENSURES LANE CLOSURES ARE SET UP AND MAINTAINED PROPERLY. PROVIDES PROPER MAINTENANCE OF TRAFFIC USING APPROPRIATE ADVANCED WARNING DEVICES WITHIN THE APPLICABLE CONSTRUCTION OPERATION ZONES."]
["MOTOR GRADER","OPERATOR","MOTOR GRADER","OPERATES POWER DRIVEN GRADING MACHINE MANIPULATES HAND CONTROLS TO GUIDE MACHINE AND SET DEPTH AND ANGLE OF GRADING BLADE TO PERFORM FINISHED WORK SUCH AS SCRAPING AND LEVELING DIRT ON HIGHWAYS AND FINISHING SUBGRADE FOR ROADS AND THE FINISHED GRADING OF ROAD BASE MATERIALS."]
["MOWER","OPERATOR","MOWER","OPERATES COMMERCIAL MOWING MACHINE OR EQUIPMENT WITH SUCH ATTACHMENTS."]
["MSE LABORER","CRAFTMAN","MSE WALL LABORER","ASSIST MSE WALL ERECTOR WITH INSTALLATION AND SOIL REINFORCING AND BACKFILL BEHIND WALL."]
["MSE WALL ERECTOR","CRAFTMAN","WALL ERECTOR","HOLDS, ALIGNS, PLUMBS, SETS VERTICALLY TO ELEVATION WALL SECTIONS OR PRECAST PANELS; TYING OF BACKSTRAPS; DRIVES STAKES FOR BRACES; GRADE, FORM AND POUR LEVELING PAD; COMPACTION OF BACKFILL"]
["MSE WALL INSTALLER","CRAFTMAN","WALL ERECTOR","HOLDS, ALIGNS, PLUMBS, SETS VERTICALLY TO ELEVATION WALL SECTIONS OR PRECAST PANELS; TYING OF BACKSTRAPS; DRIVES STAKES FOR BRACES; GRADE, FORM AND POUR LEVELING PAD; COMPACTION OF BACKFILL"]
["MSE WALL LABORER","CRAFTMAN","MSE WALL LABORER","ASSIST MSE WALL ERECTOR WITH INSTALLATION AND SOIL REINFORCING AND BACKFILL BEHIND WALL."]
["MSE WALL LEADMAN MSE WALL PANEL CONTROL MSE WALL PANEL QC  LAYOUT","CRAFTMAN","WALL ERECTOR","HOLDS, ALIGNS, PLUMBS, SETS VERTICALLY TO ELEVATION WALL SECTIONS OR PRECAST PANELS; TYING OF BACKSTRAPS; DRIVES STAKES FOR BRACES; GRADE, FORM AND POUR LEVELING PAD; COMPACTION OF BACKFILL"]
["MSE WALL OPERATOR","OPERATOR","OPERATOR: AUGER","OPERATES EQUIPMENT DESIGNED FOR DIGGING HOLES VERTICALLY."]
["MTV OPERATOR","OPERATOR","MATERIAL TRANSFER VEHICLE","ENSURES EQUIPMENT PROPERLY HOLDS AND TRANSFERS ASPHALT PAVEMENT BETWEEN THE DUMP TRUCKS AND THE PAVING MACHINE DURING PAVING OPERATIONS."]
["MTVSHUTTLE BUGGY OPERATOR","OPERATOR","MATERIAL TRANSFER VEHICLE","ENSURES EQUIPMENT PROPERLY HOLDS AND TRANSFERS ASPHALT PAVEMENT BETWEEN THE DUMP TRUCKS AND THE PAVING MACHINE DURING PAVING OPERATIONS."]
["MULCHING MACHINE","OPERATOR","MULCHING MACHINE","OPERATES A POWER DRIVEN MACHINE WHICH BLOWS MULCHUSUALLY HAY OR STRAW ONTO THE ROADWAY SHOULDERS AND BACK SLOPES."]
["OFF ROAD DUMP TRUCK","TRUCK DRIVER","OFF ROAD TRUCK","A TRUCK USED STRICTLY FOR MOVEMENT OF MATERIAL ON PROJECT SITE THAT DOES NOT REQUIRE CDL  NO USAGE ON HIGHWAY."]
["OFF ROAD TRUCK","TRUCK DRIVER","OFF ROAD TRUCK","A TRUCK USED STRICTLY FOR MOVEMENT OF MATERIAL ON PROJECT SITE THAT DOES NOT REQUIRE CDL  NO USAGE ON HIGHWAY."]
["OFFROAD","TRUCK DRIVER","OFF ROAD TRUCK","A TRUCK USED STRICTLY FOR MOVEMENT OF MATERIAL ON PROJECT SITE THAT DOES NOT REQUIRE CDL  NO USAGE ON HIGHWAY."]
["OIL DISTRIBUTOR","OPERATOR","DISTRIBUTOR","OPERATES DISTRIBUTOR THAT SPREADS MATERIAL EVENLY ACROSS ROADWAY; INCLUDES SAND AGGREGATE OR BITUMINOUS MATERIALS; SETS SPRAY BAR AND OPERATES VALVES AND LEVERS TO CONTROL DISTRIBUTION OF OIL OR BITUMINOUS LIQUID PRIME TACK ETC."]
["OILERGREASEMAN","CRAFTMAN","MECHANIC","ASSEMBLES DIASSEMBLES SETS UP DIAGNOSES ADJUST AND MAINTAINS CONSTRUCTION EQUIPMENT ON THE PROJECT. MAY WELD PARTS OR STEEL TO REPAIR EQUIPMENT."]
["PAINTER BRUSH","LABORER","PAINTER BRUSH","Coat surfaces using brush or spray paint under supervision of a skilled painter; could also use pressure wash to clean surfaces to be painted."]
["PAINTER SPRAY","CRAFTMAN","PAINTER","COAT STRUCTURAL STEEL FRAMEWORK OF BRIDGES GIRDERS CABLES AND OTHER STRUCTURAL STEEL GENERALLY USES A COMPRESSED AIR OR AIRLESS PAINT GUN TO ACCOMPLISH THIS COULD ALSO USA A SAND OR WATER BLASTER TO REMOVE OLD PAINT RUST OR OTHER DEBRIS FROM THE SURFACE TO BE PAINTED WHEN TEXTURED PATTERNS ARE INSTALLED ROLLERS ARE USED."]
["PAINTERBLASTER OPERATOR","CRAFTMAN","PAINTER","COAT STRUCTURAL STEEL FRAMEWORK OF BRIDGES GIRDERS CABLES AND OTHER STRUCTURAL STEEL GENERALLY USES A COMPRESSED AIR OR AIRLESS PAINT GUN TO ACCOMPLISH THIS COULD ALSO USA A SAND OR WATER BLASTER TO REMOVE OLD PAINT RUST OR OTHER DEBRIS FROM THE SURFACE TO BE PAINTED WHEN TEXTURED PATTERNS ARE INSTALLED ROLLERS ARE USED."]
["PAINTERSPRAY AND STEEL","CRAFTMAN","PAINTER","COAT STRUCTURAL STEEL FRAMEWORK OF BRIDGES GIRDERS CABLES AND OTHER STRUCTURAL STEEL GENERALLY USES A COMPRESSED AIR OR AIRLESS PAINT GUN TO ACCOMPLISH THIS COULD ALSO USA A SAND OR WATER BLASTER TO REMOVE OLD PAINT RUST OR OTHER DEBRIS FROM THE SURFACE TO BE PAINTED WHEN TEXTURED PATTERNS ARE INSTALLED ROLLERS ARE USED."]
["PAINTERSTRUCTURES","CRAFTMAN","PAINTER","COAT STRUCTURAL STEEL FRAMEWORK OF BRIDGES GIRDERS CABLES AND OTHER STRUCTURAL STEEL GENERALLY USES A COMPRESSED AIR OR AIRLESS PAINT GUN TO ACCOMPLISH THIS COULD ALSO USA A SAND OR WATER BLASTER TO REMOVE OLD PAINT RUST OR OTHER DEBRIS FROM THE SURFACE TO BE PAINTED WHEN TEXTURED PATTERNS ARE INSTALLED ROLLERS ARE USED."]
["PANSCRAPER","OPERATOR","SCRAPER","OPERATES MACHINERY THAT SCRAPES AND TRANSPORTS EARTHWORK MATERIAL."]
["PATTERN PAVEMENT INSTALLER","LABORER","PATTERN PAVEMENT INSTALLER","CLEANS SURFACE AND INSTALLS TEXTURE TO PAVEMENT PER SPECIFICATIONS. DUTIES INCLUDE THE USE OF CHALK LINES PAINT ROLLERS DRILL FOR MIXING PRODUCT AND SCRAPERS. MAY USE A VACUUM HEAD  OR SHOVEL FOR CLEAN UP OF AREA."]
["PAVEMENT MARKING GRINDER","OPERATOR","LARGE POWER TOOL OPERATOR","OPERATES STAND BEHIND AND PUSH HAND TOOLS DRIVEN BY COMPRESSED AIR GASOLINE OR ELECTRICAL POWER TO PERFORM SUCH WORK AS MOWERS SAWS AND TOOLS USED FOR BREAKING OLD PAVEMENT LOOSENING OR DIGGING HARD EARTH TRIMMING BOTTOM AND SIDES OF TRENCHES BREAKING LARGE ROCKS DRIVING SHEETING CHIPPING CONCRETE TRIMMING OR CUTTING STONE CAULKING STEEL PLATES."]
["PAVEMENT PROFILER OPERATOR","OPERATOR","SCRAPER","OPERATES MACHINERY THAT SCRAPES AND TRANSPORTS EARTHWORK MATERIAL."]
["PAVEMENT STRIPING MACHINE","OPERATOR","HIGHWAY STRIPING MACHINE OPERATOR","OPERATES A TRUCKMOUNTED SMALL SELFPROPELLED OR LARGER TOWED MACHINE FOR THE PNEUMATIC OR GRAVITY APPLICATION OF ROADWAY PAVEMENT STRIPING OR MARKING MAY MANIPULATE ALL NECESSARY LEVERS AND VALVES. INSTALLS RAISED PAVEMENT MARKERS WHILE OPERATING THE EQUIPMENT USED TO APPLY THE ADHESIVE ON THE ASPHALT OR OPERATING THE VEHICLE PLACING THE RAISED PAVEMENT MARKERS ON THE PROPER LOCATION."]
["PAVER","OPERATOR","OPERATOR: PAVER (Asphalt, Aggregate and Concrete)","OPERATES A MACHINE/LEVERS TO CONTROL SPREADING AND LEVELING TO APPROXIMATE GRADE AND CONTOUR ASPHALTIC CONCRETE OR PORTLAND CEMENT CONCRETE AS WELL AS SLAG OR OTHER AGGREGATES FOR SURFACE TREATMENT, OVER CONCRETE PAVING FORMS OR SUBGRADE OF HIGHWAY."]
["PAVER INSTALLER","CRAFTMAN","PAVER INSTALLER","LAYS OUT WORK FROM PLANS AND SETS UP TEMPLATE AND GUIDELINES LAYS BRICK CONCRETE BLOCK CLAY TILES OR ARCHITECTURAL ROADWAY BRICK PAVERS IN CONSTRUCTION AND USES MORTARNBSPANDOR SANDNBSPOF VARIOUS TYPES."]
["PAVER TENDER","LABORER","MASON TENDER","ASSISTANT TO THE MASON STOCKS SUPPLIES MIXES MORTAR PERFORMS SAW CUTS AND GENERAL CLEAN UP."]
["PICKET RAIL INSTALLER","LABORER","HANDRAIL ERECTOR","CONSTRUCTS POST FOUNDATIONS ERECTS POSTS AND STRUCTURES AND ATTACHES HAND RAIL."]
["PILE DRIVER LEADSMAN","CRAFTMAN","PILE DRIVER LEADSMAN","SETS UP WOODEN STEEL OR CONCRETE PILE IN LEADS PLACES CUSHION CAP ON PILE TO PREVENT SPLITTING GUIDES PILE WHILE BEING DRIVEN PLUMBS PILES WITH JACK TO MAINTAIN VERTICAL POSITION SIGNALS THE PILE DRIVER OPERATOR TO START AND STOP HAMMERING."]
["PILE DRIVER TECHNICIAN","CRAFTMAN","PILE DRIVER LEADSMAN","SETS UP WOODEN STEEL OR CONCRETE PILE IN LEADS PLACES CUSHION CAP ON PILE TO PREVENT SPLITTING GUIDES PILE WHILE BEING DRIVEN PLUMBS PILES WITH JACK TO MAINTAIN VERTICAL POSITION SIGNALS THE PILE DRIVER OPERATOR TO START AND STOP HAMMERING."]
["PILE DRIVINGRIGGING","CRAFTMAN","PILE DRIVER LEADSMAN","SETS UP WOODEN STEEL OR CONCRETE PILE IN LEADS PLACES CUSHION CAP ON PILE TO PREVENT SPLITTING GUIDES PILE WHILE BEING DRIVEN PLUMBS PILES WITH JACK TO MAINTAIN VERTICAL POSITION SIGNALS THE PILE DRIVER OPERATOR TO START AND STOP HAMMERING."]
["PILEDRIVER OPERATOR","OPERATOR","PILE DRIVER OPERATOR","OPERATES A MACHINEUSUALLY A CRANE OR CRANELIKE MACHINE FOR DRIVING PILING FOR BRIDGES OR SHEET PILE ETC.  DIRECTS GROUND CREW IN PREPARING AND PLACING PILE  HOISTS PILE  AND LOWERS INTO POSITION FOR DRIVING."]
["PIPE CREW","LABORER","PIPELAYER","INVOLVED IN THE LAYING ANDOR SEALING OF PIPE. MAY DIG TRENCHES USING HAND TOOLS GRADE AND LEVEL TRENCH BASES USING TAMPING TOOLS ALIGN AND POSITION PIPE FOR FINAL PLACEMENTSEAL PIPE."]
["PIPELAYER","LABORER","PIPELAYER","INVOLVED IN THE LAYING ANDOR SEALING OF PIPE. MAY DIG TRENCHES USING HAND TOOLS GRADE AND LEVEL TRENCH BASES USING TAMPING TOOLS ALIGN AND POSITION PIPE FOR FINAL PLACEMENTSEAL PIPE."]
["PLUMBER","CRAFTMAN","PLUMBER","RESPONSIBLE FOR INSTALLING REPAIRING AND MAINTAINING ALL PLUMBING SUCH AS PIPES AND FIXTURES. CAN INVOLVE WATER OR WASTE WATER DISTIBUTION OR DISPOSAL."]
["POST DRIVER","OPERATOR","GUARDRAIL POST DRIVER","OPERATES LEVERS FOR CONTROLLING A TRUCK MOUNTED HYDRAULIC HAMMER THAT DRIVES THE GUARDRAIL POSTS."]
["POST TENSIONING INSTALLER","LABORER","POST TENSIONING INSTALLER","INSTALLS POST-TENSIONING SYSTEM IN STRUCTURES. INVOLVES POST-TENSIONING MATERIALS, AND GROUTING WITH CEMENT BASE, OR FLEXIBLE FILLER GROUT, USING MISCELLANEOUS EQUIPMENT SUCH AS GROUT PUMPS, AND HYDRAULIC JACKS."]
["POWER BROOM","OPERATOR","BROOM SWEEPER","OPERATES MACHINE WITH A BROOM ANDOR WATER SPRAYER FOR SETTLING DUST PARTICLES OR OTHER AIR BORN DEBRIS TO SWEEP DEBRIS FROM ROADWAYS OR EXTRACTING DEBRISPARTICLES FROM ROADWAY VIA VACUUMING SYSTEM."]
["POWER BROOMSWEEPER","OPERATOR","BROOM SWEEPER","OPERATES MACHINE WITH A BROOM ANDOR WATER SPRAYER FOR SETTLING DUST PARTICLES OR OTHER AIR BORN DEBRIS TO SWEEP DEBRIS FROM ROADWAYS OR EXTRACTING DEBRISPARTICLES FROM ROADWAY VIA VACUUMING SYSTEM."]
["POWER HAND TOOL OPERATOR","LABORER","POWER TOOL OPERATOR","USES SMALL HAND HELD POWER TOOLS DRIVEN BY COMPRESSED AIR GASOLINE OR ELECTRICAL POWER TO PERFORM VARIOUS TYPES OF WORK THAT MAY INVOLVE SAWING GRINDING CUTTING CHIPPING TRENCHING DIGGING BREAKING OF CONCRETE PAVEMENT OR WOOD ON A PROJECT."]
["POWER MIX TRAIN STABILIZER","OPERATOR","MIXERSOIL STABILIZER","OPERATES A SELFPROPELLED MACHINE THAT FIELDMIXES SUBGRADE MATERIALS TO SPECIFICATION REQUIREMENTS FOR WIDTHS AND DEPTHS AFTER MATERIALS ARE SPREAD."]
["POWER MOWER","OPERATOR","MOWER","OPERATES COMMERCIAL MOWING MACHINE OR EQUIPMENT WITH SUCH ATTACHMENTS."]
["POWER SUBGRADE MIXER","OPERATOR","MIXERSOIL STABILIZER","OPERATES A SELFPROPELLED MACHINE THAT FIELDMIXES SUBGRADE MATERIALS TO SPECIFICATION REQUIREMENTS FOR WIDTHS AND DEPTHS AFTER MATERIALS ARE SPREAD."]
["POWER SUBGRADE MIXERRECLAIMER","OPERATOR","MIXERSOIL STABILIZER","OPERATES A SELFPROPELLED MACHINE THAT FIELDMIXES SUBGRADE MATERIALS TO SPECIFICATION REQUIREMENTS FOR WIDTHS AND DEPTHS AFTER MATERIALS ARE SPREAD."]
["POWER TOOL OPERATOR","LABORER","POWER TOOL OPERATOR","USES SMALL HAND HELD POWER TOOLS DRIVEN BY COMPRESSED AIR GASOLINE OR ELECTRICAL POWER TO PERFORM VARIOUS TYPES OF WORK THAT MAY INVOLVE SAWING GRINDING CUTTING CHIPPING TRENCHING DIGGING BREAKING OF CONCRETE PAVEMENT OR WOOD ON A PROJECT."]
["POWER TOOL OPERATOR JACKHAMMER AND POWER SAWS","OPERATOR","LARGE POWER TOOL OPERATOR","OPERATES STAND BEHIND AND PUSH HAND TOOLS DRIVEN BY COMPRESSED AIR GASOLINE OR ELECTRICAL POWER TO PERFORM SUCH WORK AS MOWERS SAWS AND TOOLS USED FOR BREAKING OLD PAVEMENT LOOSENING OR DIGGING HARD EARTH TRIMMING BOTTOM AND SIDES OF TRENCHES BREAKING LARGE ROCKS DRIVING SHEETING CHIPPING CONCRETE TRIMMING OR CUTTING STONE CAULKING STEEL PLATES."]
["POWER TOOL OPERATORHAND HELD DRILLS SAWS JACKHAMMER AND POWER SAWS","LABORER","POWER TOOL OPERATOR","USES SMALL HAND HELD POWER TOOLS DRIVEN BY COMPRESSED AIR GASOLINE OR ELECTRICAL POWER TO PERFORM VARIOUS TYPES OF WORK THAT MAY INVOLVE SAWING GRINDING CUTTING CHIPPING TRENCHING DIGGING BREAKING OF CONCRETE PAVEMENT OR WOOD ON A PROJECT."]
["POWER TOOL OPERSAW","LABORER","POWER TOOL OPERATOR","USES SMALL HAND HELD POWER TOOLS DRIVEN BY COMPRESSED AIR GASOLINE OR ELECTRICAL POWER TO PERFORM VARIOUS TYPES OF WORK THAT MAY INVOLVE SAWING GRINDING CUTTING CHIPPING TRENCHING DIGGING BREAKING OF CONCRETE PAVEMENT OR WOOD ON A PROJECT."]
["PREHEATER","OPERATOR","ASPHALT HEATER","SETS UP AND MAINTAINS THE OPERATION OF A PORTABLE JOBSITE ASPHALT HEATER MACHINE."]
["PUG MILL","OPERATOR","MICRO SURFACING OPERATOR","OPERATES EQUIPMENT TO INCLUDE THE MONITORING OF MATERIALS FLOWING THROUGH PUG MILL ON MACHINE MONITORS THE PROPORTIONS OF MATERIALS BEING MIXED MONITORS ACTIVITIES OF SCREED MEN AND OTHER EMPLOYEES"]
["PUMP TENDER CEMENT","OPERATOR","CONCRETE PUMP TRAILERTRUCK","MONITOR THE PRESSURE AND CONSISTENCY OF THE CONCRETE WHILE CONTROLLING WITH A REMOTE BOX  PUMP IS MOUNTED ON TRUCKTRAILERBOOM."]
["PUMPER","OPERATOR","CONCRETE PUMP TRAILERTRUCK","MONITOR THE PRESSURE AND CONSISTENCY OF THE CONCRETE WHILE CONTROLLING WITH A REMOTE BOX  PUMP IS MOUNTED ON TRUCKTRAILERBOOM."]
["RAIL","OPERATOR","CRANE GROUP 1","OPERATES A CRANE DRAGLINE ETC. TO HOIST AND MOVE MATERIALS RAISE AND LOWER HEAVY WEIGHTS OPERATIONS MAY INVOLVE USE OF DRAG BUCKET CLAMSHELL ORANGE PEEL AND OTHER RELATED ATTACHMENTS."]
["RAIL TAMPER","OPERATOR","RAIL TAMPER","THE TAMPER OPERATOR LIFTS THE TRACK UP FROM UNDERNEATH THE BALLAST AND MOVESADJUSTS IT TO THE FINAL POSITIONING."]
["RAILING ERECTOR","LABORER","HANDRAIL ERECTOR","CONSTRUCTS POST FOUNDATIONS ERECTS POSTS AND STRUCTURES AND ATTACHES HAND RAIL."]
["RECLAIMER","OPERATOR","MIXERSOIL STABILIZER","OPERATES A SELFPROPELLED MACHINE THAT FIELDMIXES SUBGRADE MATERIALS TO SPECIFICATION REQUIREMENTS FOR WIDTHS AND DEPTHS AFTER MATERIALS ARE SPREAD."]
["RECYCLER","OPERATOR","OPERATOR: PAVER (Asphalt, Aggregate and Concrete)","OPERATES A MACHINE/LEVERS TO CONTROL SPREADING AND LEVELING TO APPROXIMATE GRADE AND CONTOUR ASPHALTIC CONCRETE OR PORTLAND CEMENT CONCRETE AS WELL AS SLAG OR OTHER AGGREGATES FOR SURFACE TREATMENT, OVER CONCRETE PAVING FORMS OR SUBGRADE OF HIGHWAY."]
["REINFORCING IRONWORKER","CRAFTMAN","REINFORCING IRONWORKER","PLACES REINFORCING STEEL IN FORMS SETS AND TIES STEEL IN PLACE ACCORDING TO PLANS NORMALLY USED IN MOST WORK INVOLVING CONCRETE STRUCTURES SUCH AS BRIGES PAVEMENT ETC."]
["RIGGER","CRAFTMAN","RIGGER","SPECIALIZES IN THE LIFTING AND MOVING OF EXTREMELY LARGE OR HEAVY OBJECTS SOMETIMES THROUGH NARROW OPENINGS AND CONFINE SPACES USING CHAIN FALLS GIN POLES GALLOW FRAMES JACK AND SLIDE AND GANTRY SYSTEMS."]
["ROAD WIDENER","OPERATOR","WIDENING SPREADER","OPERATES MACHINE FOR RETRIEVING MATERIALS FROM THE ROADWAY AND CAN TRANSFER TO AREAS TO BE WIDENED."]
["ROCK TRUCK","OPERATOR","DISTRIBUTOR","OPERATES DISTRIBUTOR THAT SPREADS MATERIAL EVENLY ACROSS ROADWAY; INCLUDES SAND AGGREGATE OR BITUMINOUS MATERIALS; SETS SPRAY BAR AND OPERATES VALVES AND LEVERS TO CONTROL DISTRIBUTION OF OIL OR BITUMINOUS LIQUID PRIME TACK ETC."]
["ROLLER","OPERATOR","ROLLER","OPERATES A TANDEM OR THREEWHEELED STEEL OR RUBBER TIRE ROLLER IN CONJUNCTION WITH FINISHING OPERATIONS ON ASPHALT BASES OR PERFORMS INITIALPRELIMINARY ROLLING TO OBTAIN COMPACTION OF SUBGRADE OR BASE MATERIAL PRIOR TO THE FINISHING OPERATION."]
["ROLLER  SPRAY","CRAFTMAN","PAINTER","COAT STRUCTURAL STEEL FRAMEWORK OF BRIDGES GIRDERS CABLES AND OTHER STRUCTURAL STEEL GENERALLY USES A COMPRESSED AIR OR AIRLESS PAINT GUN TO ACCOMPLISH THIS COULD ALSO USA A SAND OR WATER BLASTER TO REMOVE OLD PAINT RUST OR OTHER DEBRIS FROM THE SURFACE TO BE PAINTED WHEN TEXTURED PATTERNS ARE INSTALLED ROLLERS ARE USED."]
["ROOFER","CRAFTMAN","ROOFER","SKILLED WORK IN INSTALLING OR REPAIRING ROOFS ON STRUCTURES WORK NORMALLY CONSIST OF USING A VARIETY OF HAND TOOLS PORTABLE POWER TOOLS AND MEASURING INSTRUMRNTS."]
["ROOFER","LABORER","ROOFER","COVERS THE ROOF OF STRUCTURES WITH ROOFING MATERIALS INSPECTS ROOFS AND DOES ROOF REPAIRS MAYBE INVOLVED IN SETTING UP SCAFFOLDING APPLYING COATINGS FLASHING OR REMOVING DEBRIS OTHER MINOR DUTIES THAT ARE INVOLVED IN ROOFING."]
["ROUGH ROLLER","OPERATOR","ROLLER","OPERATES A TANDEM OR THREEWHEELED STEEL OR RUBBER TIRE ROLLER IN CONJUNCTION WITH FINISHING OPERATIONS ON ASPHALT BASES OR PERFORMS INITIALPRELIMINARY ROLLING TO OBTAIN COMPACTION OF SUBGRADE OR BASE MATERIAL PRIOR TO THE FINISHING OPERATION."]
["RPM INSTALLER","OPERATOR","HIGHWAY STRIPING MACHINE OPERATOR","OPERATES A TRUCKMOUNTED SMALL SELFPROPELLED OR LARGER TOWED MACHINE FOR THE PNEUMATIC OR GRAVITY APPLICATION OF ROADWAY PAVEMENT STRIPING OR MARKING MAY MANIPULATE ALL NECESSARY LEVERS AND VALVES. INSTALLS RAISED PAVEMENT MARKERS WHILE OPERATING THE EQUIPMENT USED TO APPLY THE ADHESIVE ON THE ASPHALT OR OPERATING THE VEHICLE PLACING THE RAISED PAVEMENT MARKERS ON THE PROPER LOCATION."]
["RUBBER TIRE ROLLER","OPERATOR","ROLLER","OPERATES A TANDEM OR THREEWHEELED STEEL OR RUBBER TIRE ROLLER IN CONJUNCTION WITH FINISHING OPERATIONS ON ASPHALT BASES OR PERFORMS INITIALPRELIMINARY ROLLING TO OBTAIN COMPACTION OF SUBGRADE OR BASE MATERIAL PRIOR TO THE FINISHING OPERATION."]
["RUMBLE STRIP MACHINE","OPERATOR","RUMBLE STRIP MACHINE","OPERATES EQUIPMENT THAT RAISE AND LOWER HYDRAULICS TO FORM AN INDENTION OR RAISED ASPHALT STRIPS IN THE SHOULDER OF THE HIGHWAY TO ALERT DRIVERS THAT THEY ARE OUT OF THE TRAVEL LANE"]
["SAND BLASTER","OPERATOR","BLASTER","USES A SAND BEAD SODA OR WATER BLASTER TO REMOVE PAINT RUST OR OTHER MATERIAL FROM SURFACES."]
["SAND SPREADER","OPERATOR","OPERATOR: PAVER (Asphalt, Aggregate and Concrete)","OPERATES A MACHINE/LEVERS TO CONTROL SPREADING AND LEVELING TO APPROXIMATE GRADE AND CONTOUR ASPHALTIC CONCRETE OR PORTLAND CEMENT CONCRETE AS WELL AS SLAG OR OTHER AGGREGATES FOR SURFACE TREATMENT, OVER CONCRETE PAVING FORMS OR SUBGRADE OF HIGHWAY."]
["SAND TRUCK","OPERATOR","DISTRIBUTOR","OPERATES DISTRIBUTOR THAT SPREADS MATERIAL EVENLY ACROSS ROADWAY; INCLUDES SAND AGGREGATE OR BITUMINOUS MATERIALS; SETS SPRAY BAR AND OPERATES VALVES AND LEVERS TO CONTROL DISTRIBUTION OF OIL OR BITUMINOUS LIQUID PRIME TACK ETC."]
["SAND TRUCK DISTRIBUTOR","OPERATOR","OPERATOR: PAVER (Asphalt, Aggregate and Concrete)","OPERATES A MACHINE/LEVERS TO CONTROL SPREADING AND LEVELING TO APPROXIMATE GRADE AND CONTOUR ASPHALTIC CONCRETE OR PORTLAND CEMENT CONCRETE AS WELL AS SLAG OR OTHER AGGREGATES FOR SURFACE TREATMENT, OVER CONCRETE PAVING FORMS OR SUBGRADE OF HIGHWAY."]
["SCRAPER","OPERATOR","SCRAPER","OPERATES MACHINERY THAT SCRAPES AND TRANSPORTS EARTHWORK MATERIAL."]
["SCRAPER PAN","OPERATOR","SCRAPER","OPERATES MACHINERY THAT SCRAPES AND TRANSPORTS EARTHWORK MATERIAL."]
["SCREED","OPERATOR","ASPHALT SCREED","TURNS HAND WHEELS TO RAISE OR LOWER SCREEDS ON AN ASPHALT PAVING MACHINE TO ENSURE THE ASPHALT SURFACE WILL BE TO THE PROPER GRADE AND FINISH."]
["SEALANT EQUIPMENT BRIDGE JOINTS","OPERATOR","SEALANT EQUIPMENT","OPERATES EQUIPMENT INVOLVED IN THE JOINT SEALING PROCESS PRESSURE WASHER SANDBLASTER SEALANT APPLICATOR BLOWER MATERIAL MIXER AND SEALANT REMOVAL PLOW"]
["SEALANT FINISHER","LABORER","SEALANT FINISHER","FINISHES PREVIOUSLY APPLIED SEALANT WHICH DOES NOT SELF LEVEL USING VARIOUS METHODS TO GET A DESIRED SURFACE."]
["SEALANT FINISHER BRIDGE JOINTS","LABORER","SEALANT FINISHER","FINISHES PREVIOUSLY APPLIED SEALANT WHICH DOES NOT SELF LEVEL USING VARIOUS METHODS TO GET A DESIRED SURFACE."]
["SECURITY GUARD","LABORER","SECURITY GUARD","EMPLOYED TO PROTECT AGAINST INTRUDERS ANDOR MAINTAIN ORDER."]
["SELF PROPELLED RUBBER TIRE","OPERATOR","ROLLER","OPERATES A TANDEM OR THREEWHEELED STEEL OR RUBBER TIRE ROLLER IN CONJUNCTION WITH FINISHING OPERATIONS ON ASPHALT BASES OR PERFORMS INITIALPRELIMINARY ROLLING TO OBTAIN COMPACTION OF SUBGRADE OR BASE MATERIAL PRIOR TO THE FINISHING OPERATION."]
["SERVICEFUEL OILER TRUCK","TRUCK OPERATOR","SERVICEFUEL TRUCK","DRIVES AND OPERATES SERVICEFUEL TRUCK"]
["SERVICEFUEL TRUCK","TRUCK OPERATOR","SERVICEFUEL TRUCK","DRIVES AND OPERATES SERVICEFUEL TRUCK"]
["SHEEPS FOOT ROLLER","OPERATOR","ROLLER","OPERATES A TANDEM OR THREEWHEELED STEEL OR RUBBER TIRE ROLLER IN CONJUNCTION WITH FINISHING OPERATIONS ON ASPHALT BASES OR PERFORMS INITIALPRELIMINARY ROLLING TO OBTAIN COMPACTION OF SUBGRADE OR BASE MATERIAL PRIOR TO THE FINISHING OPERATION."]
["SHOULDER SPREADER","OPERATOR","OPERATOR: PAVER (Asphalt, Aggregate and Concrete)","OPERATES A MACHINE/LEVERS TO CONTROL SPREADING AND LEVELING TO APPROXIMATE GRADE AND CONTOUR ASPHALTIC CONCRETE OR PORTLAND CEMENT CONCRETE AS WELL AS SLAG OR OTHER AGGREGATES FOR SURFACE TREATMENT, OVER CONCRETE PAVING FORMS OR SUBGRADE OF HIGHWAY."]
["SHUTTLE BUGGY","OPERATOR","MATERIAL TRANSFER VEHICLE","ENSURES EQUIPMENT PROPERLY HOLDS AND TRANSFERS ASPHALT PAVEMENT BETWEEN THE DUMP TRUCKS AND THE PAVING MACHINE DURING PAVING OPERATIONS."]
["SHUTTLE BUGGY MTV","OPERATOR","MATERIAL TRANSFER VEHICLE","ENSURES EQUIPMENT PROPERLY HOLDS AND TRANSFERS ASPHALT PAVEMENT BETWEEN THE DUMP TRUCKS AND THE PAVING MACHINE DURING PAVING OPERATIONS."]
["SIGN - INSTALLER","LABORER","SIGN INSTALLER","INSTALLATION OF INTERIOR AND EXTERIOR SIGNS, POST MOUNTED, LED, LOW VOLTAGE ILLUMINATED, OVERHEAD AND CEILING MOUNTED. REQUIRES DRILLING, FASTENING AND INSTALLING. EMPLOYEE MAY USE LIFT EQUIPMENT DURING ELEVATED INSTALLATIONS."]
["SIGN ERECTOR","LABORER","SIGN ERECTOR","DIGS HOLE AND ERECTS POST BY BACK FILLING WITH A CONCRETE MIX. ATTACHES SIGN PANELS TO POST."]
["SIGN INSTALLER","LABORER","SIGN ERECTOR","DIGS HOLE AND ERECTS POST BY BACK FILLING WITH A CONCRETE MIX. ATTACHES SIGN PANELS TO POST."]
["SIGNAL INSTALLER","LABORER","TRAFFIC SIGNAL LABORER","UNDER THE DIRECTION OF THE TRAFFIC SIGNAL INSTALLER ASSISTS IN THE PHYSICAL TASK REQUIRED FOR THE INSTALLATION OF POLES MAST ARMS SIGNAL HEADS AND NBSP LOOPS. THIS POSITION DOES NO INSTALLATIONS."]
["SIGNAL MECHANIC","LABORER","TRAFFIC SIGNAL INSTALLATION","LAYS OUT TRAFFIC SIGNAL SYSTEMS FROM PLANSNBSPWORKS WITH THENBSPINSTALLATION OF ALL TRAFFIC SIGNALIZATION MATERIALS AND DEVICES."]
["SIGNING ERECTOR","LABORER","SIGN ERECTOR","DIGS HOLE AND ERECTS POST BY BACK FILLING WITH A CONCRETE MIX. ATTACHES SIGN PANELS TO POST."]
["SILT FENCE INSTALLER","LABORER","EROSION CONTROL SPECIALIST","MUST BE ABLE TO READ AND INTERPRET PLANS TO INSURE ALL EROSION CONTROL DEVICES ARE INSTALLED SUCH AS SILT FENCING AND FIBER BALES. MONITORS PROJECT DURING CONSTRUCTION AND IDENTIFIES AREAS THAT NEED TO BE MAINTAINED OR RESTORED."]
["SKID LOADER","OPERATOR","SKID STEER","OPERATES AN ENGINEPOWERED MACHINE USED WITH A WIDE VARIETY OF LABORSAVING TOOLS OR ATTACHMENTS."]
["SKID STEER","OPERATOR","SKID STEER","OPERATES AN ENGINEPOWERED MACHINE USED WITH A WIDE VARIETY OF LABORSAVING TOOLS OR ATTACHMENTS."]
["SKID STEER LOADER","OPERATOR","SKID STEER","OPERATES AN ENGINEPOWERED MACHINE USED WITH A WIDE VARIETY OF LABORSAVING TOOLS OR ATTACHMENTS."]
["SKID STEER MACHINE","OPERATOR","SKID STEER","OPERATES AN ENGINEPOWERED MACHINE USED WITH A WIDE VARIETY OF LABORSAVING TOOLS OR ATTACHMENTS."]
["SKIDDER","OPERATOR","LOG SKIDDER","OPERATES MOTORIZED EQUIPMENT TO MOVES LOGS."]
["SLURRY TRUCK","TRUCK DRIVER","SLURRY TRUCK","OPERATES A TANKER USED WITH THE GROOVINGGRINDING MACHINE TO APPLY FLUID PRIOR TO COMMENCING THE OPERATION AND RETREIVING THE WASTE SLURRY CREATED DURING THE GRINDING PROCESS."]
["SMALL HAND TOOL OPERATOR","LABORER","POWER TOOL OPERATOR","USES SMALL HAND HELD POWER TOOLS DRIVEN BY COMPRESSED AIR GASOLINE OR ELECTRICAL POWER TO PERFORM VARIOUS TYPES OF WORK THAT MAY INVOLVE SAWING GRINDING CUTTING CHIPPING TRENCHING DIGGING BREAKING OF CONCRETE PAVEMENT OR WOOD ON A PROJECT."]
["SNOOPER TRUCK OPERATOR","OPERATOR","SNOOPER TRUCK OPERATOR","OPERATES SPECIALIZED UNDER BRIDGE ACCESS VEHICLE WITH A MULTI-JOINTED ARM THAT HAS A BASKET PLATFORM ATTACHED TO ENABLE BRIDGE WORKERS IN INSPECTION, MAINTENANCE OR REPAIR OF BRIDGES"]
["SOCK DRAIN INSTALLER","OPERATOR","TRENCHER","OPERATES A POWER DRIVEN MACHINE USUALLY MOUNTED ON A CRAWLER OR RUBBER TIRES WITH DIGGING EQUIPMENT THAT EXCAVATES AND DEPOSITS THE MATERIAL ON A CONVEYOR BELT AND DISCHARGES THE MATERIAL AT THE SIDE OF THE TRENCH."]
["SOIL ANCHOR MACHINE","OPERATOR","OPERATOR: AUGER","OPERATES EQUIPMENT DESIGNED FOR DIGGING HOLES VERTICALLY."]
["SOIL STABILIZE","OPERATOR","MIXERSOIL STABILIZER","OPERATES A SELFPROPELLED MACHINE THAT FIELDMIXES SUBGRADE MATERIALS TO SPECIFICATION REQUIREMENTS FOR WIDTHS AND DEPTHS AFTER MATERIALS ARE SPREAD."]
["SOIL STABILIZER MACHINE","OPERATOR","MIXERSOIL STABILIZER","OPERATES A SELFPROPELLED MACHINE THAT FIELDMIXES SUBGRADE MATERIALS TO SPECIFICATION REQUIREMENTS FOR WIDTHS AND DEPTHS AFTER MATERIALS ARE SPREAD."]
["SOUND WALL ERECTOR","CRAFTMAN","WALL ERECTOR","HOLDS, ALIGNS, PLUMBS, SETS VERTICALLY TO ELEVATION WALL SECTIONS OR PRECAST PANELS; TYING OF BACKSTRAPS; DRIVES STAKES FOR BRACES; GRADE, FORM AND POUR LEVELING PAD; COMPACTION OF BACKFILL"]
["SOUND WALL INSTALLER","CRAFTMAN","WALL ERECTOR","HOLDS, ALIGNS, PLUMBS, SETS VERTICALLY TO ELEVATION WALL SECTIONS OR PRECAST PANELS; TYING OF BACKSTRAPS; DRIVES STAKES FOR BRACES; GRADE, FORM AND POUR LEVELING PAD; COMPACTION OF BACKFILL"]
["SOUNDWALL ERECTOR","CRAFTMAN","WALL ERECTOR","HOLDS, ALIGNS, PLUMBS, SETS VERTICALLY TO ELEVATION WALL SECTIONS OR PRECAST PANELS; TYING OF BACKSTRAPS; DRIVES STAKES FOR BRACES; GRADE, FORM AND POUR LEVELING PAD; COMPACTION OF BACKFILL"]
["SP RUBBER TIRE ROLLER","OPERATOR","ROLLER","OPERATES A TANDEM OR THREEWHEELED STEEL OR RUBBER TIRE ROLLER IN CONJUNCTION WITH FINISHING OPERATIONS ON ASPHALT BASES OR PERFORMS INITIALPRELIMINARY ROLLING TO OBTAIN COMPACTION OF SUBGRADE OR BASE MATERIAL PRIOR TO THE FINISHING OPERATION."]
["SPEED SWING","OPERATOR","SPEED SWING","A WORKER THAT OPERATES A MACHINE DESIGNED TO LAY RAIL SET TIES AND CLEAR PATH."]
["SPIKER","OPERATOR","SPIKER","A WORKER WHO OPERATES A MACHINE DESIGNED TO DRIVE RAIL SPIKES INTO TIES ON A RAIL TRACK TO HOLD RAIL IN PLACE."]
["SPRAY TECHNICIAN","CRAFTMAN","PESTICIDEHERBICIDE SPRAY TECHNICIAN","MIXES AND APPLIES PESTICIDESHERBICIDES ACCORDING TO MANUFACTURERS WRITTEN INSTRUCTIONSOR AS LABELEDNBSPTO CONTROL TARGET PESTS OR VEGETATION."]
["STABILIZER MACHINE","OPERATOR","MIXERSOIL STABILIZER","OPERATES A SELFPROPELLED MACHINE THAT FIELDMIXES SUBGRADE MATERIALS TO SPECIFICATION REQUIREMENTS FOR WIDTHS AND DEPTHS AFTER MATERIALS ARE SPREAD."]
["STATICMOUNT","OPERATOR","CRANE GROUP 1","OPERATES A CRANE DRAGLINE ETC. TO HOIST AND MOVE MATERIALS RAISE AND LOWER HEAVY WEIGHTS OPERATIONS MAY INVOLVE USE OF DRAG BUCKET CLAMSHELL ORANGE PEEL AND OTHER RELATED ATTACHMENTS."]
["STONE SPREADER NON ASPHALT MATERAL","OPERATOR","OPERATOR: PAVER (Asphalt, Aggregate and Concrete)","OPERATES A MACHINE/LEVERS TO CONTROL SPREADING AND LEVELING TO APPROXIMATE GRADE AND CONTOUR ASPHALTIC CONCRETE OR PORTLAND CEMENT CONCRETE AS WELL AS SLAG OR OTHER AGGREGATES FOR SURFACE TREATMENT, OVER CONCRETE PAVING FORMS OR SUBGRADE OF HIGHWAY."]
["STREET SWEEPER","OPERATOR","BROOM SWEEPER","OPERATES MACHINE WITH A BROOM ANDOR WATER SPRAYER FOR SETTLING DUST PARTICLES OR OTHER AIR BORN DEBRIS TO SWEEP DEBRIS FROM ROADWAYS OR EXTRACTING DEBRISPARTICLES FROM ROADWAY VIA VACUUMING SYSTEM."]
["STRIPING MACHINE","OPERATOR","HIGHWAY STRIPING MACHINE OPERATOR","OPERATES A TRUCKMOUNTED SMALL SELFPROPELLED OR LARGER TOWED MACHINE FOR THE PNEUMATIC OR GRAVITY APPLICATION OF ROADWAY PAVEMENT STRIPING OR MARKING MAY MANIPULATE ALL NECESSARY LEVERS AND VALVES. INSTALLS RAISED PAVEMENT MARKERS WHILE OPERATING THE EQUIPMENT USED TO APPLY THE ADHESIVE ON THE ASPHALT OR OPERATING THE VEHICLE PLACING THE RAISED PAVEMENT MARKERS ON THE PROPER LOCATION."]
["STRIPING MACHINE NOZZLEMAN","CRAFTMAN","HIGHWAY STRIPING MACHINE NOZZLEMAN","CONTROLS SWITCHES TO ALLOW COMPRESSED AIRPAINT TO FLOW TO THE STRIPING GUN MAKES ADJUSTMENTS AS NEEDED SELECTS COLORS AND PATTERNS AS DIRECTED BY THE HIGHWAY STRIPING MACHINE OPERATOR."]
["STRUCTURAL IRONWORKER","CRAFTMAN","STRUCTURAL IRONWORKER","LAYS OUT WORK FROM PLANS RIGS ASSEMBLES AND ERECTS STRUCTURAL MEMBERS REQUIRING BOLTING WELDING RIVETING ETC. UNITES STEEL TO FORM A COMPLETED STRUCTURE OR THE FRAMEWORK OF A STRUCTURE."]
["SUBGRADE MIXER","OPERATOR","MIXERSOIL STABILIZER","OPERATES A SELFPROPELLED MACHINE THAT FIELDMIXES SUBGRADE MATERIALS TO SPECIFICATION REQUIREMENTS FOR WIDTHS AND DEPTHS AFTER MATERIALS ARE SPREAD."]
["SUBGRADE MIXING MACHINE","OPERATOR","MIXERSOIL STABILIZER","OPERATES A SELFPROPELLED MACHINE THAT FIELDMIXES SUBGRADE MATERIALS TO SPECIFICATION REQUIREMENTS FOR WIDTHS AND DEPTHS AFTER MATERIALS ARE SPREAD."]
["SWEEPER","OPERATOR","BROOM SWEEPER","OPERATES MACHINE WITH A BROOM ANDOR WATER SPRAYER FOR SETTLING DUST PARTICLES OR OTHER AIR BORN DEBRIS TO SWEEP DEBRIS FROM ROADWAYS OR EXTRACTING DEBRISPARTICLES FROM ROADWAY VIA VACUUMING SYSTEM."]
["SWEEPER TRUCK","OPERATOR","BROOM SWEEPER","OPERATES MACHINE WITH A BROOM ANDOR WATER SPRAYER FOR SETTLING DUST PARTICLES OR OTHER AIR BORN DEBRIS TO SWEEP DEBRIS FROM ROADWAYS OR EXTRACTING DEBRISPARTICLES FROM ROADWAY VIA VACUUMING SYSTEM."]
["SWEEPERBROOM","OPERATOR","BROOM SWEEPER","OPERATES MACHINE WITH A BROOM ANDOR WATER SPRAYER FOR SETTLING DUST PARTICLES OR OTHER AIR BORN DEBRIS TO SWEEP DEBRIS FROM ROADWAYS OR EXTRACTING DEBRISPARTICLES FROM ROADWAY VIA VACUUMING SYSTEM."]
["SWEEPERVACUUM TRUCK","OPERATOR","BROOM SWEEPER","OPERATES MACHINE WITH A BROOM ANDOR WATER SPRAYER FOR SETTLING DUST PARTICLES OR OTHER AIR BORN DEBRIS TO SWEEP DEBRIS FROM ROADWAYS OR EXTRACTING DEBRISPARTICLES FROM ROADWAY VIA VACUUMING SYSTEM."]
["SWEEPING MACHINE","OPERATOR","BROOM SWEEPER","OPERATES MACHINE WITH A BROOM ANDOR WATER SPRAYER FOR SETTLING DUST PARTICLES OR OTHER AIR BORN DEBRIS TO SWEEP DEBRIS FROM ROADWAYS OR EXTRACTING DEBRISPARTICLES FROM ROADWAY VIA VACUUMING SYSTEM."]
["TACK SPRAYER","OPERATOR","DISTRIBUTOR","OPERATES DISTRIBUTOR THAT SPREADS MATERIAL EVENLY ACROSS ROADWAY; INCLUDES SAND AGGREGATE OR BITUMINOUS MATERIALS; SETS SPRAY BAR AND OPERATES VALVES AND LEVERS TO CONTROL DISTRIBUTION OF OIL OR BITUMINOUS LIQUID PRIME TACK ETC."]
["TACK SPRAYER TRUCK DRIVER","OPERATOR","DISTRIBUTOR","OPERATES DISTRIBUTOR THAT SPREADS MATERIAL EVENLY ACROSS ROADWAY; INCLUDES SAND AGGREGATE OR BITUMINOUS MATERIALS; SETS SPRAY BAR AND OPERATES VALVES AND LEVERS TO CONTROL DISTRIBUTION OF OIL OR BITUMINOUS LIQUID PRIME TACK ETC."]
["TACK TRUCK DISTRIBUTOR","OPERATOR","DISTRIBUTOR","OPERATES DISTRIBUTOR THAT SPREADS MATERIAL EVENLY ACROSS ROADWAY; INCLUDES SAND AGGREGATE OR BITUMINOUS MATERIALS; SETS SPRAY BAR AND OPERATES VALVES AND LEVERS TO CONTROL DISTRIBUTION OF OIL OR BITUMINOUS LIQUID PRIME TACK ETC."]
["TAILMAN","LABORER","PIPELAYER","INVOLVED IN THE LAYING ANDOR SEALING OF PIPE. MAY DIG TRENCHES USING HAND TOOLS GRADE AND LEVEL TRENCH BASES USING TAMPING TOOLS ALIGN AND POSITION PIPE FOR FINAL PLACEMENTSEAL PIPE."]
["TAMPER","OPERATOR","LARGE POWER TOOL OPERATOR","OPERATES STAND BEHIND AND PUSH HAND TOOLS DRIVEN BY COMPRESSED AIR GASOLINE OR ELECTRICAL POWER TO PERFORM SUCH WORK AS MOWERS SAWS AND TOOLS USED FOR BREAKING OLD PAVEMENT LOOSENING OR DIGGING HARD EARTH TRIMMING BOTTOM AND SIDES OF TRENCHES BREAKING LARGE ROCKS DRIVING SHEETING CHIPPING CONCRETE TRIMMING OR CUTTING STONE CAULKING STEEL PLATES."]
["TANDEM","TRUCK DRIVER","TANDEM TRUCK","DRIVES A MULTI REAR AXLE TRUCK THAT IS NOT A LOWBOY OR DUMP TRUCK"]
["TAP MACHINE","OPERATOR","TAP MACHINE","OPERATES TAP MACHINE FOR PERFORMING WET TAPS ON WATER MAINS."]
["TELECOMMUNICATION REPAIRERS","CRAFTMAN","FIBER OPTIC INSTALLER","SPECIALIZED IN THE INSTALLATION AND REPAIR OF FIBER OPTIC CABLE MAY INVOLVE STRINGING CABLE OR LAYING UNDERGROUND. MAY HAVE TO USE PLOWS TRENCHERS BORERS OR WINCHES FOR INSTALLATION. INSTALLATION OF TERMINAL BOXES INSULATION AND OTHER AUXILIARY EQUIPMENT SUCH AS SIGNAL AMPLIFIERS AND REPEATERS. ALSO INVOLVES TESTING."]
["TELECOMUNICATION LINE INSTALLERS","CRAFTMAN","FIBER OPTIC INSTALLER","SPECIALIZED IN THE INSTALLATION AND REPAIR OF FIBER OPTIC CABLE MAY INVOLVE STRINGING CABLE OR LAYING UNDERGROUND. MAY HAVE TO USE PLOWS TRENCHERS BORERS OR WINCHES FOR INSTALLATION. INSTALLATION OF TERMINAL BOXES INSULATION AND OTHER AUXILIARY EQUIPMENT SUCH AS SIGNAL AMPLIFIERS AND REPEATERS. ALSO INVOLVES TESTING."]
["TELECOPING EXCAVATOR","OPERATOR","EXCAVATOR","OPERATES A MACHINE CONTAINING POWER SHOVEL TO REMOVE MATERIAL."]
["TELESCOPING EXCAVATOR","OPERATOR","EXCAVATOR","OPERATES A MACHINE CONTAINING POWER SHOVEL TO REMOVE MATERIAL."]
["TELESCOPING EXCAVGRADALL","OPERATOR","EXCAVATOR","OPERATES A MACHINE CONTAINING POWER SHOVEL TO REMOVE MATERIAL."]
["TEMPORARY BRIDGE ASSSEMBLER-DISASSEMBLER","CRAFTMAN","TEMPORARY BRIDGE ASSEMBLER-DISASSEMBLER","CONSTRUCT/ASSEMBLE AND DISASSEMBLE OF TEMPORARY BRIDGE COMPONENTS. RIG AND BRIDGE COMPONENTS FOR ASSEMBLY. ALIGN AND CONNECT MULTIPLE COMPONENT TYPES IN CORRECT ORDER AND FASHION. USE VARIOUS HAND AND POWER TOOLS TO ACCOMPLISH ASSEMBLING/DISASSEMBLE."]
["TENDER","LABORER","DIVER TENDER","LAND BASED  ACTS AS AN ASSISTANT OR WATCH OUT FOR THE DIVER."]
["TEXTURED PAVEMENT INSTALLER","LABORER","PATTERN PAVEMENT INSTALLER","CLEANS SURFACE AND INSTALLS TEXTURE TO PAVEMENT PER SPECIFICATIONS. DUTIES INCLUDE THE USE OF CHALK LINES PAINT ROLLERS DRILL FOR MIXING PRODUCT AND SCRAPERS. MAY USE A VACUUM HEAD  OR SHOVEL FOR CLEAN UP OF AREA."]
["THERMO STRIPING MACHINE","OPERATOR","HIGHWAY STRIPING MACHINE OPERATOR","OPERATES A TRUCKMOUNTED SMALL SELFPROPELLED OR LARGER TOWED MACHINE FOR THE PNEUMATIC OR GRAVITY APPLICATION OF ROADWAY PAVEMENT STRIPING OR MARKING MAY MANIPULATE ALL NECESSARY LEVERS AND VALVES. INSTALLS RAISED PAVEMENT MARKERS WHILE OPERATING THE EQUIPMENT USED TO APPLY THE ADHESIVE ON THE ASPHALT OR OPERATING THE VEHICLE PLACING THE RAISED PAVEMENT MARKERS ON THE PROPER LOCATION."]
["TIMBER LOADER TRUCK","OPERATOR","LOG SKIDDER","OPERATES MOTORIZED EQUIPMENT TO MOVES LOGS."]
["TIMBER STRUCTURAL INSTALLER","CRAFTMAN","TIMBER STRUCTURAL INSTALLER","INSTALLS STRUCTURAL TIMBER BY IMPACTION AND ATTACHING MEMBERS WITH SCREWS OR BOLTS."]
["TOP MAN","LABORER","PIPELAYER","INVOLVED IN THE LAYING ANDOR SEALING OF PIPE. MAY DIG TRENCHES USING HAND TOOLS GRADE AND LEVEL TRENCH BASES USING TAMPING TOOLS ALIGN AND POSITION PIPE FOR FINAL PLACEMENTSEAL PIPE."]
["TRACK DRILL","OPERATOR","DRILL","SETS UP AND OPERATES DRILLING MACHINE THAT DRILLS HOLES THROUGH CONCRETE ROCK ETC. LEVELS MACHINE BY PLACING TIMBERS UNDER WHEELS INSETS AND FASTENS DRILL STEEL IN CHUCK ADJUSTS ANGLE OF DRILL TOWER AND BOLTS IT IN POSITION CONTROLS DRILLING BY MOVING LEVERS."]
["TRACK EQUIPMENT MECHANIC","OPERATOR","TRACK EQUIPMENT MECHANIC","SERVICES AND REPAIRS ALL MAINTENANCE OF WAY FLEET VEHICLES INCLUDING ON AND OFF TRACK EQUIPMENT."]
["TRACK HOE","OPERATOR","EXCAVATOR","OPERATES A MACHINE CONTAINING POWER SHOVEL TO REMOVE MATERIAL."]
["TRACK MAINTENANCE LABORER","LABORER","TRACK MAINTENANCE LABORER","PROVIDES MAINTENANCE OF WAY SUPPORT TO INCLUDE TRACK REPAIRS AS NEEDED UNDER A QUALIFIED SUPERVISOR PER 49 CFR 213."]
["TRACK MAINTENANCE TECHNICIAN","OPERATOR","TRACK MAINTENANCE TECHNICIAN","ASSIST IN TRACK RENEWAL UNDER A QUALIFIED TRACK SUPERVISOR PER 49 CFR 213 AND OPERATES ANY AND ALL NECESSARY ONOFF TRACK EQUIPMENT."]
["TRACTOR","OPERATOR","TRACTOR","OPERATES A MACHINE USED TO PULL GRADERSBOX BLADES PLOWS HARROWS ROLLERS AND TRAILERS OR HAS ATTACHMENTS FOR POST HOLE DIGGING."]
["TRACTOR BROOMSWEEPER","OPERATOR","BROOM SWEEPER","OPERATES MACHINE WITH A BROOM ANDOR WATER SPRAYER FOR SETTLING DUST PARTICLES OR OTHER AIR BORN DEBRIS TO SWEEP DEBRIS FROM ROADWAYS OR EXTRACTING DEBRISPARTICLES FROM ROADWAY VIA VACUUMING SYSTEM."]
["TRACTOR HAUL TRUCK","TRUCK DRIVER","TRACTOR HAUL TRUCK","DRIVES A CAB OR TRACTORTRAILER COMBINATION"]
["TRACTOR LIGHT","OPERATOR","TRACTOR","OPERATES A MACHINE USED TO PULL GRADERSBOX BLADES PLOWS HARROWS ROLLERS AND TRAILERS OR HAS ATTACHMENTS FOR POST HOLE DIGGING."]
["TRACTOR MOWER","OPERATOR","MOWER","OPERATES COMMERCIAL MOWING MACHINE OR EQUIPMENT WITH SUCH ATTACHMENTS."]
["TRAFFIC CONTROL FLAGMAN","LABORER","FLAGGER","DIRECTS TRAFFIC THROUGH CONSTRUCTION ZONES AS NEEDED. REQUIRES FLAGGING CERTIFICATION AND WORKS UNDER THE SUPERVISION OF THE WORKSITE TRAFFIC SUPERVISOR."]
["TRAFFIC CONTROL SPECIALIST","LABORER","TRAFFIC CONTROL SPECIALIST","INSTALLS AND SETS UP TEMPORARY TRAFFIC CONTROL DEVICES. ENSURES LANE CLOSURES ARE SET UP AND MAINTAINED PROPERLY. PROVIDES PROPER MAINTENANCE OF TRAFFIC USING APPROPRIATE ADVANCED WARNING DEVICES WITHIN THE APPLICABLE CONSTRUCTION OPERATION ZONES."]
["TRAFFIC SIGNAL GROUND MAN","LABORER","TRAFFIC SIGNAL LABORER","UNDER THE DIRECTION OF THE TRAFFIC SIGNAL INSTALLER ASSISTS IN THE PHYSICAL TASK REQUIRED FOR THE INSTALLATION OF POLES MAST ARMS SIGNAL HEADS AND NBSP LOOPS. THIS POSITION DOES NO INSTALLATIONS."]
["TRAFFIC SIGNAL INSTALLATION","LABORER","TRAFFIC SIGNAL INSTALLATION","LAYS OUT TRAFFIC SIGNAL SYSTEMS FROM PLANSWORKS WITH THE INSTALLATION OF ALL TRAFFIC SIGNALIZATION MATERIALS AND DEVICES."]
["TRAFFIC SIGNAL LABORER","LABORER","TRAFFIC SIGNAL LABORER","UNDER THE DIRECTION OF THE TRAFFIC SIGNAL INSTALLER ASSISTS IN THE PHYSICAL TASK REQUIRED FOR THE INSTALLATION OF POLES MAST ARMS SIGNAL HEADS AND NBSP LOOPS. THIS POSITION DOES NO INSTALLATIONS."]
["TRAFFIC SIGNAL TECHNICIAN","LABORER","TRAFFIC SIGNAL INSTALLATION","READS TRAFFIC BLUE PRINTS AND INTERPRETS PLAN SET LAYOUTS  INSTALLATION AND WIRING OF TRAFFIC SIGNAL EQUIPMENT. INSTALLS POLESSPAN WIRE CONTROL CABLES  MAST ARMS SIGNAL HEADS LOOPS CONDUIT SERVICE CONTROLLERS WIRING AND RELATED PARTS MATERIALS AND COMPONENTS."]
["TRAFFIC SIGNALIZATION GROUND MAN","LABORER","TRAFFIC SIGNAL LABORER","UNDER THE DIRECTION OF THE TRAFFIC SIGNAL INSTALLER ASSISTS IN THE PHYSICAL TASK REQUIRED FOR THE INSTALLATION OF POLES MAST ARMS SIGNAL HEADS AND NBSP LOOPS. THIS POSITION DOES NO INSTALLATIONS."]
["TRAFFIC SIGNALIZATION INSTALLER","LABORER","TRAFFIC SIGNAL INSTALLATION","READS TRAFFIC BLUE PRINTS AND INTERPRETS PLAN SET LAYOUTS  INSTALLATION AND WIRING OF TRAFFIC SIGNAL EQUIPMENT. INSTALLS POLESSPAN WIRE CONTROL CABLES  MAST ARMS SIGNAL HEADS LOOPS CONDUIT SERVICE CONTROLLERS WIRING AND RELATED PARTS MATERIALS AND COMPONENTS."]
["TRAFFIC SIGNALIZATION MECHANIC","LABORER","TRAFFIC SIGNAL INSTALLATION","LAYS OUT TRAFFIC SIGNAL SYSTEMS FROM PLANSNBSPWORKS WITH THENBSPINSTALLATION OF ALL TRAFFIC SIGNALIZATION MATERIALS AND DEVICES.."]
["TREE MULCHERGRINDER","OPERATOR","CUTTERCHIPPER MACHINE","OPERATES EQUIPMENT USED FOR CHIPPING AND GRINDING TREES AND LIMBS"]
["TRENCHER","OPERATOR","EXCAVATOR","OPERATES A MACHINE CONTAINING POWER SHOVEL TO REMOVE MATERIAL."]
["TRENCHING MACHINE","OPERATOR","EXCAVATOR","OPERATES A MACHINE CONTAINING POWER SHOVEL TO REMOVE MATERIAL."]
["TRIMMER MACHINE","OPERATOR","SCRAPER","OPERATES MACHINERY THAT SCRAPES AND TRANSPORTS EARTHWORK MATERIAL."]
["TRUCK MOUNTED BOOM","OPERATOR","BUCKET TRUCK","OPERATES A TRUCK WITH A MOUNTED BOOM  BUCKET TO ERECT SIGNS TO STAND POSTS AND STRUCTURES TO SET POLES AND OTHER SIMILAR OPERATIONS."]
["TS CABINET INSTALLER","LABORER","TRAFFIC SIGNAL LABORER","UNDER THE DIRECTION OF THE TRAFFIC SIGNAL INSTALLER ASSISTS IN THE PHYSICAL TASK REQUIRED FOR THE INSTALLATION OF POLES MAST ARMS SIGNAL HEADS AND NBSP LOOPS. THIS POSITION DOES NO INSTALLATIONS."]
["TS MECHANIC","LABORER","TRAFFIC SIGNAL INSTALLATION","LAYS OUT TRAFFIC SIGNAL SYSTEMS FROM PLANS WORKS WITH THE INSTALLATION OF ALL TRAFFIC SIGNALIZATION MATERIALS AND DEVICES."]
["TUB GRINDER","OPERATOR","CUTTERCHIPPER MACHINE","OPERATES EQUIPMENT USED FOR CHIPPING AND GRINDING TREES AND LIMBS"]
["TUG BOAT CAPTAIN","CRAFTMAN","BOAT CAPTAIN","OPERATES A BOAT OR BARGE IN THE SUPPORT OF CONSTRUCTION PROJECTS."]
["TV","OPERATOR","CAMERA TRUCK","OPERATES CAMERA TO VIEW PIPE OR OTHER CONCEALED AREAS."]
["TV TRUCK","OPERATOR","CAMERA TRUCK","OPERATES CAMERA TO VIEW PIPE OR OTHER CONCEALED AREAS."]
["UNDERGROUND CONDUIT INSTALLER","LABORER","TRAFFIC SIGNAL LABORER","UNDER THE DIRECTION OF THE TRAFFIC SIGNAL INSTALLER ASSISTS IN THE PHYSICAL TASK REQUIRED FOR THE INSTALLATION OF POLES MAST ARMS SIGNAL HEADS AND NBSP LOOPS. THIS POSITION DOES NO INSTALLATIONS."]
["UTILITY LOCATOR","LABORER","BORING LOCATOR","LOCATES THE DRILL HEAD AND NAVIGATES THE DIRECTON OF THE BORE."]
["VAC","OPERATOR","VACUUM TRUCK","OPERATES EQUIPMENT THAT REMOVES OBJECTS FROM THE ROADWAY BY A VACUUMING SYSTEM"]
["VAC CON","OPERATOR","VACTOR TRUCK","OPERATES EQUIPMENT THAT REMOVES SAND WATER AND OBJECTS FROM PIPE BY A VACUUMING SYSTEM"]
["VAC CON TRUCK","OPERATOR","VACTOR TRUCK","OPERATES EQUIPMENT THAT REMOVES SAND WATER AND OBJECTS FROM PIPE BY A VACUUMING SYSTEM"]
["VAC SWEEPER","OPERATOR","BROOM SWEEPER","OPERATES MACHINE WITH A BROOM ANDOR WATER SPRAYER FOR SETTLING DUST PARTICLES OR OTHER AIR BORN DEBRIS TO SWEEP DEBRIS FROM ROADWAYS OR EXTRACTING DEBRISPARTICLES FROM ROADWAY VIA VACUUMING SYSTEM."]
["VAC TRUCK","OPERATOR","VACUUM TRUCK","OPERATES EQUIPMENT THAT REMOVES OBJECTS FROM THE ROADWAY BY A VACUUMING SYSTEM"]
["VACCON","OPERATOR","VACTOR TRUCK","OPERATES EQUIPMENT THAT REMOVES SAND WATER AND OBJECTS FROM PIPE BY A VACUUMING SYSTEM"]
["VACCON VAC TRUCK","OPERATOR","VACTOR TRUCK","OPERATES EQUIPMENT THAT REMOVES SAND WATER AND OBJECTS FROM PIPE BY A VACUUMING SYSTEM"]
["VACTOR TRUCK","OPERATOR","VACTOR TRUCK","OPERATES EQUIPMENT THAT REMOVES SAND WATER AND OBJECTS FROM PIPE BY A VACUUMING SYSTEM"]
["VACTRUCK","OPERATOR","VACUUM TRUCK","OPERATES EQUIPMENT THAT REMOVES OBJECTS FROM THE ROADWAY BY A VACUUMING SYSTEM"]
["VACTRUCK PIPE DESILTER","OPERATOR","VACTOR TRUCK","OPERATES EQUIPMENT THAT REMOVES SAND WATER AND OBJECTS FROM PIPE BY A VACUUMING SYSTEM"]
["VACUUM TRUCK","OPERATOR","VACUUM TRUCK","OPERATES EQUIPMENT THAT REMOVES OBJECTS FROM THE ROADWAY BY A VACUUMING SYSTEM"]
["VOLUMETRIC TRUCK","OPERATOR","VOLUMETRIC TRUCK","Delivers a specific, controllable, volume of material at a constant rate to produce a particular product. Contains a mixer mounted on a truck/trailer with separate compartments for concrete ingredients (sand, cement, water and other admixtures). Operator adjusts mix design and volume at the site of work. Mixes materials to produce the exact amount of concrete needed."]
["WALK BEHIND POWER SAW","OPERATOR","LARGE POWER TOOL OPERATOR","OPERATES STAND BEHIND AND PUSH HAND TOOLS DRIVEN BY COMPRESSED AIR GASOLINE OR ELECTRICAL POWER TO PERFORM SUCH WORK AS MOWERS SAWS AND TOOLS USED FOR BREAKING OLD PAVEMENT LOOSENING OR DIGGING HARD EARTH TRIMMING BOTTOM AND SIDES OF TRENCHES BREAKING LARGE ROCKS DRIVING SHEETING CHIPPING CONCRETE TRIMMING OR CUTTING STONE CAULKING STEEL PLATES."]
["WALK BEHIND TRENCHER","OPERATOR","LARGE POWER TOOL OPERATOR","OPERATES STAND BEHIND AND PUSH HAND TOOLS DRIVEN BY COMPRESSED AIR GASOLINE OR ELECTRICAL POWER TO PERFORM SUCH WORK AS MOWERS SAWS AND TOOLS USED FOR BREAKING OLD PAVEMENT LOOSENING OR DIGGING HARD EARTH TRIMMING BOTTOM AND SIDES OF TRENCHES BREAKING LARGE ROCKS DRIVING SHEETING CHIPPING CONCRETE TRIMMING OR CUTTING STONE CAULKING STEEL PLATES."]
["WALL ERECTOR","CRAFTMAN","WALL ERECTOR","HOLDS, ALIGNS, PLUMBS, SETS VERTICALLY TO ELEVATION WALL SECTIONS OR PRECAST PANELS; TYING OF BACKSTRAPS; DRIVES STAKES FOR BRACES; GRADE, FORM AND POUR LEVELING PAD; COMPACTION OF BACKFILL"]
["WATER BLASTER","OPERATOR","BLASTER","USES A SAND BEAD SODA OR WATER BLASTER TO REMOVE PAINT RUST OR OTHER MATERIAL FROM SURFACES."]
["WATER TRUCK","TRUCK DRIVER","WATER TRUCK","DRIVES A LIGHT OR HEAVY DUTY TRUCK EQUIPPED WITH SPRAY BAR AND REQUIRES DRIVER TO SET SPRAY BAR VALVES LEVERS TO CONTROL DISTRIBUTION OF WATER ON SURFACES"]
["WELL DRILLER","OPERATOR","DRILL","SETS UP AND OPERATES DRILLING MACHINE THAT DRILLS HOLES THROUGH CONCRETE ROCK ETC. LEVELS MACHINE BY PLACING TIMBERS UNDER WHEELS INSETS AND FASTENS DRILL STEEL IN CHUCK ADJUSTS ANGLE OF DRILL TOWER AND BOLTS IT IN POSITION CONTROLS DRILLING BY MOVING LEVERS."]
["WELL POINT INSTALLER","OPERATOR","WELL POINT INSTALLER","INSTALLS SHALLOW VERTICAL WELL POINT PIPES FOR DEWATERING OPERATIONS"]
["WELL TECHNICIAN","CRAFTMAN","WELL TECHNICIAN","INVOLVED IN THE INSTALLATION MONITORING ANDOR THE ABANDONMENT OF WELLS."]
["WIDENER OPERATOR","OPERATOR","WIDENING SPREADER","OPERATES MACHINE FOR RETRIEVING MATERIALS FROM THE ROADWAY AND CAN TRANSFER TO AREAS TO BE WIDENED."]
["WIDENING SPREADER","OPERATOR","WIDENING SPREADER","OPERATES MACHINE FOR RETRIEVING MATERIALS FROM THE ROADWAY AND CAN TRANSFER TO AREAS TO BE WIDENED."]
["ZERO TURN MOWER","OPERATOR","MOWER","OPERATES COMMERCIAL MOWING MACHINE OR EQUIPMENT WITH SUCH ATTACHMENTS."]

{"sheet":"Apprenticeship Detail","index":9,"n_rows":31,"n_cols":11,"rows_kept":31,"cut":false,"hidden":true,"merged":[[9,4,10,6],[11,4,11,6],[9,7,10,10],[8,2,8,10],[9,0,10,1],[17,0,17,1],[18,0,18,1],[11,0,11,1],[12,0,12,1],[13,0,13,1],[19,0,19,1],[20,0,20,1],[30,0,30,1],[9,2,10,3],[14,2,14,3],[13,2,13,3],[12,2,12,3],[11,2,11,3],[19,2,19,3],[18,2,18,3],[17,2,17,3],[16,2,16,3],[15,2,15,3],[14,0,14,1],[15,0,15,1],[16,0,16,1],[14,4,14,6],[13,4,13,6],[12,4,12,6],[30,2,30,3],[20,2,20,3],[30,4,30,6],[20,4,20,6],[17,4,17,6],[16,4,16,6],[15,4,15,6],[19,4,19,6],[18,4,18,6],[2,5,2,6],[4,4,4,5],[6,1,6,2],[4,8,4,10],[6,8,6,10],[2,1,2,4],[2,7,2,10],[6,4,6,5]]}
["Apprenticeship Record:"]
[]
["Contractor's Name:",{"$f":"IF(#REF!=\"\",\"\",#REF!)","v":{"$error":"#REF!"}},null,null,null,"Address:",null,{"$f":"IF(#REF!=\"\",\"\",#REF!)","v":{"$error":"#REF!"}}]
[]
["Payroll Number:",{"$f":"IF(#REF!=\"\",\"\",#REF!)","v":{"$error":"#REF!"}},null,"Contract #",{"$f":"IF(#REF!=\"\",\"\",#REF!)","v":{"$error":"#REF!"}},{"$f":"#REF!","v":{"$error":"#REF!"}},null,"Project Name:",{"$f":"IF(#REF!=\"\",\"\",#REF!)","v":{"$error":"#REF!"}}]
[]
["For Week Ending:",{"$f":"IF(#REF!=\"\",\"\",#REF!)","v":{"$error":"#REF!"}},{"$f":"#REF!","v":{"$error":"#REF!"}},"FIN #",{"$f":"IF(#REF!=\"\",\"\",#REF!)","v":{"$error":"#REF!"}},{"$f":"#REF!","v":{"$error":"#REF!"}},null,"Project Location:",{"$f":"IF(#REF!=\"\",\"\",#REF!)","v":{"$error":"#REF!"}}]
[]
[null,null,"Provide apprentice program name registered with the Office of Apprenticeship, Employment, and Training Administration, United State Department of Labor (\"OA\"), or a State Apprenticeship Agency (\"SAA\") recognized by the Department of Labor, and each trainee/worker registered with a program. "]
["Apprentice Program Name",null,"Apprentice Name",null,"Title of Labor/Mechanic Classificaiton",null,null,"Registered"]
[]
[null,null,null,null,null,null,null,false,"OA",false,"SAA"]
[null,null,null,null,null,null,null,false,"OA",false,"SAA"]
[null,null,null,null,null,null,null,false,"OA",false,"SAA"]
[null,null,null,null,null,null,null,false,"OA",false,"SAA"]
[null,null,null,null,null,null,null,false,"OA",false,"SAA"]
[null,null,null,null,null,null,null,false,"OA",false,"SAA"]
[null,null,null,null,null,null,null,false,"OA",false,"SAA"]
[null,null,null,null,null,null,null,false,"OA",false,"SAA"]
[null,null,null,null,null,null,null,false,"OA",false,"SAA"]
[null,null,null,null,null,null,null,false,"OA",false,"SAA"]
[null,null,null,null,null,null,null,false,"OA",false,"SAA"]
[null,null,null,null,null,null,null,false,"OA",false,"SAA"]
[null,null,null,null,null,null,null,false,"OA",false,"SAA"]
[null,null,null,null,null,null,null,false,"OA",false,"SAA"]
[null,null,null,null,null,null,null,false,"OA",false,"SAA"]
[null,null,null,null,null,null,null,false,"OA",false,"SAA"]
[null,null,null,null,null,null,null,false,"OA",false,"SAA"]
[null,null,null,null,null,null,null,false,"OA",false,"SAA"]
[null,null,null,null,null,null,null,false,"OA",false,"SAA"]
[null,null,null,null,null,null,null,false,"OA",false,"SAA"]